Transaction Date,Local Authority Department,Beneficiary,Purpose of Expenditure,Amount (excluding VAT),Non Recoverable VAT,Merchant Category
 22-02-2023,Adults,Matrix SCM Ltd,Agency Staff,501.90,0.00,COMMERCIAL SUPPLIER 
 01-02-2023,Adults,Matrix SCM Ltd,Agency Staff,506.70,0.00,COMMERCIAL SUPPLIER 
 08-02-2023,Adults,Matrix SCM Ltd,Agency Staff,506.70,0.00,COMMERCIAL SUPPLIER 
 22-02-2023,Adults,Matrix SCM Ltd,Agency Staff,506.70,0.00,COMMERCIAL SUPPLIER 
 01-02-2023,Adults,Matrix SCM Ltd,Agency Staff,510.99,0.00,COMMERCIAL SUPPLIER 
 08-02-2023,Adults,Matrix SCM Ltd,Agency Staff,510.99,0.00,COMMERCIAL SUPPLIER 
 22-02-2023,Adults,Matrix SCM Ltd,Agency Staff,510.99,0.00,COMMERCIAL SUPPLIER 
 01-02-2023,Adults,Matrix SCM Ltd,Agency Staff,517.20,0.00,COMMERCIAL SUPPLIER 
 08-02-2023,Adults,Matrix SCM Ltd,Agency Staff,517.20,0.00,COMMERCIAL SUPPLIER 
 15-02-2023,Adults,Matrix SCM Ltd,Agency Staff,517.20,0.00,COMMERCIAL SUPPLIER 
 22-02-2023,Adults,Matrix SCM Ltd,Agency Staff,517.20,0.00,COMMERCIAL SUPPLIER 
 08-02-2023,Adults,Matrix SCM Ltd,Agency Staff,547.81,0.00,COMMERCIAL SUPPLIER 
 01-02-2023,Adults,Matrix SCM Ltd,Agency Staff,560.23,0.00,COMMERCIAL SUPPLIER 
 01-02-2023,Adults,Matrix SCM Ltd,Agency Staff,561.16,0.00,COMMERCIAL SUPPLIER 
 15-02-2023,Adults,Matrix SCM Ltd,Agency Staff,561.16,0.00,COMMERCIAL SUPPLIER 
 22-02-2023,Adults,Matrix SCM Ltd,Agency Staff,561.16,0.00,COMMERCIAL SUPPLIER 
 22-02-2023,Adults,Matrix SCM Ltd,Agency Staff,575.40,0.00,COMMERCIAL SUPPLIER 
 01-02-2023,Adults,Matrix SCM Ltd,Agency Staff,589.68,0.00,COMMERCIAL SUPPLIER 
 08-02-2023,Adults,Matrix SCM Ltd,Agency Staff,589.68,0.00,COMMERCIAL SUPPLIER 
 22-02-2023,Adults,Matrix SCM Ltd,Agency Staff,589.68,0.00,COMMERCIAL SUPPLIER 
 08-02-2023,Adults,Matrix SCM Ltd,Agency Staff,589.70,0.00,COMMERCIAL SUPPLIER 
 15-02-2023,Adults,Matrix SCM Ltd,Agency Staff,589.70,0.00,COMMERCIAL SUPPLIER 
 15-02-2023,Adults,Matrix SCM Ltd,Agency Staff,589.70,0.00,COMMERCIAL SUPPLIER 
 22-02-2023,Adults,Matrix SCM Ltd,Agency Staff,589.70,0.00,COMMERCIAL SUPPLIER 
 01-02-2023,Adults,Matrix SCM Ltd,Agency Staff,608.40,0.00,COMMERCIAL SUPPLIER 
 15-02-2023,Adults,Matrix SCM Ltd,Agency Staff,608.42,0.00,COMMERCIAL SUPPLIER 
 22-02-2023,Adults,Matrix SCM Ltd,Agency Staff,608.42,0.00,COMMERCIAL SUPPLIER 
 01-02-2023,Adults,Matrix SCM Ltd,Agency Staff,610.91,0.00,COMMERCIAL SUPPLIER 
 08-02-2023,Adults,Matrix SCM Ltd,Agency Staff,610.91,0.00,COMMERCIAL SUPPLIER 
 15-02-2023,Adults,Matrix SCM Ltd,Agency Staff,610.91,0.00,COMMERCIAL SUPPLIER 
 22-02-2023,Adults,Matrix SCM Ltd,Agency Staff,610.91,0.00,COMMERCIAL SUPPLIER 
 08-02-2023,Adults,Matrix SCM Ltd,Agency Staff,637.12,0.00,COMMERCIAL SUPPLIER 
 08-02-2023,Adults,Matrix SCM Ltd,Agency Staff,673.22,0.00,COMMERCIAL SUPPLIER 
 15-02-2023,Adults,Matrix SCM Ltd,Agency Staff,673.22,0.00,COMMERCIAL SUPPLIER 
 22-02-2023,Adults,Matrix SCM Ltd,Agency Staff,673.22,0.00,COMMERCIAL SUPPLIER 
 01-02-2023,Adults,Matrix SCM Ltd,Agency Staff,677.89,0.00,COMMERCIAL SUPPLIER 
 01-02-2023,Adults,Matrix SCM Ltd,Agency Staff,696.61,0.00,COMMERCIAL SUPPLIER 
 01-02-2023,Adults,Matrix SCM Ltd,Agency Staff,696.61,0.00,COMMERCIAL SUPPLIER 
 01-02-2023,Adults,Matrix SCM Ltd,Agency Staff,696.61,0.00,COMMERCIAL SUPPLIER 
 08-02-2023,Adults,Matrix SCM Ltd,Agency Staff,696.61,0.00,COMMERCIAL SUPPLIER 
 08-02-2023,Adults,Matrix SCM Ltd,Agency Staff,696.61,0.00,COMMERCIAL SUPPLIER 
 01-02-2023,Adults,Matrix SCM Ltd,Agency Staff,710.27,0.00,COMMERCIAL SUPPLIER 
 01-02-2023,Adults,Matrix SCM Ltd,Agency Staff,710.29,0.00,COMMERCIAL SUPPLIER 
 08-02-2023,Adults,Matrix SCM Ltd,Agency Staff,710.29,0.00,COMMERCIAL SUPPLIER 
 15-02-2023,Adults,Matrix SCM Ltd,Agency Staff,710.29,0.00,COMMERCIAL SUPPLIER 
 01-02-2023,Adults,Matrix SCM Ltd,Agency Staff,715.46,0.00,COMMERCIAL SUPPLIER 
 01-02-2023,Adults,Matrix SCM Ltd,Agency Staff,732.26,0.00,COMMERCIAL SUPPLIER 
 08-02-2023,Adults,Matrix SCM Ltd,Agency Staff,732.26,0.00,COMMERCIAL SUPPLIER 
 15-02-2023,Adults,Matrix SCM Ltd,Agency Staff,732.26,0.00,COMMERCIAL SUPPLIER 
 22-02-2023,Adults,Matrix SCM Ltd,Agency Staff,732.26,0.00,COMMERCIAL SUPPLIER 
 22-02-2023,Adults,Matrix SCM Ltd,Agency Staff,745.76,0.00,COMMERCIAL SUPPLIER 
 01-02-2023,Adults,Matrix SCM Ltd,Agency Staff,758.56,0.00,COMMERCIAL SUPPLIER 
 15-02-2023,Adults,Matrix SCM Ltd,Agency Staff,768.94,0.00,COMMERCIAL SUPPLIER 
 22-02-2023,Adults,Matrix SCM Ltd,Agency Staff,774.90,0.00,COMMERCIAL SUPPLIER 
 08-02-2023,Adults,Matrix SCM Ltd,Agency Staff,780.58,0.00,COMMERCIAL SUPPLIER 
 22-02-2023,Adults,Matrix SCM Ltd,Agency Staff,780.58,0.00,COMMERCIAL SUPPLIER 
 01-02-2023,Adults,Matrix SCM Ltd,Agency Staff,790.91,0.00,COMMERCIAL SUPPLIER 
 01-02-2023,Adults,Matrix SCM Ltd,Agency Staff,790.91,0.00,COMMERCIAL SUPPLIER 
 08-02-2023,Adults,Matrix SCM Ltd,Agency Staff,790.91,0.00,COMMERCIAL SUPPLIER 
 08-02-2023,Adults,Matrix SCM Ltd,Agency Staff,790.91,0.00,COMMERCIAL SUPPLIER 
 08-02-2023,Adults,Matrix SCM Ltd,Agency Staff,790.91,0.00,COMMERCIAL SUPPLIER 
 15-02-2023,Adults,Matrix SCM Ltd,Agency Staff,790.91,0.00,COMMERCIAL SUPPLIER 
 15-02-2023,Adults,Matrix SCM Ltd,Agency Staff,790.91,0.00,COMMERCIAL SUPPLIER 
 15-02-2023,Adults,Matrix SCM Ltd,Agency Staff,790.91,0.00,COMMERCIAL SUPPLIER 
 15-02-2023,Adults,Matrix SCM Ltd,Agency Staff,790.91,0.00,COMMERCIAL SUPPLIER 
 22-02-2023,Adults,Matrix SCM Ltd,Agency Staff,790.91,0.00,COMMERCIAL SUPPLIER 
 22-02-2023,Adults,Matrix SCM Ltd,Agency Staff,790.91,0.00,COMMERCIAL SUPPLIER 
 22-02-2023,Adults,Matrix SCM Ltd,Agency Staff,790.91,0.00,COMMERCIAL SUPPLIER 
 22-02-2023,Adults,Matrix SCM Ltd,Agency Staff,790.91,0.00,COMMERCIAL SUPPLIER 
 22-02-2023,Adults,Matrix SCM Ltd,Agency Staff,790.93,0.00,COMMERCIAL SUPPLIER 
 01-02-2023,Adults,Matrix SCM Ltd,Agency Staff,834.74,0.00,COMMERCIAL SUPPLIER 
 01-02-2023,Adults,Matrix SCM Ltd,Agency Staff,834.74,0.00,COMMERCIAL SUPPLIER 
 15-02-2023,Adults,Matrix SCM Ltd,Agency Staff,834.74,0.00,COMMERCIAL SUPPLIER 
 01-02-2023,Adults,Matrix SCM Ltd,Agency Staff,842.75,0.00,COMMERCIAL SUPPLIER 
 01-02-2023,Adults,Matrix SCM Ltd,Agency Staff,842.75,0.00,COMMERCIAL SUPPLIER 
 22-02-2023,Adults,Matrix SCM Ltd,Agency Staff,906.48,0.00,COMMERCIAL SUPPLIER 
 01-02-2023,Adults,Matrix SCM Ltd,Agency Staff,906.50,0.00,COMMERCIAL SUPPLIER 
 01-02-2023,Adults,Matrix SCM Ltd,Agency Staff,910.08,0.00,COMMERCIAL SUPPLIER 
 08-02-2023,Adults,Matrix SCM Ltd,Agency Staff,910.08,0.00,COMMERCIAL SUPPLIER 
 15-02-2023,Adults,Matrix SCM Ltd,Agency Staff,910.08,0.00,COMMERCIAL SUPPLIER 
 08-02-2023,Adults,Matrix SCM Ltd,Agency Staff,999.92,0.00,COMMERCIAL SUPPLIER 
 15-02-2023,Adults,Matrix SCM Ltd,Agency Staff,1026.15,0.00,COMMERCIAL SUPPLIER 
 01-02-2023,Adults,Matrix SCM Ltd,Agency Staff,1060.26,0.00,COMMERCIAL SUPPLIER 
 22-02-2023,Adults,Matrix SCM Ltd,Agency Staff,1060.26,0.00,COMMERCIAL SUPPLIER 
 22-02-2023,Adults,Matrix SCM Ltd,Agency Staff,1095.88,0.00,COMMERCIAL SUPPLIER 
 22-02-2023,Adults,Matrix SCM Ltd,Agency Staff,1112.16,0.00,COMMERCIAL SUPPLIER 
 22-02-2023,Adults,Matrix SCM Ltd,Agency Staff,1146.46,0.00,COMMERCIAL SUPPLIER 
 01-02-2023,Adults,Matrix SCM Ltd,Agency Staff,1169.28,0.00,COMMERCIAL SUPPLIER 
 08-02-2023,Adults,Matrix SCM Ltd,Agency Staff,1169.28,0.00,COMMERCIAL SUPPLIER 
 15-02-2023,Adults,Matrix SCM Ltd,Agency Staff,1169.28,0.00,COMMERCIAL SUPPLIER 
 22-02-2023,Adults,Matrix SCM Ltd,Agency Staff,1169.28,0.00,COMMERCIAL SUPPLIER 
 01-02-2023,Adults,Matrix SCM Ltd,Agency Staff,1181.15,0.00,COMMERCIAL SUPPLIER 
 08-02-2023,Adults,Matrix SCM Ltd,Agency Staff,1181.15,0.00,COMMERCIAL SUPPLIER 
 15-02-2023,Adults,Matrix SCM Ltd,Agency Staff,1181.15,0.00,COMMERCIAL SUPPLIER 
 22-02-2023,Adults,Matrix SCM Ltd,Agency Staff,1181.15,0.00,COMMERCIAL SUPPLIER 
 01-02-2023,Adults,Matrix SCM Ltd,Agency Staff,1189.65,0.00,COMMERCIAL SUPPLIER 
 08-02-2023,Adults,Matrix SCM Ltd,Agency Staff,1189.65,0.00,COMMERCIAL SUPPLIER 
 15-02-2023,Adults,Matrix SCM Ltd,Agency Staff,1189.65,0.00,COMMERCIAL SUPPLIER 
 22-02-2023,Adults,Matrix SCM Ltd,Agency Staff,1189.65,0.00,COMMERCIAL SUPPLIER 
 01-02-2023,Adults,Matrix SCM Ltd,Agency Staff,1195.52,0.00,COMMERCIAL SUPPLIER 
 22-02-2023,Adults,Matrix SCM Ltd,Agency Staff,1206.80,0.00,COMMERCIAL SUPPLIER 
 01-02-2023,Adults,Matrix SCM Ltd,Agency Staff,1209.60,0.00,COMMERCIAL SUPPLIER 
 08-02-2023,Adults,Matrix SCM Ltd,Agency Staff,1209.60,0.00,COMMERCIAL SUPPLIER 
 15-02-2023,Adults,Matrix SCM Ltd,Agency Staff,1209.60,0.00,COMMERCIAL SUPPLIER 
 08-02-2023,Adults,Matrix SCM Ltd,Agency Staff,1224.04,0.00,COMMERCIAL SUPPLIER 
 08-02-2023,Adults,Matrix SCM Ltd,Agency Staff,1225.40,0.00,COMMERCIAL SUPPLIER 
 01-02-2023,Adults,Matrix SCM Ltd,Agency Staff,1228.32,0.00,COMMERCIAL SUPPLIER 
 08-02-2023,Adults,Matrix SCM Ltd,Agency Staff,1228.32,0.00,COMMERCIAL SUPPLIER 
 15-02-2023,Adults,Matrix SCM Ltd,Agency Staff,1228.32,0.00,COMMERCIAL SUPPLIER 
 22-02-2023,Adults,Matrix SCM Ltd,Agency Staff,1228.32,0.00,COMMERCIAL SUPPLIER 
 01-02-2023,Adults,Matrix SCM Ltd,Agency Staff,1231.46,0.00,COMMERCIAL SUPPLIER 
 01-02-2023,Adults,Matrix SCM Ltd,Agency Staff,1235.52,0.00,COMMERCIAL SUPPLIER 
 08-02-2023,Adults,Matrix SCM Ltd,Agency Staff,1235.52,0.00,COMMERCIAL SUPPLIER 
 15-02-2023,Adults,Matrix SCM Ltd,Agency Staff,1235.52,0.00,COMMERCIAL SUPPLIER 
 01-02-2023,Adults,Matrix SCM Ltd,Agency Staff,1241.28,0.00,COMMERCIAL SUPPLIER 
 01-02-2023,Adults,Matrix SCM Ltd,Agency Staff,1241.28,0.00,COMMERCIAL SUPPLIER 
 01-02-2023,Adults,Matrix SCM Ltd,Agency Staff,1241.28,0.00,COMMERCIAL SUPPLIER 
 01-02-2023,Adults,Matrix SCM Ltd,Agency Staff,1241.28,0.00,COMMERCIAL SUPPLIER 
 01-02-2023,Adults,Matrix SCM Ltd,Agency Staff,1241.28,0.00,COMMERCIAL SUPPLIER 
 01-02-2023,Adults,Matrix SCM Ltd,Agency Staff,1241.28,0.00,COMMERCIAL SUPPLIER 
 01-02-2023,Adults,Matrix SCM Ltd,Agency Staff,1241.28,0.00,COMMERCIAL SUPPLIER 
 01-02-2023,Adults,Matrix SCM Ltd,Agency Staff,1241.28,0.00,COMMERCIAL SUPPLIER 
 01-02-2023,Adults,Matrix SCM Ltd,Agency Staff,1241.28,0.00,COMMERCIAL SUPPLIER 
 01-02-2023,Adults,Matrix SCM Ltd,Agency Staff,1241.28,0.00,COMMERCIAL SUPPLIER 
 01-02-2023,Adults,Matrix SCM Ltd,Agency Staff,1241.28,0.00,COMMERCIAL SUPPLIER 
 08-02-2023,Adults,Matrix SCM Ltd,Agency Staff,1241.28,0.00,COMMERCIAL SUPPLIER 
 08-02-2023,Adults,Matrix SCM Ltd,Agency Staff,1241.28,0.00,COMMERCIAL SUPPLIER 
 08-02-2023,Adults,Matrix SCM Ltd,Agency Staff,1241.28,0.00,COMMERCIAL SUPPLIER 
 08-02-2023,Adults,Matrix SCM Ltd,Agency Staff,1241.28,0.00,COMMERCIAL SUPPLIER 
 08-02-2023,Adults,Matrix SCM Ltd,Agency Staff,1241.28,0.00,COMMERCIAL SUPPLIER 
 08-02-2023,Adults,Matrix SCM Ltd,Agency Staff,1241.28,0.00,COMMERCIAL SUPPLIER 
 08-02-2023,Adults,Matrix SCM Ltd,Agency Staff,1241.28,0.00,COMMERCIAL SUPPLIER 
 08-02-2023,Adults,Matrix SCM Ltd,Agency Staff,1241.28,0.00,COMMERCIAL SUPPLIER 
 08-02-2023,Adults,Matrix SCM Ltd,Agency Staff,1241.28,0.00,COMMERCIAL SUPPLIER 
 15-02-2023,Adults,Matrix SCM Ltd,Agency Staff,1241.28,0.00,COMMERCIAL SUPPLIER 
 15-02-2023,Adults,Matrix SCM Ltd,Agency Staff,1241.28,0.00,COMMERCIAL SUPPLIER 
 15-02-2023,Adults,Matrix SCM Ltd,Agency Staff,1241.28,0.00,COMMERCIAL SUPPLIER 
 15-02-2023,Adults,Matrix SCM Ltd,Agency Staff,1241.28,0.00,COMMERCIAL SUPPLIER 
 15-02-2023,Adults,Matrix SCM Ltd,Agency Staff,1241.28,0.00,COMMERCIAL SUPPLIER 
 15-02-2023,Adults,Matrix SCM Ltd,Agency Staff,1241.28,0.00,COMMERCIAL SUPPLIER 
 15-02-2023,Adults,Matrix SCM Ltd,Agency Staff,1241.28,0.00,COMMERCIAL SUPPLIER 
 15-02-2023,Adults,Matrix SCM Ltd,Agency Staff,1241.28,0.00,COMMERCIAL SUPPLIER 
 15-02-2023,Adults,Matrix SCM Ltd,Agency Staff,1241.28,0.00,COMMERCIAL SUPPLIER 
 15-02-2023,Adults,Matrix SCM Ltd,Agency Staff,1241.28,0.00,COMMERCIAL SUPPLIER 
 22-02-2023,Adults,Matrix SCM Ltd,Agency Staff,1241.28,0.00,COMMERCIAL SUPPLIER 
 22-02-2023,Adults,Matrix SCM Ltd,Agency Staff,1241.28,0.00,COMMERCIAL SUPPLIER 
 22-02-2023,Adults,Matrix SCM Ltd,Agency Staff,1241.28,0.00,COMMERCIAL SUPPLIER 
 22-02-2023,Adults,Matrix SCM Ltd,Agency Staff,1241.28,0.00,COMMERCIAL SUPPLIER 
 22-02-2023,Adults,Matrix SCM Ltd,Agency Staff,1241.28,0.00,COMMERCIAL SUPPLIER 
 22-02-2023,Adults,Matrix SCM Ltd,Agency Staff,1241.28,0.00,COMMERCIAL SUPPLIER 
 22-02-2023,Adults,Matrix SCM Ltd,Agency Staff,1241.28,0.00,COMMERCIAL SUPPLIER 
 01-02-2023,Adults,Matrix SCM Ltd,Agency Staff,1273.31,0.00,COMMERCIAL SUPPLIER 
 08-02-2023,Adults,Matrix SCM Ltd,Agency Staff,1273.31,0.00,COMMERCIAL SUPPLIER 
 15-02-2023,Adults,Matrix SCM Ltd,Agency Staff,1273.31,0.00,COMMERCIAL SUPPLIER 
 22-02-2023,Adults,Matrix SCM Ltd,Agency Staff,1273.31,0.00,COMMERCIAL SUPPLIER 
 01-02-2023,Adults,Matrix SCM Ltd,Agency Staff,1274.05,0.00,COMMERCIAL SUPPLIER 
 08-02-2023,Adults,Matrix SCM Ltd,Agency Staff,1274.05,0.00,COMMERCIAL SUPPLIER 
 15-02-2023,Adults,Matrix SCM Ltd,Agency Staff,1274.05,0.00,COMMERCIAL SUPPLIER 
 22-02-2023,Adults,Matrix SCM Ltd,Agency Staff,1274.05,0.00,COMMERCIAL SUPPLIER 
 01-02-2023,Adults,Matrix SCM Ltd,Agency Staff,1275.84,0.00,COMMERCIAL SUPPLIER 
 08-02-2023,Adults,Matrix SCM Ltd,Agency Staff,1275.84,0.00,COMMERCIAL SUPPLIER 
 15-02-2023,Adults,Matrix SCM Ltd,Agency Staff,1275.84,0.00,COMMERCIAL SUPPLIER 
 22-02-2023,Adults,Matrix SCM Ltd,Agency Staff,1275.84,0.00,COMMERCIAL SUPPLIER 
 01-02-2023,Adults,Matrix SCM Ltd,Agency Staff,1281.60,0.00,COMMERCIAL SUPPLIER 
 15-02-2023,Adults,Matrix SCM Ltd,Agency Staff,1281.60,0.00,COMMERCIAL SUPPLIER 
 15-02-2023,Adults,Matrix SCM Ltd,Agency Staff,1281.60,0.00,COMMERCIAL SUPPLIER 
 22-02-2023,Adults,Matrix SCM Ltd,Agency Staff,1281.60,0.00,COMMERCIAL SUPPLIER 
 01-02-2023,Adults,Matrix SCM Ltd,Agency Staff,1282.34,0.00,COMMERCIAL SUPPLIER 
 08-02-2023,Adults,Matrix SCM Ltd,Agency Staff,1282.34,0.00,COMMERCIAL SUPPLIER 
 08-02-2023,Adults,Matrix SCM Ltd,Agency Staff,1282.34,0.00,COMMERCIAL SUPPLIER 
 08-02-2023,Adults,Matrix SCM Ltd,Agency Staff,1282.34,0.00,COMMERCIAL SUPPLIER 
 08-02-2023,Adults,Matrix SCM Ltd,Agency Staff,1282.34,0.00,COMMERCIAL SUPPLIER 
 08-02-2023,Adults,Matrix SCM Ltd,Agency Staff,1282.34,0.00,COMMERCIAL SUPPLIER 
 15-02-2023,Adults,Matrix SCM Ltd,Agency Staff,1282.34,0.00,COMMERCIAL SUPPLIER 
 15-02-2023,Adults,Matrix SCM Ltd,Agency Staff,1282.34,0.00,COMMERCIAL SUPPLIER 
 22-02-2023,Adults,Matrix SCM Ltd,Agency Staff,1282.34,0.00,COMMERCIAL SUPPLIER 
 08-02-2023,Adults,Matrix SCM Ltd,Agency Staff,1286.60,0.00,COMMERCIAL SUPPLIER 
 15-02-2023,Adults,Matrix SCM Ltd,Agency Staff,1286.60,0.00,COMMERCIAL SUPPLIER 
 22-02-2023,Adults,Matrix SCM Ltd,Agency Staff,1286.60,0.00,COMMERCIAL SUPPLIER 
 01-02-2023,Adults,Matrix SCM Ltd,Agency Staff,1350.02,0.00,COMMERCIAL SUPPLIER 
 15-02-2023,Adults,Matrix SCM Ltd,Agency Staff,1350.02,0.00,COMMERCIAL SUPPLIER 
 01-02-2023,Adults,Matrix SCM Ltd,Agency Staff,1384.58,0.00,COMMERCIAL SUPPLIER 
 01-02-2023,Adults,Matrix SCM Ltd,Agency Staff,1395.73,0.00,COMMERCIAL SUPPLIER 
 08-02-2023,Adults,Matrix SCM Ltd,Agency Staff,1395.73,0.00,COMMERCIAL SUPPLIER 
 22-02-2023,Adults,Matrix SCM Ltd,Agency Staff,1395.73,0.00,COMMERCIAL SUPPLIER 
 01-02-2023,Adults,Matrix SCM Ltd,Agency Staff,1436.42,0.00,COMMERCIAL SUPPLIER 
 01-02-2023,Adults,Matrix SCM Ltd,Agency Staff,1436.42,0.00,COMMERCIAL SUPPLIER 
 15-02-2023,Adults,Matrix SCM Ltd,Agency Staff,1436.42,0.00,COMMERCIAL SUPPLIER 
 15-02-2023,Adults,Matrix SCM Ltd,Agency Staff,1436.42,0.00,COMMERCIAL SUPPLIER 
 22-02-2023,Adults,Matrix SCM Ltd,Agency Staff,1436.42,0.00,COMMERCIAL SUPPLIER 
 15-02-2023,Adults,Matrix SCM Ltd,Agency Staff,1499.20,0.00,COMMERCIAL SUPPLIER 
 22-02-2023,Adults,Matrix SCM Ltd,Agency Staff,1499.20,0.00,COMMERCIAL SUPPLIER 
 01-02-2023,Adults,Matrix SCM Ltd,Agency Staff,1686.60,0.00,COMMERCIAL SUPPLIER 
 15-02-2023,Adults,Matrix SCM Ltd,Agency Staff,1686.60,0.00,COMMERCIAL SUPPLIER 
 01-02-2023,Adults,Matrix SCM Ltd,Agency Staff,1744.00,0.00,COMMERCIAL SUPPLIER 
 08-02-2023,Adults,Matrix SCM Ltd,Agency Staff,1744.00,0.00,COMMERCIAL SUPPLIER 
 15-02-2023,Adults,Matrix SCM Ltd,Agency Staff,1836.52,0.00,COMMERCIAL SUPPLIER 
 22-02-2023,Adults,Matrix SCM Ltd,Agency Staff,1948.96,0.00,COMMERCIAL SUPPLIER 
 17-02-2023,Adults,Prepaid Financial Services 266 Corporate,Books Publications And Resources,500.00,0.00,COMMERCIAL SUPPLIER 
 02-02-2023,Adults,R M Complete Services Ltd,Cleaning Services,995.00,0.00,CIS 
 08-02-2023,Adults,Romford Private Hire Ltd,Client Transport,600.00,0.00,COMMERCIAL SUPPLIER 
 15-02-2023,Adults,Mayflower Travel,Client Transport,688.00,0.00,COMMERCIAL SUPPLIER 
 04-02-2023,Adults,Star Mini Cabs.,Client Transport,1120.00,0.00,COMMERCIAL SUPPLIER 
 07-02-2023,Adults,Romford Private Hire Ltd,Client Transport,1320.00,0.00,COMMERCIAL SUPPLIER 
 08-02-2023,Adults,Romford Private Hire Ltd,Client Transport,1530.00,0.00,COMMERCIAL SUPPLIER 
 08-02-2023,Adults,Romford Private Hire Ltd,Client Transport,2940.00,0.00,COMMERCIAL SUPPLIER 
 08-02-2023,Adults,Romford Private Hire Ltd,Client Transport,3255.00,0.00,COMMERCIAL SUPPLIER 
 15-02-2023,Adults,Mayflower Travel,Client Transport,3360.00,0.00,COMMERCIAL SUPPLIER 
 10-02-2023,Adults,Gims Care Solution Ltd_a,Contributions From Health (Income),961.16,0.00,NON COMMERCIAL SUPPLIER 
 10-02-2023,Adults,Gims Care Solution Ltd_a,Contributions From Health (Income),4485.39,0.00,NON COMMERCIAL SUPPLIER 
 10-02-2023,Adults,Gims Care Solution Ltd_a,Contributions From Health (Income),4485.39,0.00,NON COMMERCIAL SUPPLIER 
 10-02-2023,Adults,Gims Care Solution Ltd_a,Contributions From Health (Income),4485.39,0.00,NON COMMERCIAL SUPPLIER 
 10-02-2023,Adults,Gims Care Solution Ltd_a,Contributions From Health (Income),4485.39,0.00,NON COMMERCIAL SUPPLIER 
 27-02-2023,Adults,The Camden Society,Daycare - Private Contractors Payment,520.00,0.00,NON COMMERCIAL SUPPLIER 
 02-02-2023,Adults,Funky Willows Ltd,Daycare - Private Contractors Payment,576.00,0.00,COMMERCIAL SUPPLIER 
 13-02-2023,Adults,R G Care Ltd ,Daycare - Private Contractors Payment,600.00,0.00,COMMERCIAL SUPPLIER 
 27-02-2023,Adults,Tapestry_a.,Daycare - Private Contractors Payment,627.00,0.00,COMMERCIAL SUPPLIER 
 14-02-2023,Adults,Pristine Care London Ltd ,Daycare - Private Contractors Payment,660.00,0.00,COMMERCIAL SUPPLIER 
 27-02-2023,Adults,Tapestry_a.,Daycare - Private Contractors Payment,684.00,0.00,COMMERCIAL SUPPLIER 
 27-02-2023,Adults,Tapestry_a.,Daycare - Private Contractors Payment,684.00,0.00,COMMERCIAL SUPPLIER 
 27-02-2023,Adults,Tapestry_a.,Daycare - Private Contractors Payment,684.00,0.00,COMMERCIAL SUPPLIER 
 27-02-2023,Adults,Tapestry_a.,Daycare - Private Contractors Payment,684.00,0.00,COMMERCIAL SUPPLIER 
 27-02-2023,Adults,Tapestry_a.,Daycare - Private Contractors Payment,684.00,0.00,COMMERCIAL SUPPLIER 
 27-02-2023,Adults,Tapestry_a.,Daycare - Private Contractors Payment,684.00,0.00,COMMERCIAL SUPPLIER 
 27-02-2023,Adults,Tapestry_a.,Daycare - Private Contractors Payment,684.00,0.00,COMMERCIAL SUPPLIER 
 27-02-2023,Adults,Tapestry_a.,Daycare - Private Contractors Payment,684.00,0.00,COMMERCIAL SUPPLIER 
 06-02-2023,Adults,London Borough of Barking & Dagenham_a,Daycare - Private Contractors Payment,720.00,0.00,LOCAL AUTHORITY SERVICES 
 27-02-2023,Adults,Eastway Care Ltd_a,Daycare - Private Contractors Payment,860.00,0.00,COMMERCIAL SUPPLIER 
 27-02-2023,Adults,Eastway Care Ltd_a,Daycare - Private Contractors Payment,860.00,0.00,COMMERCIAL SUPPLIER 
 27-02-2023,Adults,Eastway Care Ltd_a,Daycare - Private Contractors Payment,860.00,0.00,COMMERCIAL SUPPLIER 
 27-02-2023,Adults,Eastway Care Ltd_a,Daycare - Private Contractors Payment,860.00,0.00,COMMERCIAL SUPPLIER 
 27-02-2023,Adults,Eastway Care Ltd_a,Daycare - Private Contractors Payment,860.00,0.00,COMMERCIAL SUPPLIER 
 14-02-2023,Adults,R G Care Ltd ,Daycare - Private Contractors Payment,864.00,0.00,COMMERCIAL SUPPLIER 
 14-02-2023,Adults,R G Care Ltd ,Daycare - Private Contractors Payment,864.00,0.00,COMMERCIAL SUPPLIER 
 14-02-2023,Adults,R G Care Ltd ,Daycare - Private Contractors Payment,864.00,0.00,COMMERCIAL SUPPLIER 
 27-02-2023,Adults,Tapestry_a.,Daycare - Private Contractors Payment,912.00,0.00,COMMERCIAL SUPPLIER 
 27-02-2023,Adults,Tapestry_a.,Daycare - Private Contractors Payment,912.00,0.00,COMMERCIAL SUPPLIER 
 02-02-2023,Adults,Funky Willows Ltd,Daycare - Private Contractors Payment,936.00,0.00,COMMERCIAL SUPPLIER 
 17-02-2023,Adults,Trinity London Care Ltd,Daycare - Private Contractors Payment,1025.20,0.00,COMMERCIAL SUPPLIER 
 17-02-2023,Adults,Trinity London Care Ltd,Daycare - Private Contractors Payment,1025.20,0.00,COMMERCIAL SUPPLIER 
 17-02-2023,Adults,Trinity London Care Ltd,Daycare - Private Contractors Payment,1025.20,0.00,COMMERCIAL SUPPLIER 
 27-02-2023,Adults,Tapestry_a.,Daycare - Private Contractors Payment,1083.00,0.00,COMMERCIAL SUPPLIER 
 27-02-2023,Adults,Tapestry_a.,Daycare - Private Contractors Payment,1083.00,0.00,COMMERCIAL SUPPLIER 
 27-02-2023,Adults,Tapestry_a.,Daycare - Private Contractors Payment,1140.00,0.00,COMMERCIAL SUPPLIER 
 27-02-2023,Adults,Tapestry_a.,Daycare - Private Contractors Payment,1140.00,0.00,COMMERCIAL SUPPLIER 
 14-02-2023,Adults,Pristine Care London Ltd ,Daycare - Private Contractors Payment,1155.00,0.00,COMMERCIAL SUPPLIER 
 03-02-2023,Adults,Be You,Daycare - Private Contractors Payment,1260.00,0.00,NON COMMERCIAL SUPPLIER 
 27-02-2023,Adults,Tapestry_a.,Daycare - Private Contractors Payment,1368.00,0.00,COMMERCIAL SUPPLIER 
 27-02-2023,Adults,Eastway Care Ltd_a,Daycare - Private Contractors Payment,1380.00,0.00,COMMERCIAL SUPPLIER 
 06-02-2023,Adults,London Borough of Barking & Dagenham_a,Daycare - Private Contractors Payment,1440.00,0.00,LOCAL AUTHORITY SERVICES 
 06-02-2023,Adults,London Borough of Barking & Dagenham_a,Daycare - Private Contractors Payment,1440.00,0.00,LOCAL AUTHORITY SERVICES 
 02-02-2023,Adults,Osborne Partnership,Daycare - Private Contractors Payment,1500.00,0.00,COMMERCIAL SUPPLIER 
 14-02-2023,Adults,Thurrock Lifestyle Solutions CIC,Daycare - Private Contractors Payment,1552.96,0.00,COMMERCIAL SUPPLIER 
 03-02-2023,Adults,Be You,Daycare - Private Contractors Payment,1980.00,0.00,NON COMMERCIAL SUPPLIER 
 13-02-2023,Adults,R G Care Ltd ,Daycare - Private Contractors Payment,2000.00,0.00,COMMERCIAL SUPPLIER 
 17-02-2023,Adults,Trinity London Care Ltd,Daycare - Private Contractors Payment,2050.00,0.00,COMMERCIAL SUPPLIER 
 17-02-2023,Adults,Trinity London Care Ltd,Daycare - Private Contractors Payment,2050.00,0.00,COMMERCIAL SUPPLIER 
 17-02-2023,Adults,Trinity London Care Ltd,Daycare - Private Contractors Payment,2050.00,0.00,COMMERCIAL SUPPLIER 
 06-02-2023,Adults,London Borough of Barking & Dagenham_a,Daycare - Private Contractors Payment,2160.00,0.00,LOCAL AUTHORITY SERVICES 
 06-02-2023,Adults,London Borough of Barking & Dagenham_a,Daycare - Private Contractors Payment,2160.00,0.00,LOCAL AUTHORITY SERVICES 
 12-02-2023,Adults,Be You,Daycare - Private Contractors Payment,2160.00,0.00,NON COMMERCIAL SUPPLIER 
 27-02-2023,Adults,Eastway Care Ltd_a,Daycare - Private Contractors Payment,2580.00,0.00,COMMERCIAL SUPPLIER 
 27-02-2023,Adults,Eastway Care Ltd_a,Daycare - Private Contractors Payment,2580.00,0.00,COMMERCIAL SUPPLIER 
 27-02-2023,Adults,Eastway Care Ltd_a,Daycare - Private Contractors Payment,3100.00,0.00,COMMERCIAL SUPPLIER 
 14-02-2023,Adults,Thurrock Lifestyle Solutions CIC,Daycare - Private Contractors Payment,3168.00,0.00,COMMERCIAL SUPPLIER 
 27-02-2023,Adults,Eastway Care Ltd_a,Daycare - Private Contractors Payment,3440.00,0.00,COMMERCIAL SUPPLIER 
 27-02-2023,Adults,Eastway Care Ltd_a,Daycare - Private Contractors Payment,3440.00,0.00,COMMERCIAL SUPPLIER 
 06-02-2023,Adults,London Borough of Barking & Dagenham_a,Daycare - Private Contractors Payment,3600.00,0.00,LOCAL AUTHORITY SERVICES 
 06-02-2023,Adults,London Borough of Barking & Dagenham_a,Daycare - Private Contractors Payment,3600.00,0.00,LOCAL AUTHORITY SERVICES 
 06-02-2023,Adults,London Borough of Barking & Dagenham_a,Daycare - Private Contractors Payment,3600.00,0.00,LOCAL AUTHORITY SERVICES 
 06-02-2023,Adults,London Borough of Barking & Dagenham_a,Daycare - Private Contractors Payment,3600.00,0.00,LOCAL AUTHORITY SERVICES 
 27-02-2023,Adults,Eastway Care Ltd_a,Daycare - Private Contractors Payment,3850.00,0.00,COMMERCIAL SUPPLIER 
 14-02-2023,Adults,Thurrock Lifestyle Solutions CIC,Daycare - Private Contractors Payment,3882.60,0.00,COMMERCIAL SUPPLIER 
 14-02-2023,Adults,Thurrock Lifestyle Solutions CIC,Daycare - Private Contractors Payment,4098.30,0.00,COMMERCIAL SUPPLIER 
 27-02-2023,Adults,Eastway Care Ltd_a,Daycare - Private Contractors Payment,4300.00,0.00,COMMERCIAL SUPPLIER 
 27-02-2023,Adults,Eastway Care Ltd_a,Daycare - Private Contractors Payment,4300.00,0.00,COMMERCIAL SUPPLIER 
 27-02-2023,Adults,Eastway Care Ltd_a,Daycare - Private Contractors Payment,4300.00,0.00,COMMERCIAL SUPPLIER 
 27-02-2023,Adults,Eastway Care Ltd_a,Daycare - Private Contractors Payment,4300.00,0.00,COMMERCIAL SUPPLIER 
 28-02-2023,Adults,Personal Information � Redacted,Direct Payments Income,568.68,0.00,INDIVIDUALS 
 28-02-2023,Adults,Personal Information � Redacted,Direct Payments Income,710.64,0.00,INDIVIDUALS 
 28-02-2023,Adults,Personal Information � Redacted,Direct Payments Income,947.52,0.00,INDIVIDUALS 
 28-02-2023,Adults,Personal Information � Redacted,Direct Payments Income,947.52,0.00,INDIVIDUALS 
 28-02-2023,Adults,Personal Information � Redacted,Direct Payments Income,1421.28,0.00,INDIVIDUALS 
 28-02-2023,Adults,Personal Information � Redacted,Direct Payments Income,1895.04,0.00,INDIVIDUALS 
 28-02-2023,Adults,Personal Information � Redacted,Direct Payments Income,1895.04,0.00,INDIVIDUALS 
 28-02-2023,Adults,Personal Information � Redacted,Direct Payments Income,1895.04,0.00,INDIVIDUALS 
 28-02-2023,Adults,Personal Information � Redacted,Direct Payments Income,2274.72,0.00,INDIVIDUALS 
 27-02-2023,Adults,EDF Energy Customers Plc,Electricity,623.00,0.00,COMMERCIAL SUPPLIER 
 27-02-2023,Adults,EDF Energy Customers Plc,Electricity,965.86,0.00,COMMERCIAL SUPPLIER 
 20-02-2023,Adults,EDF Energy Customers Plc,Electricity,1199.19,0.00,COMMERCIAL SUPPLIER 
 20-02-2023,Adults,Lodge Group Care UK Ltd,Home Care - Private Contractors Payment,501.18,0.00,COMMERCIAL SUPPLIER 
 14-02-2023,Adults,Hospiva Care & Associates Agency Ltd_a,Home Care - Private Contractors Payment,502.50,0.00,COMMERCIAL SUPPLIER 
 20-02-2023,Adults,Lodge Group Care UK Ltd,Home Care - Private Contractors Payment,502.82,0.00,COMMERCIAL SUPPLIER 
 15-02-2023,Adults,Home Sweet Home Care Ltd,Home Care - Private Contractors Payment,505.78,0.00,COMMERCIAL SUPPLIER 
 09-02-2023,Adults,Home Support Services (Havering & Essex) Ltd,Home Care - Private Contractors Payment,506.43,0.00,COMMERCIAL SUPPLIER 
 26-02-2023,Adults,KJD Care Limited,Home Care - Private Contractors Payment,511.68,0.00,INDIVIDUALS 
 15-02-2023,Adults,Home Sweet Home Care Ltd,Home Care - Private Contractors Payment,517.26,0.00,COMMERCIAL SUPPLIER 
 14-02-2023,Adults,John Stanleys Care Agency Ltd,Home Care - Private Contractors Payment,520.86,0.00,COMMERCIAL SUPPLIER 
 01-02-2023,Adults,Prestige Care & Support Ltd,Home Care - Private Contractors Payment,521.52,0.00,COMMERCIAL SUPPLIER 
 15-02-2023,Adults,Prior Care Ltd_a,Home Care - Private Contractors Payment,524.47,0.00,COMMERCIAL SUPPLIER 
 15-02-2023,Adults,Morepower Ltd t/a Aqs Homecare,Home Care - Private Contractors Payment,525.13,0.00,COMMERCIAL SUPPLIER 
 20-02-2023,Adults,Lodge Group Care UK Ltd,Home Care - Private Contractors Payment,528.74,0.00,COMMERCIAL SUPPLIER 
 14-02-2023,Adults,Hospiva Care & Associates Agency Ltd_a,Home Care - Private Contractors Payment,531.36,0.00,COMMERCIAL SUPPLIER 
 15-02-2023,Adults,Morepower Ltd t/a Aqs Homecare,Home Care - Private Contractors Payment,531.36,0.00,COMMERCIAL SUPPLIER 
 15-02-2023,Adults,Home Sweet Home Care Ltd,Home Care - Private Contractors Payment,531.36,0.00,COMMERCIAL SUPPLIER 
 27-02-2023,Adults,Outreach Support Services Ltd,Home Care - Private Contractors Payment,531.36,0.00,COMMERCIAL SUPPLIER 
 10-02-2023,Adults,Quality Healthcare Solutions Ltd t/a Kare Plus Romford,Home Care - Private Contractors Payment,532.02,0.00,COMMERCIAL SUPPLIER 
 02-02-2023,Adults,Care-Away Ltd T/A Care Support,Home Care - Private Contractors Payment,532.48,0.00,COMMERCIAL SUPPLIER 
 14-02-2023,Adults,Hospiva Care & Associates Agency Ltd_a,Home Care - Private Contractors Payment,532.67,0.00,COMMERCIAL SUPPLIER 
 15-02-2023,Adults,Morepower Ltd t/a Aqs Homecare,Home Care - Private Contractors Payment,533.00,0.00,COMMERCIAL SUPPLIER 
 14-02-2023,Adults,John Stanleys Care Agency Ltd,Home Care - Private Contractors Payment,534.31,0.00,COMMERCIAL SUPPLIER 
 15-02-2023,Adults,Morepower Ltd t/a Aqs Homecare,Home Care - Private Contractors Payment,535.30,0.00,COMMERCIAL SUPPLIER 
 09-02-2023,Adults,Home Support Services (Havering & Essex) Ltd,Home Care - Private Contractors Payment,535.62,0.00,COMMERCIAL SUPPLIER 
 03-02-2023,Adults,Anytime Care 2020_a,Home Care - Private Contractors Payment,537.59,0.00,COMMERCIAL SUPPLIER 
 15-02-2023,Adults,Prior Care Ltd_a,Home Care - Private Contractors Payment,541.20,0.00,COMMERCIAL SUPPLIER 
 15-02-2023,Adults,Home Sweet Home Care Ltd,Home Care - Private Contractors Payment,541.20,0.00,COMMERCIAL SUPPLIER 
 15-02-2023,Adults,Home Sweet Home Care Ltd,Home Care - Private Contractors Payment,541.20,0.00,COMMERCIAL SUPPLIER 
 15-02-2023,Adults,Home Sweet Home Care Ltd,Home Care - Private Contractors Payment,541.20,0.00,COMMERCIAL SUPPLIER 
 15-02-2023,Adults,Home Sweet Home Care Ltd,Home Care - Private Contractors Payment,541.20,0.00,COMMERCIAL SUPPLIER 
 20-02-2023,Adults,Lodge Group Care UK Ltd,Home Care - Private Contractors Payment,541.20,0.00,COMMERCIAL SUPPLIER 
 28-02-2023,Adults,Prestige Care & Support Ltd,Home Care - Private Contractors Payment,541.20,0.00,COMMERCIAL SUPPLIER 
 09-02-2023,Adults,Home Support Services (Havering & Essex) Ltd,Home Care - Private Contractors Payment,541.53,0.00,COMMERCIAL SUPPLIER 
 09-02-2023,Adults,Home Support Services (Havering & Essex) Ltd,Home Care - Private Contractors Payment,541.53,0.00,COMMERCIAL SUPPLIER 
 09-02-2023,Adults,Home Support Services (Havering & Essex) Ltd,Home Care - Private Contractors Payment,542.51,0.00,COMMERCIAL SUPPLIER 
 09-02-2023,Adults,Home Support Services (Havering & Essex) Ltd,Home Care - Private Contractors Payment,543.50,0.00,COMMERCIAL SUPPLIER 
 01-02-2023,Adults,Prestige Care & Support Ltd,Home Care - Private Contractors Payment,543.82,0.00,COMMERCIAL SUPPLIER 
 20-02-2023,Adults,Lodge Group Care UK Ltd,Home Care - Private Contractors Payment,544.15,0.00,COMMERCIAL SUPPLIER 
 15-02-2023,Adults,Home Sweet Home Care Ltd,Home Care - Private Contractors Payment,544.81,0.00,COMMERCIAL SUPPLIER 
 15-02-2023,Adults,Home Sweet Home Care Ltd,Home Care - Private Contractors Payment,545.46,0.00,COMMERCIAL SUPPLIER 
 15-02-2023,Adults,Morepower Ltd t/a Aqs Homecare,Home Care - Private Contractors Payment,550.38,0.00,COMMERCIAL SUPPLIER 
 01-02-2023,Adults,Prestige Care & Support Ltd,Home Care - Private Contractors Payment,551.04,0.00,COMMERCIAL SUPPLIER 
 01-02-2023,Adults,Prestige Care & Support Ltd,Home Care - Private Contractors Payment,551.04,0.00,COMMERCIAL SUPPLIER 
 01-02-2023,Adults,Prestige Care & Support Ltd,Home Care - Private Contractors Payment,551.04,0.00,COMMERCIAL SUPPLIER 
 02-02-2023,Adults,KJD Care Limited,Home Care - Private Contractors Payment,551.04,0.00,INDIVIDUALS 
 02-02-2023,Adults,KJD Care Limited,Home Care - Private Contractors Payment,551.04,0.00,INDIVIDUALS 
 09-02-2023,Adults,Home Support Services (Havering & Essex) Ltd,Home Care - Private Contractors Payment,551.04,0.00,COMMERCIAL SUPPLIER 
 09-02-2023,Adults,Home Support Services (Havering & Essex) Ltd,Home Care - Private Contractors Payment,551.04,0.00,COMMERCIAL SUPPLIER 
 09-02-2023,Adults,Home Support Services (Havering & Essex) Ltd,Home Care - Private Contractors Payment,551.04,0.00,COMMERCIAL SUPPLIER 
 09-02-2023,Adults,Home Support Services (Havering & Essex) Ltd,Home Care - Private Contractors Payment,551.04,0.00,COMMERCIAL SUPPLIER 
 09-02-2023,Adults,Home Support Services (Havering & Essex) Ltd,Home Care - Private Contractors Payment,551.04,0.00,COMMERCIAL SUPPLIER 
 09-02-2023,Adults,Home Support Services (Havering & Essex) Ltd,Home Care - Private Contractors Payment,551.04,0.00,COMMERCIAL SUPPLIER 
 10-02-2023,Adults,Passion Tree Care Services Ltd,Home Care - Private Contractors Payment,551.04,0.00,COMMERCIAL SUPPLIER 
 10-02-2023,Adults,Passion Tree Care Services Ltd,Home Care - Private Contractors Payment,551.04,0.00,COMMERCIAL SUPPLIER 
 10-02-2023,Adults,Passion Tree Care Services Ltd,Home Care - Private Contractors Payment,551.04,0.00,COMMERCIAL SUPPLIER 
 10-02-2023,Adults,Passion Tree Care Services Ltd,Home Care - Private Contractors Payment,551.04,0.00,COMMERCIAL SUPPLIER 
 10-02-2023,Adults,Passion Tree Care Services Ltd,Home Care - Private Contractors Payment,551.04,0.00,COMMERCIAL SUPPLIER 
 15-02-2023,Adults,Prior Care Ltd_a,Home Care - Private Contractors Payment,551.04,0.00,COMMERCIAL SUPPLIER 
 15-02-2023,Adults,Morepower Ltd t/a Aqs Homecare,Home Care - Private Contractors Payment,551.04,0.00,COMMERCIAL SUPPLIER 
 15-02-2023,Adults,Home Sweet Home Care Ltd,Home Care - Private Contractors Payment,551.04,0.00,COMMERCIAL SUPPLIER 
 15-02-2023,Adults,Home Sweet Home Care Ltd,Home Care - Private Contractors Payment,551.04,0.00,COMMERCIAL SUPPLIER 
 15-02-2023,Adults,Home Sweet Home Care Ltd,Home Care - Private Contractors Payment,551.04,0.00,COMMERCIAL SUPPLIER 
 20-02-2023,Adults,Lodge Group Care UK Ltd,Home Care - Private Contractors Payment,551.04,0.00,COMMERCIAL SUPPLIER 
 20-02-2023,Adults,Lodge Group Care UK Ltd,Home Care - Private Contractors Payment,551.04,0.00,COMMERCIAL SUPPLIER 
 20-02-2023,Adults,Lodge Group Care UK Ltd,Home Care - Private Contractors Payment,551.04,0.00,COMMERCIAL SUPPLIER 
 20-02-2023,Adults,Lodge Group Care UK Ltd,Home Care - Private Contractors Payment,551.04,0.00,COMMERCIAL SUPPLIER 
 20-02-2023,Adults,Lodge Group Care UK Ltd,Home Care - Private Contractors Payment,551.04,0.00,COMMERCIAL SUPPLIER 
 20-02-2023,Adults,Lodge Group Care UK Ltd,Home Care - Private Contractors Payment,551.04,0.00,COMMERCIAL SUPPLIER 
 26-02-2023,Adults,KJD Care Limited,Home Care - Private Contractors Payment,551.04,0.00,INDIVIDUALS 
 26-02-2023,Adults,KJD Care Limited,Home Care - Private Contractors Payment,551.04,0.00,INDIVIDUALS 
 27-02-2023,Adults,Outreach Support Services Ltd,Home Care - Private Contractors Payment,551.04,0.00,COMMERCIAL SUPPLIER 
 27-02-2023,Adults,Outreach Support Services Ltd,Home Care - Private Contractors Payment,551.04,0.00,COMMERCIAL SUPPLIER 
 27-02-2023,Adults,London Homecare Ltd,Home Care - Private Contractors Payment,551.04,0.00,COMMERCIAL SUPPLIER 
 27-02-2023,Adults,London Homecare Ltd,Home Care - Private Contractors Payment,551.04,0.00,COMMERCIAL SUPPLIER 
 27-02-2023,Adults,London Homecare Ltd,Home Care - Private Contractors Payment,551.04,0.00,COMMERCIAL SUPPLIER 
 28-02-2023,Adults,Prestige Care & Support Ltd,Home Care - Private Contractors Payment,551.04,0.00,COMMERCIAL SUPPLIER 
 28-02-2023,Adults,Prestige Care & Support Ltd,Home Care - Private Contractors Payment,551.04,0.00,COMMERCIAL SUPPLIER 
 28-02-2023,Adults,Prestige Care & Support Ltd,Home Care - Private Contractors Payment,551.04,0.00,COMMERCIAL SUPPLIER 
 20-02-2023,Adults,Lodge Group Care UK Ltd,Home Care - Private Contractors Payment,551.37,0.00,COMMERCIAL SUPPLIER 
 03-02-2023,Adults,Anytime Care 2020_a,Home Care - Private Contractors Payment,551.70,0.00,COMMERCIAL SUPPLIER 
 09-02-2023,Adults,Home Support Services (Havering & Essex) Ltd,Home Care - Private Contractors Payment,552.02,0.00,COMMERCIAL SUPPLIER 
 09-02-2023,Adults,Home Support Services (Havering & Essex) Ltd,Home Care - Private Contractors Payment,552.02,0.00,COMMERCIAL SUPPLIER 
 14-02-2023,Adults,Hospiva Care & Associates Agency Ltd_a,Home Care - Private Contractors Payment,552.02,0.00,COMMERCIAL SUPPLIER 
 15-02-2023,Adults,Prior Care Ltd_a,Home Care - Private Contractors Payment,552.02,0.00,COMMERCIAL SUPPLIER 
 09-02-2023,Adults,Home Support Services (Havering & Essex) Ltd,Home Care - Private Contractors Payment,552.35,0.00,COMMERCIAL SUPPLIER 
 09-02-2023,Adults,Home Support Services (Havering & Essex) Ltd,Home Care - Private Contractors Payment,552.35,0.00,COMMERCIAL SUPPLIER 
 15-02-2023,Adults,Prior Care Ltd_a,Home Care - Private Contractors Payment,552.68,0.00,COMMERCIAL SUPPLIER 
 15-02-2023,Adults,Morepower Ltd t/a Aqs Homecare,Home Care - Private Contractors Payment,552.68,0.00,COMMERCIAL SUPPLIER 
 15-02-2023,Adults,Home Sweet Home Care Ltd,Home Care - Private Contractors Payment,553.34,0.00,COMMERCIAL SUPPLIER 
 15-02-2023,Adults,Home Sweet Home Care Ltd,Home Care - Private Contractors Payment,553.66,0.00,COMMERCIAL SUPPLIER 
 15-02-2023,Adults,Home Sweet Home Care Ltd,Home Care - Private Contractors Payment,553.99,0.00,COMMERCIAL SUPPLIER 
 28-02-2023,Adults,Prestige Care & Support Ltd,Home Care - Private Contractors Payment,553.99,0.00,COMMERCIAL SUPPLIER 
 15-02-2023,Adults,Home Sweet Home Care Ltd,Home Care - Private Contractors Payment,554.32,0.00,COMMERCIAL SUPPLIER 
 10-02-2023,Adults,Quality Healthcare Solutions Ltd t/a Kare Plus Romford,Home Care - Private Contractors Payment,554.65,0.00,COMMERCIAL SUPPLIER 
 15-02-2023,Adults,Prior Care Ltd_a,Home Care - Private Contractors Payment,554.65,0.00,COMMERCIAL SUPPLIER 
 01-02-2023,Adults,Prestige Care & Support Ltd,Home Care - Private Contractors Payment,555.63,0.00,COMMERCIAL SUPPLIER 
 09-02-2023,Adults,Home Support Services (Havering & Essex) Ltd,Home Care - Private Contractors Payment,555.63,0.00,COMMERCIAL SUPPLIER 
 09-02-2023,Adults,Home Support Services (Havering & Essex) Ltd,Home Care - Private Contractors Payment,555.96,0.00,COMMERCIAL SUPPLIER 
 28-02-2023,Adults,Prestige Care & Support Ltd,Home Care - Private Contractors Payment,556.62,0.00,COMMERCIAL SUPPLIER 
 15-02-2023,Adults,Prior Care Ltd_a,Home Care - Private Contractors Payment,557.27,0.00,COMMERCIAL SUPPLIER 
 15-02-2023,Adults,Home Sweet Home Care Ltd,Home Care - Private Contractors Payment,557.60,0.00,COMMERCIAL SUPPLIER 
 01-02-2023,Adults,Prestige Care & Support Ltd,Home Care - Private Contractors Payment,558.26,0.00,COMMERCIAL SUPPLIER 
 20-02-2023,Adults,Lodge Group Care UK Ltd,Home Care - Private Contractors Payment,558.26,0.00,COMMERCIAL SUPPLIER 
 15-02-2023,Adults,Home Sweet Home Care Ltd,Home Care - Private Contractors Payment,559.24,0.00,COMMERCIAL SUPPLIER 
 14-02-2023,Adults,Hospiva Care & Associates Agency Ltd_a,Home Care - Private Contractors Payment,559.90,0.00,COMMERCIAL SUPPLIER 
 09-02-2023,Adults,Home Support Services (Havering & Essex) Ltd,Home Care - Private Contractors Payment,560.55,0.00,COMMERCIAL SUPPLIER 
 09-02-2023,Adults,Home Support Services (Havering & Essex) Ltd,Home Care - Private Contractors Payment,560.88,0.00,COMMERCIAL SUPPLIER 
 15-02-2023,Adults,Home Sweet Home Care Ltd,Home Care - Private Contractors Payment,560.88,0.00,COMMERCIAL SUPPLIER 
 20-02-2023,Adults,Lodge Group Care UK Ltd,Home Care - Private Contractors Payment,560.88,0.00,COMMERCIAL SUPPLIER 
 09-02-2023,Adults,Home Support Services (Havering & Essex) Ltd,Home Care - Private Contractors Payment,561.21,0.00,COMMERCIAL SUPPLIER 
 10-02-2023,Adults,Quality Healthcare Solutions Ltd t/a Kare Plus Romford,Home Care - Private Contractors Payment,561.21,0.00,COMMERCIAL SUPPLIER 
 15-02-2023,Adults,Morepower Ltd t/a Aqs Homecare,Home Care - Private Contractors Payment,561.21,0.00,COMMERCIAL SUPPLIER 
 15-02-2023,Adults,Morepower Ltd t/a Aqs Homecare,Home Care - Private Contractors Payment,561.21,0.00,COMMERCIAL SUPPLIER 
 15-02-2023,Adults,Morepower Ltd t/a Aqs Homecare,Home Care - Private Contractors Payment,562.52,0.00,COMMERCIAL SUPPLIER 
 09-02-2023,Adults,Home Support Services (Havering & Essex) Ltd,Home Care - Private Contractors Payment,562.85,0.00,COMMERCIAL SUPPLIER 
 09-02-2023,Adults,Home Support Services (Havering & Essex) Ltd,Home Care - Private Contractors Payment,564.82,0.00,COMMERCIAL SUPPLIER 
 09-02-2023,Adults,Home Support Services (Havering & Essex) Ltd,Home Care - Private Contractors Payment,568.75,0.00,COMMERCIAL SUPPLIER 
 15-02-2023,Adults,Prior Care Ltd_a,Home Care - Private Contractors Payment,569.08,0.00,COMMERCIAL SUPPLIER 
 01-02-2023,Adults,Prestige Care & Support Ltd,Home Care - Private Contractors Payment,570.72,0.00,COMMERCIAL SUPPLIER 
 14-02-2023,Adults,John Stanleys Care Agency Ltd,Home Care - Private Contractors Payment,570.72,0.00,COMMERCIAL SUPPLIER 
 15-02-2023,Adults,Prior Care Ltd_a,Home Care - Private Contractors Payment,571.70,0.00,COMMERCIAL SUPPLIER 
 15-02-2023,Adults,Morepower Ltd t/a Aqs Homecare,Home Care - Private Contractors Payment,572.36,0.00,COMMERCIAL SUPPLIER 
 09-02-2023,Adults,Home Support Services (Havering & Essex) Ltd,Home Care - Private Contractors Payment,573.02,0.00,COMMERCIAL SUPPLIER 
 20-02-2023,Adults,Lodge Group Care UK Ltd,Home Care - Private Contractors Payment,573.67,0.00,COMMERCIAL SUPPLIER 
 26-02-2023,Adults,KJD Care Limited,Home Care - Private Contractors Payment,575.64,0.00,INDIVIDUALS 
 20-02-2023,Adults,Lodge Group Care UK Ltd,Home Care - Private Contractors Payment,575.97,0.00,COMMERCIAL SUPPLIER 
 20-02-2023,Adults,Lodge Group Care UK Ltd,Home Care - Private Contractors Payment,576.95,0.00,COMMERCIAL SUPPLIER 
 09-02-2023,Adults,Home Support Services (Havering & Essex) Ltd,Home Care - Private Contractors Payment,577.94,0.00,COMMERCIAL SUPPLIER 
 14-02-2023,Adults,John Stanleys Care Agency Ltd,Home Care - Private Contractors Payment,579.25,0.00,COMMERCIAL SUPPLIER 
 10-02-2023,Adults,London Care Plc_a,Home Care - Private Contractors Payment,579.90,0.00,COMMERCIAL SUPPLIER 
 09-02-2023,Adults,Home Support Services (Havering & Essex) Ltd,Home Care - Private Contractors Payment,580.23,0.00,COMMERCIAL SUPPLIER 
 15-02-2023,Adults,Home Sweet Home Care Ltd,Home Care - Private Contractors Payment,581.54,0.00,COMMERCIAL SUPPLIER 
 10-02-2023,Adults,Quality Healthcare Solutions Ltd t/a Kare Plus Romford,Home Care - Private Contractors Payment,581.87,0.00,COMMERCIAL SUPPLIER 
 02-02-2023,Adults,Care-Away Ltd T/A Care Support,Home Care - Private Contractors Payment,582.40,0.00,COMMERCIAL SUPPLIER 
 02-02-2023,Adults,Care-Away Ltd T/A Care Support,Home Care - Private Contractors Payment,582.40,0.00,COMMERCIAL SUPPLIER 
 14-02-2023,Adults,John Stanleys Care Agency Ltd,Home Care - Private Contractors Payment,586.14,0.00,COMMERCIAL SUPPLIER 
 10-02-2023,Adults,Quality Healthcare Solutions Ltd t/a Kare Plus Romford,Home Care - Private Contractors Payment,588.10,0.00,COMMERCIAL SUPPLIER 
 15-02-2023,Adults,Prior Care Ltd_a,Home Care - Private Contractors Payment,590.40,0.00,COMMERCIAL SUPPLIER 
 20-02-2023,Adults,Lodge Group Care UK Ltd,Home Care - Private Contractors Payment,590.40,0.00,COMMERCIAL SUPPLIER 
 27-02-2023,Adults,London Homecare Ltd,Home Care - Private Contractors Payment,590.40,0.00,COMMERCIAL SUPPLIER 
 08-02-2023,Adults,Care-Away Ltd T/A Care Support,Home Care - Private Contractors Payment,590.72,0.00,COMMERCIAL SUPPLIER 
 03-02-2023,Adults,Anytime Care 2020_a,Home Care - Private Contractors Payment,592.04,0.00,COMMERCIAL SUPPLIER 
 28-02-2023,Adults,Prestige Care & Support Ltd,Home Care - Private Contractors Payment,594.01,0.00,COMMERCIAL SUPPLIER 
 28-02-2023,Adults,Prestige Care & Support Ltd,Home Care - Private Contractors Payment,594.99,0.00,COMMERCIAL SUPPLIER 
 14-02-2023,Adults,John Stanleys Care Agency Ltd,Home Care - Private Contractors Payment,595.98,0.00,COMMERCIAL SUPPLIER 
 01-02-2023,Adults,Prestige Care & Support Ltd,Home Care - Private Contractors Payment,596.63,0.00,COMMERCIAL SUPPLIER 
 28-02-2023,Adults,Prestige Care & Support Ltd,Home Care - Private Contractors Payment,596.96,0.00,COMMERCIAL SUPPLIER 
 03-02-2023,Adults,Anytime Care 2020_a,Home Care - Private Contractors Payment,597.62,0.00,COMMERCIAL SUPPLIER 
 20-02-2023,Adults,Lodge Group Care UK Ltd,Home Care - Private Contractors Payment,598.60,0.00,COMMERCIAL SUPPLIER 
 20-02-2023,Adults,Lodge Group Care UK Ltd,Home Care - Private Contractors Payment,598.60,0.00,COMMERCIAL SUPPLIER 
 01-02-2023,Adults,Prestige Care & Support Ltd,Home Care - Private Contractors Payment,598.93,0.00,COMMERCIAL SUPPLIER 
 09-02-2023,Adults,Home Support Services (Havering & Essex) Ltd,Home Care - Private Contractors Payment,599.26,0.00,COMMERCIAL SUPPLIER 
 03-02-2023,Adults,Anytime Care 2020_a,Home Care - Private Contractors Payment,599.58,0.00,COMMERCIAL SUPPLIER 
 14-02-2023,Adults,John Stanleys Care Agency Ltd,Home Care - Private Contractors Payment,599.91,0.00,COMMERCIAL SUPPLIER 
 15-02-2023,Adults,Morepower Ltd t/a Aqs Homecare,Home Care - Private Contractors Payment,599.91,0.00,COMMERCIAL SUPPLIER 
 01-02-2023,Adults,Prestige Care & Support Ltd,Home Care - Private Contractors Payment,600.24,0.00,COMMERCIAL SUPPLIER 
 01-02-2023,Adults,Prestige Care & Support Ltd,Home Care - Private Contractors Payment,601.55,0.00,COMMERCIAL SUPPLIER 
 01-02-2023,Adults,Prestige Care & Support Ltd,Home Care - Private Contractors Payment,602.54,0.00,COMMERCIAL SUPPLIER 
 20-02-2023,Adults,Lodge Group Care UK Ltd,Home Care - Private Contractors Payment,609.75,0.00,COMMERCIAL SUPPLIER 
 15-02-2023,Adults,Home Sweet Home Care Ltd,Home Care - Private Contractors Payment,611.72,0.00,COMMERCIAL SUPPLIER 
 15-02-2023,Adults,Home Sweet Home Care Ltd,Home Care - Private Contractors Payment,612.38,0.00,COMMERCIAL SUPPLIER 
 28-02-2023,Adults,Prestige Care & Support Ltd,Home Care - Private Contractors Payment,612.38,0.00,COMMERCIAL SUPPLIER 
 15-02-2023,Adults,Prior Care Ltd_a,Home Care - Private Contractors Payment,613.36,0.00,COMMERCIAL SUPPLIER 
 09-02-2023,Adults,Home Support Services (Havering & Essex) Ltd,Home Care - Private Contractors Payment,618.28,0.00,COMMERCIAL SUPPLIER 
 10-02-2023,Adults,Quality Healthcare Solutions Ltd t/a Kare Plus Romford,Home Care - Private Contractors Payment,618.61,0.00,COMMERCIAL SUPPLIER 
 02-02-2023,Adults,KJD Care Limited,Home Care - Private Contractors Payment,619.92,0.00,INDIVIDUALS 
 14-02-2023,Adults,John Stanleys Care Agency Ltd,Home Care - Private Contractors Payment,619.92,0.00,COMMERCIAL SUPPLIER 
 15-02-2023,Adults,Morepower Ltd t/a Aqs Homecare,Home Care - Private Contractors Payment,620.90,0.00,COMMERCIAL SUPPLIER 
 15-02-2023,Adults,Morepower Ltd t/a Aqs Homecare,Home Care - Private Contractors Payment,621.56,0.00,COMMERCIAL SUPPLIER 
 20-02-2023,Adults,Lodge Group Care UK Ltd,Home Care - Private Contractors Payment,621.56,0.00,COMMERCIAL SUPPLIER 
 09-02-2023,Adults,Home Support Services (Havering & Essex) Ltd,Home Care - Private Contractors Payment,627.14,0.00,COMMERCIAL SUPPLIER 
 02-02-2023,Adults,KJD Care Limited,Home Care - Private Contractors Payment,629.76,0.00,INDIVIDUALS 
 09-02-2023,Adults,Home Support Services (Havering & Essex) Ltd,Home Care - Private Contractors Payment,629.76,0.00,COMMERCIAL SUPPLIER 
 20-02-2023,Adults,Lodge Group Care UK Ltd,Home Care - Private Contractors Payment,630.74,0.00,COMMERCIAL SUPPLIER 
 15-02-2023,Adults,Morepower Ltd t/a Aqs Homecare,Home Care - Private Contractors Payment,631.40,0.00,COMMERCIAL SUPPLIER 
 10-02-2023,Adults,Quality Healthcare Solutions Ltd t/a Kare Plus Romford,Home Care - Private Contractors Payment,632.38,0.00,COMMERCIAL SUPPLIER 
 10-02-2023,Adults,Quality Healthcare Solutions Ltd t/a Kare Plus Romford,Home Care - Private Contractors Payment,633.70,0.00,COMMERCIAL SUPPLIER 
 09-02-2023,Adults,Home Support Services (Havering & Essex) Ltd,Home Care - Private Contractors Payment,634.35,0.00,COMMERCIAL SUPPLIER 
 09-02-2023,Adults,Home Support Services (Havering & Essex) Ltd,Home Care - Private Contractors Payment,634.68,0.00,COMMERCIAL SUPPLIER 
 20-02-2023,Adults,Lodge Group Care UK Ltd,Home Care - Private Contractors Payment,635.99,0.00,COMMERCIAL SUPPLIER 
 10-02-2023,Adults,Quality Healthcare Solutions Ltd t/a Kare Plus Romford,Home Care - Private Contractors Payment,636.65,0.00,COMMERCIAL SUPPLIER 
 20-02-2023,Adults,Lodge Group Care UK Ltd,Home Care - Private Contractors Payment,637.63,0.00,COMMERCIAL SUPPLIER 
 07-02-2023,Adults,Lodge Group Care UK Ltd,Home Care - Private Contractors Payment,639.97,0.00,COMMERCIAL SUPPLIER 
 20-02-2023,Adults,Lodge Group Care UK Ltd,Home Care - Private Contractors Payment,647.80,0.00,COMMERCIAL SUPPLIER 
 09-02-2023,Adults,Home Support Services (Havering & Essex) Ltd,Home Care - Private Contractors Payment,649.44,0.00,COMMERCIAL SUPPLIER 
 15-02-2023,Adults,Home Sweet Home Care Ltd,Home Care - Private Contractors Payment,650.10,0.00,COMMERCIAL SUPPLIER 
 09-02-2023,Adults,Home Support Services (Havering & Essex) Ltd,Home Care - Private Contractors Payment,659.28,0.00,COMMERCIAL SUPPLIER 
 15-02-2023,Adults,Home Sweet Home Care Ltd,Home Care - Private Contractors Payment,661.58,0.00,COMMERCIAL SUPPLIER 
 20-02-2023,Adults,Lodge Group Care UK Ltd,Home Care - Private Contractors Payment,661.90,0.00,COMMERCIAL SUPPLIER 
 20-02-2023,Adults,Lodge Group Care UK Ltd,Home Care - Private Contractors Payment,663.22,0.00,COMMERCIAL SUPPLIER 
 20-02-2023,Adults,Lodge Group Care UK Ltd,Home Care - Private Contractors Payment,664.86,0.00,COMMERCIAL SUPPLIER 
 27-02-2023,Adults,Outreach Support Services Ltd,Home Care - Private Contractors Payment,669.12,0.00,COMMERCIAL SUPPLIER 
 27-02-2023,Adults,Outreach Support Services Ltd,Home Care - Private Contractors Payment,669.12,0.00,COMMERCIAL SUPPLIER 
 15-02-2023,Adults,Home Sweet Home Care Ltd,Home Care - Private Contractors Payment,671.09,0.00,COMMERCIAL SUPPLIER 
 15-02-2023,Adults,Home Sweet Home Care Ltd,Home Care - Private Contractors Payment,674.04,0.00,COMMERCIAL SUPPLIER 
 15-02-2023,Adults,Morepower Ltd t/a Aqs Homecare,Home Care - Private Contractors Payment,674.37,0.00,COMMERCIAL SUPPLIER 
 10-02-2023,Adults,Quality Healthcare Solutions Ltd t/a Kare Plus Romford,Home Care - Private Contractors Payment,676.01,0.00,COMMERCIAL SUPPLIER 
 15-02-2023,Adults,Home Sweet Home Care Ltd,Home Care - Private Contractors Payment,676.34,0.00,COMMERCIAL SUPPLIER 
 15-02-2023,Adults,Prior Care Ltd_a,Home Care - Private Contractors Payment,676.66,0.00,COMMERCIAL SUPPLIER 
 20-02-2023,Adults,Lodge Group Care UK Ltd,Home Care - Private Contractors Payment,677.65,0.00,COMMERCIAL SUPPLIER 
 15-02-2023,Adults,Home Sweet Home Care Ltd,Home Care - Private Contractors Payment,677.98,0.00,COMMERCIAL SUPPLIER 
 26-02-2023,Adults,KJD Care Limited,Home Care - Private Contractors Payment,678.96,0.00,INDIVIDUALS 
 20-02-2023,Adults,Lodge Group Care UK Ltd,Home Care - Private Contractors Payment,680.93,0.00,COMMERCIAL SUPPLIER 
 09-02-2023,Adults,Home Support Services (Havering & Essex) Ltd,Home Care - Private Contractors Payment,682.24,0.00,COMMERCIAL SUPPLIER 
 10-02-2023,Adults,Quality Healthcare Solutions Ltd t/a Kare Plus Romford,Home Care - Private Contractors Payment,684.21,0.00,COMMERCIAL SUPPLIER 
 02-02-2023,Adults,KJD Care Limited,Home Care - Private Contractors Payment,688.80,0.00,INDIVIDUALS 
 27-02-2023,Adults,London Homecare Ltd,Home Care - Private Contractors Payment,688.80,0.00,COMMERCIAL SUPPLIER 
 14-02-2023,Adults,John Stanleys Care Agency Ltd,Home Care - Private Contractors Payment,690.77,0.00,COMMERCIAL SUPPLIER 
 10-02-2023,Adults,London Care Plc_a,Home Care - Private Contractors Payment,694.38,0.00,COMMERCIAL SUPPLIER 
 13-02-2023,Adults,Radfield Home Care Havering & Brentwood,Home Care - Private Contractors Payment,695.52,0.00,COMMERCIAL SUPPLIER 
 13-02-2023,Adults,Radfield Home Care Havering & Brentwood,Home Care - Private Contractors Payment,695.52,0.00,COMMERCIAL SUPPLIER 
 15-02-2023,Adults,Morepower Ltd t/a Aqs Homecare,Home Care - Private Contractors Payment,696.02,0.00,COMMERCIAL SUPPLIER 
 15-02-2023,Adults,Home Sweet Home Care Ltd,Home Care - Private Contractors Payment,696.34,0.00,COMMERCIAL SUPPLIER 
 09-02-2023,Adults,Home Support Services (Havering & Essex) Ltd,Home Care - Private Contractors Payment,697.00,0.00,COMMERCIAL SUPPLIER 
 02-02-2023,Adults,Care-Away Ltd T/A Care Support,Home Care - Private Contractors Payment,698.88,0.00,COMMERCIAL SUPPLIER 
 02-02-2023,Adults,Care-Away Ltd T/A Care Support,Home Care - Private Contractors Payment,698.88,0.00,COMMERCIAL SUPPLIER 
 14-02-2023,Adults,John Stanleys Care Agency Ltd,Home Care - Private Contractors Payment,699.30,0.00,COMMERCIAL SUPPLIER 
 15-02-2023,Adults,Morepower Ltd t/a Aqs Homecare,Home Care - Private Contractors Payment,699.30,0.00,COMMERCIAL SUPPLIER 
 09-02-2023,Adults,Home Support Services (Havering & Essex) Ltd,Home Care - Private Contractors Payment,700.94,0.00,COMMERCIAL SUPPLIER 
 20-02-2023,Adults,Lodge Group Care UK Ltd,Home Care - Private Contractors Payment,702.90,0.00,COMMERCIAL SUPPLIER 
 07-02-2023,Adults,Gims Care Solution Ltd_a,Home Care - Private Contractors Payment,708.48,0.00,NON COMMERCIAL SUPPLIER 
 14-02-2023,Adults,Hospiva Care & Associates Agency Ltd_a,Home Care - Private Contractors Payment,708.48,0.00,COMMERCIAL SUPPLIER 
 27-02-2023,Adults,Outreach Support Services Ltd,Home Care - Private Contractors Payment,708.48,0.00,COMMERCIAL SUPPLIER 
 27-02-2023,Adults,Outreach Support Services Ltd,Home Care - Private Contractors Payment,708.48,0.00,COMMERCIAL SUPPLIER 
 20-02-2023,Adults,Lodge Group Care UK Ltd,Home Care - Private Contractors Payment,709.14,0.00,COMMERCIAL SUPPLIER 
 20-02-2023,Adults,Lodge Group Care UK Ltd,Home Care - Private Contractors Payment,709.46,0.00,COMMERCIAL SUPPLIER 
 15-02-2023,Adults,Home Sweet Home Care Ltd,Home Care - Private Contractors Payment,711.76,0.00,COMMERCIAL SUPPLIER 
 10-02-2023,Adults,London Care Plc_a,Home Care - Private Contractors Payment,715.04,0.00,COMMERCIAL SUPPLIER 
 02-02-2023,Adults,Care-Away Ltd T/A Care Support,Home Care - Private Contractors Payment,715.52,0.00,COMMERCIAL SUPPLIER 
 02-02-2023,Adults,Care-Away Ltd T/A Care Support,Home Care - Private Contractors Payment,715.52,0.00,COMMERCIAL SUPPLIER 
 20-02-2023,Adults,Lodge Group Care UK Ltd,Home Care - Private Contractors Payment,731.11,0.00,COMMERCIAL SUPPLIER 
 15-02-2023,Adults,Home Sweet Home Care Ltd,Home Care - Private Contractors Payment,735.38,0.00,COMMERCIAL SUPPLIER 
 15-02-2023,Adults,Prior Care Ltd_a,Home Care - Private Contractors Payment,738.66,0.00,COMMERCIAL SUPPLIER 
 14-02-2023,Adults,Hospiva Care & Associates Agency Ltd_a,Home Care - Private Contractors Payment,742.92,0.00,COMMERCIAL SUPPLIER 
 15-02-2023,Adults,Morepower Ltd t/a Aqs Homecare,Home Care - Private Contractors Payment,747.51,0.00,COMMERCIAL SUPPLIER 
 20-02-2023,Adults,Lodge Group Care UK Ltd,Home Care - Private Contractors Payment,747.84,0.00,COMMERCIAL SUPPLIER 
 10-02-2023,Adults,Quality Healthcare Solutions Ltd t/a Kare Plus Romford,Home Care - Private Contractors Payment,752.76,0.00,COMMERCIAL SUPPLIER 
 10-02-2023,Adults,Quality Healthcare Solutions Ltd t/a Kare Plus Romford,Home Care - Private Contractors Payment,752.76,0.00,COMMERCIAL SUPPLIER 
 14-02-2023,Adults,Hospiva Care & Associates Agency Ltd_a,Home Care - Private Contractors Payment,755.38,0.00,COMMERCIAL SUPPLIER 
 15-02-2023,Adults,Home Sweet Home Care Ltd,Home Care - Private Contractors Payment,758.34,0.00,COMMERCIAL SUPPLIER 
 13-02-2023,Adults,Bluebird Care Havering,Home Care - Private Contractors Payment,762.60,0.00,COMMERCIAL SUPPLIER 
 15-02-2023,Adults,Morepower Ltd t/a Aqs Homecare,Home Care - Private Contractors Payment,762.60,0.00,COMMERCIAL SUPPLIER 
 27-02-2023,Adults,Bluebird Care Havering,Home Care - Private Contractors Payment,762.60,0.00,COMMERCIAL SUPPLIER 
 10-02-2023,Adults,Quality Healthcare Solutions Ltd t/a Kare Plus Romford,Home Care - Private Contractors Payment,767.19,0.00,COMMERCIAL SUPPLIER 
 15-02-2023,Adults,Home Sweet Home Care Ltd,Home Care - Private Contractors Payment,767.52,0.00,COMMERCIAL SUPPLIER 
 26-02-2023,Adults,KJD Care Limited,Home Care - Private Contractors Payment,767.52,0.00,INDIVIDUALS 
 26-02-2023,Adults,KJD Care Limited,Home Care - Private Contractors Payment,767.52,0.00,INDIVIDUALS 
 20-02-2023,Adults,Lodge Group Care UK Ltd,Home Care - Private Contractors Payment,771.46,0.00,COMMERCIAL SUPPLIER 
 20-02-2023,Adults,Lodge Group Care UK Ltd,Home Care - Private Contractors Payment,771.78,0.00,COMMERCIAL SUPPLIER 
 09-02-2023,Adults,Home Support Services (Havering & Essex) Ltd,Home Care - Private Contractors Payment,776.38,0.00,COMMERCIAL SUPPLIER 
 14-02-2023,Adults,Hospiva Care & Associates Agency Ltd_a,Home Care - Private Contractors Payment,785.56,0.00,COMMERCIAL SUPPLIER 
 01-02-2023,Adults,Carers Trust East Midlands,Home Care - Private Contractors Payment,787.20,0.00,COMMERCIAL SUPPLIER 
 02-02-2023,Adults,KJD Care Limited,Home Care - Private Contractors Payment,787.20,0.00,INDIVIDUALS 
 02-02-2023,Adults,KJD Care Limited,Home Care - Private Contractors Payment,787.20,0.00,INDIVIDUALS 
 09-02-2023,Adults,Rosemont Care Limited,Home Care - Private Contractors Payment,787.20,0.00,COMMERCIAL SUPPLIER 
 09-02-2023,Adults,Rosemont Care Limited,Home Care - Private Contractors Payment,787.20,0.00,COMMERCIAL SUPPLIER 
 26-02-2023,Adults,KJD Care Limited,Home Care - Private Contractors Payment,787.20,0.00,INDIVIDUALS 
 26-02-2023,Adults,KJD Care Limited,Home Care - Private Contractors Payment,787.20,0.00,INDIVIDUALS 
 26-02-2023,Adults,KJD Care Limited,Home Care - Private Contractors Payment,787.20,0.00,INDIVIDUALS 
 26-02-2023,Adults,KJD Care Limited,Home Care - Private Contractors Payment,787.20,0.00,INDIVIDUALS 
 26-02-2023,Adults,KJD Care Limited,Home Care - Private Contractors Payment,787.20,0.00,INDIVIDUALS 
 26-02-2023,Adults,KJD Care Limited,Home Care - Private Contractors Payment,787.20,0.00,INDIVIDUALS 
 27-02-2023,Adults,Outreach Support Services Ltd,Home Care - Private Contractors Payment,787.20,0.00,COMMERCIAL SUPPLIER 
 15-02-2023,Adults,Home Sweet Home Care Ltd,Home Care - Private Contractors Payment,787.53,0.00,COMMERCIAL SUPPLIER 
 20-02-2023,Adults,Lodge Group Care UK Ltd,Home Care - Private Contractors Payment,790.81,0.00,COMMERCIAL SUPPLIER 
 20-02-2023,Adults,Lodge Group Care UK Ltd,Home Care - Private Contractors Payment,793.43,0.00,COMMERCIAL SUPPLIER 
 20-02-2023,Adults,Lodge Group Care UK Ltd,Home Care - Private Contractors Payment,794.42,0.00,COMMERCIAL SUPPLIER 
 27-02-2023,Adults,London Homecare Ltd,Home Care - Private Contractors Payment,797.04,0.00,COMMERCIAL SUPPLIER 
 09-02-2023,Adults,Home Support Services (Havering & Essex) Ltd,Home Care - Private Contractors Payment,797.70,0.00,COMMERCIAL SUPPLIER 
 03-02-2023,Adults,Anytime Care 2020_a,Home Care - Private Contractors Payment,798.68,0.00,COMMERCIAL SUPPLIER 
 07-02-2023,Adults,Lodge Group Care UK Ltd,Home Care - Private Contractors Payment,800.02,0.00,COMMERCIAL SUPPLIER 
 15-02-2023,Adults,Home Sweet Home Care Ltd,Home Care - Private Contractors Payment,800.65,0.00,COMMERCIAL SUPPLIER 
 15-02-2023,Adults,Home Sweet Home Care Ltd,Home Care - Private Contractors Payment,806.55,0.00,COMMERCIAL SUPPLIER 
 02-02-2023,Adults,KJD Care Limited,Home Care - Private Contractors Payment,806.88,0.00,INDIVIDUALS 
 15-02-2023,Adults,Home Sweet Home Care Ltd,Home Care - Private Contractors Payment,806.88,0.00,COMMERCIAL SUPPLIER 
 09-02-2023,Adults,Home Support Services (Havering & Essex) Ltd,Home Care - Private Contractors Payment,808.19,0.00,COMMERCIAL SUPPLIER 
 15-02-2023,Adults,Home Sweet Home Care Ltd,Home Care - Private Contractors Payment,813.44,0.00,COMMERCIAL SUPPLIER 
 02-02-2023,Adults,Care-Away Ltd T/A Care Support,Home Care - Private Contractors Payment,815.36,0.00,COMMERCIAL SUPPLIER 
 02-02-2023,Adults,Care-Away Ltd T/A Care Support,Home Care - Private Contractors Payment,815.36,0.00,COMMERCIAL SUPPLIER 
 01-02-2023,Adults,Prestige Care & Support Ltd,Home Care - Private Contractors Payment,816.39,0.00,COMMERCIAL SUPPLIER 
 15-02-2023,Adults,Home Sweet Home Care Ltd,Home Care - Private Contractors Payment,816.72,0.00,COMMERCIAL SUPPLIER 
 15-02-2023,Adults,Home Sweet Home Care Ltd,Home Care - Private Contractors Payment,816.72,0.00,COMMERCIAL SUPPLIER 
 20-02-2023,Adults,Lodge Group Care UK Ltd,Home Care - Private Contractors Payment,816.72,0.00,COMMERCIAL SUPPLIER 
 20-02-2023,Adults,Lodge Group Care UK Ltd,Home Care - Private Contractors Payment,816.72,0.00,COMMERCIAL SUPPLIER 
 20-02-2023,Adults,Lodge Group Care UK Ltd,Home Care - Private Contractors Payment,816.72,0.00,COMMERCIAL SUPPLIER 
 28-02-2023,Adults,Prestige Care & Support Ltd,Home Care - Private Contractors Payment,816.72,0.00,COMMERCIAL SUPPLIER 
 15-02-2023,Adults,Home Sweet Home Care Ltd,Home Care - Private Contractors Payment,817.38,0.00,COMMERCIAL SUPPLIER 
 15-02-2023,Adults,Morepower Ltd t/a Aqs Homecare,Home Care - Private Contractors Payment,819.02,0.00,COMMERCIAL SUPPLIER 
 15-02-2023,Adults,Home Sweet Home Care Ltd,Home Care - Private Contractors Payment,820.00,0.00,COMMERCIAL SUPPLIER 
 15-02-2023,Adults,Home Sweet Home Care Ltd,Home Care - Private Contractors Payment,820.00,0.00,COMMERCIAL SUPPLIER 
 14-02-2023,Adults,John Stanleys Care Agency Ltd,Home Care - Private Contractors Payment,820.66,0.00,COMMERCIAL SUPPLIER 
 20-02-2023,Adults,Lodge Group Care UK Ltd,Home Care - Private Contractors Payment,820.66,0.00,COMMERCIAL SUPPLIER 
 20-02-2023,Adults,Lodge Group Care UK Ltd,Home Care - Private Contractors Payment,820.98,0.00,COMMERCIAL SUPPLIER 
 15-02-2023,Adults,Home Sweet Home Care Ltd,Home Care - Private Contractors Payment,821.31,0.00,COMMERCIAL SUPPLIER 
 20-02-2023,Adults,Lodge Group Care UK Ltd,Home Care - Private Contractors Payment,824.92,0.00,COMMERCIAL SUPPLIER 
 15-02-2023,Adults,Morepower Ltd t/a Aqs Homecare,Home Care - Private Contractors Payment,826.23,0.00,COMMERCIAL SUPPLIER 
 01-02-2023,Adults,Prestige Care & Support Ltd,Home Care - Private Contractors Payment,826.56,0.00,COMMERCIAL SUPPLIER 
 02-02-2023,Adults,KJD Care Limited,Home Care - Private Contractors Payment,826.56,0.00,INDIVIDUALS 
 09-02-2023,Adults,Home Support Services (Havering & Essex) Ltd,Home Care - Private Contractors Payment,826.56,0.00,COMMERCIAL SUPPLIER 
 09-02-2023,Adults,Home Support Services (Havering & Essex) Ltd,Home Care - Private Contractors Payment,826.56,0.00,COMMERCIAL SUPPLIER 
 09-02-2023,Adults,Home Support Services (Havering & Essex) Ltd,Home Care - Private Contractors Payment,826.56,0.00,COMMERCIAL SUPPLIER 
 09-02-2023,Adults,Home Support Services (Havering & Essex) Ltd,Home Care - Private Contractors Payment,826.56,0.00,COMMERCIAL SUPPLIER 
 09-02-2023,Adults,Home Support Services (Havering & Essex) Ltd,Home Care - Private Contractors Payment,826.56,0.00,COMMERCIAL SUPPLIER 
 09-02-2023,Adults,Home Support Services (Havering & Essex) Ltd,Home Care - Private Contractors Payment,826.56,0.00,COMMERCIAL SUPPLIER 
 09-02-2023,Adults,Home Support Services (Havering & Essex) Ltd,Home Care - Private Contractors Payment,826.56,0.00,COMMERCIAL SUPPLIER 
 09-02-2023,Adults,Rosemont Care Limited,Home Care - Private Contractors Payment,826.56,0.00,COMMERCIAL SUPPLIER 
 09-02-2023,Adults,Rosemont Care Limited,Home Care - Private Contractors Payment,826.56,0.00,COMMERCIAL SUPPLIER 
 10-02-2023,Adults,Passion Tree Care Services Ltd,Home Care - Private Contractors Payment,826.56,0.00,COMMERCIAL SUPPLIER 
 10-02-2023,Adults,Passion Tree Care Services Ltd,Home Care - Private Contractors Payment,826.56,0.00,COMMERCIAL SUPPLIER 
 10-02-2023,Adults,Passion Tree Care Services Ltd,Home Care - Private Contractors Payment,826.56,0.00,COMMERCIAL SUPPLIER 
 15-02-2023,Adults,Home Sweet Home Care Ltd,Home Care - Private Contractors Payment,826.56,0.00,COMMERCIAL SUPPLIER 
 15-02-2023,Adults,Home Sweet Home Care Ltd,Home Care - Private Contractors Payment,826.56,0.00,COMMERCIAL SUPPLIER 
 20-02-2023,Adults,Lodge Group Care UK Ltd,Home Care - Private Contractors Payment,826.56,0.00,COMMERCIAL SUPPLIER 
 20-02-2023,Adults,Lodge Group Care UK Ltd,Home Care - Private Contractors Payment,826.56,0.00,COMMERCIAL SUPPLIER 
 27-02-2023,Adults,Outreach Support Services Ltd,Home Care - Private Contractors Payment,826.56,0.00,COMMERCIAL SUPPLIER 
 27-02-2023,Adults,Outreach Support Services Ltd,Home Care - Private Contractors Payment,826.56,0.00,COMMERCIAL SUPPLIER 
 27-02-2023,Adults,Outreach Support Services Ltd,Home Care - Private Contractors Payment,826.56,0.00,COMMERCIAL SUPPLIER 
 28-02-2023,Adults,Prestige Care & Support Ltd,Home Care - Private Contractors Payment,826.56,0.00,COMMERCIAL SUPPLIER 
 28-02-2023,Adults,Prestige Care & Support Ltd,Home Care - Private Contractors Payment,826.56,0.00,COMMERCIAL SUPPLIER 
 09-02-2023,Adults,Home Support Services (Havering & Essex) Ltd,Home Care - Private Contractors Payment,826.89,0.00,COMMERCIAL SUPPLIER 
 06-02-2023,Adults,Westminster Homecare Ltd_a,Home Care - Private Contractors Payment,827.22,0.00,COMMERCIAL SUPPLIER 
 15-02-2023,Adults,Prior Care Ltd_a,Home Care - Private Contractors Payment,827.54,0.00,COMMERCIAL SUPPLIER 
 03-02-2023,Adults,Anytime Care 2020_a,Home Care - Private Contractors Payment,828.20,0.00,COMMERCIAL SUPPLIER 
 06-02-2023,Adults,Westminster Homecare Ltd_a,Home Care - Private Contractors Payment,828.20,0.00,COMMERCIAL SUPPLIER 
 06-02-2023,Adults,Westminster Homecare Ltd_a,Home Care - Private Contractors Payment,828.53,0.00,COMMERCIAL SUPPLIER 
 15-02-2023,Adults,Morepower Ltd t/a Aqs Homecare,Home Care - Private Contractors Payment,828.53,0.00,COMMERCIAL SUPPLIER 
 15-02-2023,Adults,Morepower Ltd t/a Aqs Homecare,Home Care - Private Contractors Payment,828.53,0.00,COMMERCIAL SUPPLIER 
 14-02-2023,Adults,Hospiva Care & Associates Agency Ltd_a,Home Care - Private Contractors Payment,828.86,0.00,COMMERCIAL SUPPLIER 
 14-02-2023,Adults,Hospiva Care & Associates Agency Ltd_a,Home Care - Private Contractors Payment,828.86,0.00,COMMERCIAL SUPPLIER 
 20-02-2023,Adults,Lodge Group Care UK Ltd,Home Care - Private Contractors Payment,828.86,0.00,COMMERCIAL SUPPLIER 
 15-02-2023,Adults,Morepower Ltd t/a Aqs Homecare,Home Care - Private Contractors Payment,829.51,0.00,COMMERCIAL SUPPLIER 
 15-02-2023,Adults,Morepower Ltd t/a Aqs Homecare,Home Care - Private Contractors Payment,829.51,0.00,COMMERCIAL SUPPLIER 
 03-02-2023,Adults,Anytime Care 2020_a,Home Care - Private Contractors Payment,829.84,0.00,COMMERCIAL SUPPLIER 
 15-02-2023,Adults,Home Sweet Home Care Ltd,Home Care - Private Contractors Payment,829.84,0.00,COMMERCIAL SUPPLIER 
 20-02-2023,Adults,Lodge Group Care UK Ltd,Home Care - Private Contractors Payment,830.17,0.00,COMMERCIAL SUPPLIER 
 15-02-2023,Adults,Morepower Ltd t/a Aqs Homecare,Home Care - Private Contractors Payment,830.82,0.00,COMMERCIAL SUPPLIER 
 20-02-2023,Adults,Lodge Group Care UK Ltd,Home Care - Private Contractors Payment,830.82,0.00,COMMERCIAL SUPPLIER 
 20-02-2023,Adults,Lodge Group Care UK Ltd,Home Care - Private Contractors Payment,830.82,0.00,COMMERCIAL SUPPLIER 
 09-02-2023,Adults,Home Support Services (Havering & Essex) Ltd,Home Care - Private Contractors Payment,831.48,0.00,COMMERCIAL SUPPLIER 
 20-02-2023,Adults,Lodge Group Care UK Ltd,Home Care - Private Contractors Payment,831.48,0.00,COMMERCIAL SUPPLIER 
 28-02-2023,Adults,Prestige Care & Support Ltd,Home Care - Private Contractors Payment,831.81,0.00,COMMERCIAL SUPPLIER 
 20-02-2023,Adults,Lodge Group Care UK Ltd,Home Care - Private Contractors Payment,832.46,0.00,COMMERCIAL SUPPLIER 
 20-02-2023,Adults,Lodge Group Care UK Ltd,Home Care - Private Contractors Payment,832.46,0.00,COMMERCIAL SUPPLIER 
 01-02-2023,Adults,Prestige Care & Support Ltd,Home Care - Private Contractors Payment,835.42,0.00,COMMERCIAL SUPPLIER 
 10-02-2023,Adults,Quality Healthcare Solutions Ltd t/a Kare Plus Romford,Home Care - Private Contractors Payment,835.74,0.00,COMMERCIAL SUPPLIER 
 09-02-2023,Adults,Home Support Services (Havering & Essex) Ltd,Home Care - Private Contractors Payment,836.40,0.00,COMMERCIAL SUPPLIER 
 09-02-2023,Adults,Home Support Services (Havering & Essex) Ltd,Home Care - Private Contractors Payment,836.40,0.00,COMMERCIAL SUPPLIER 
 14-02-2023,Adults,John Stanleys Care Agency Ltd,Home Care - Private Contractors Payment,837.06,0.00,COMMERCIAL SUPPLIER 
 15-02-2023,Adults,Home Sweet Home Care Ltd,Home Care - Private Contractors Payment,837.06,0.00,COMMERCIAL SUPPLIER 
 15-02-2023,Adults,Home Sweet Home Care Ltd,Home Care - Private Contractors Payment,837.06,0.00,COMMERCIAL SUPPLIER 
 20-02-2023,Adults,Lodge Group Care UK Ltd,Home Care - Private Contractors Payment,837.38,0.00,COMMERCIAL SUPPLIER 
 28-02-2023,Adults,Prestige Care & Support Ltd,Home Care - Private Contractors Payment,837.38,0.00,COMMERCIAL SUPPLIER 
 15-02-2023,Adults,Home Sweet Home Care Ltd,Home Care - Private Contractors Payment,837.71,0.00,COMMERCIAL SUPPLIER 
 06-02-2023,Adults,Westminster Homecare Ltd_a,Home Care - Private Contractors Payment,838.04,0.00,COMMERCIAL SUPPLIER 
 09-02-2023,Adults,Home Support Services (Havering & Essex) Ltd,Home Care - Private Contractors Payment,838.70,0.00,COMMERCIAL SUPPLIER 
 03-02-2023,Adults,Anytime Care 2020_a,Home Care - Private Contractors Payment,839.02,0.00,COMMERCIAL SUPPLIER 
 03-02-2023,Adults,Anytime Care 2020_a,Home Care - Private Contractors Payment,839.35,0.00,COMMERCIAL SUPPLIER 
 09-02-2023,Adults,Home Support Services (Havering & Essex) Ltd,Home Care - Private Contractors Payment,839.35,0.00,COMMERCIAL SUPPLIER 
 20-02-2023,Adults,Lodge Group Care UK Ltd,Home Care - Private Contractors Payment,839.35,0.00,COMMERCIAL SUPPLIER 
 20-02-2023,Adults,Lodge Group Care UK Ltd,Home Care - Private Contractors Payment,840.66,0.00,COMMERCIAL SUPPLIER 
 26-02-2023,Adults,KJD Care Limited,Home Care - Private Contractors Payment,841.32,0.00,INDIVIDUALS 
 20-02-2023,Adults,Lodge Group Care UK Ltd,Home Care - Private Contractors Payment,843.29,0.00,COMMERCIAL SUPPLIER 
 09-02-2023,Adults,Home Support Services (Havering & Essex) Ltd,Home Care - Private Contractors Payment,844.27,0.00,COMMERCIAL SUPPLIER 
 20-02-2023,Adults,Lodge Group Care UK Ltd,Home Care - Private Contractors Payment,844.60,0.00,COMMERCIAL SUPPLIER 
 20-02-2023,Adults,Lodge Group Care UK Ltd,Home Care - Private Contractors Payment,844.93,0.00,COMMERCIAL SUPPLIER 
 20-02-2023,Adults,Lodge Group Care UK Ltd,Home Care - Private Contractors Payment,845.26,0.00,COMMERCIAL SUPPLIER 
 09-02-2023,Adults,Home Support Services (Havering & Essex) Ltd,Home Care - Private Contractors Payment,846.24,0.00,COMMERCIAL SUPPLIER 
 20-02-2023,Adults,Lodge Group Care UK Ltd,Home Care - Private Contractors Payment,846.24,0.00,COMMERCIAL SUPPLIER 
 09-02-2023,Adults,Home Support Services (Havering & Essex) Ltd,Home Care - Private Contractors Payment,846.90,0.00,COMMERCIAL SUPPLIER 
 28-02-2023,Adults,Prestige Care & Support Ltd,Home Care - Private Contractors Payment,847.22,0.00,COMMERCIAL SUPPLIER 
 20-02-2023,Adults,Lodge Group Care UK Ltd,Home Care - Private Contractors Payment,849.85,0.00,COMMERCIAL SUPPLIER 
 28-02-2023,Adults,Prestige Care & Support Ltd,Home Care - Private Contractors Payment,851.82,0.00,COMMERCIAL SUPPLIER 
 09-02-2023,Adults,Home Support Services (Havering & Essex) Ltd,Home Care - Private Contractors Payment,852.80,0.00,COMMERCIAL SUPPLIER 
 28-02-2023,Adults,Prestige Care & Support Ltd,Home Care - Private Contractors Payment,852.80,0.00,COMMERCIAL SUPPLIER 
 01-02-2023,Adults,Prestige Care & Support Ltd,Home Care - Private Contractors Payment,853.46,0.00,COMMERCIAL SUPPLIER 
 01-02-2023,Adults,Carers Trust East Midlands,Home Care - Private Contractors Payment,856.08,0.00,COMMERCIAL SUPPLIER 
 02-02-2023,Adults,Care-Away Ltd T/A Care Support,Home Care - Private Contractors Payment,856.96,0.00,COMMERCIAL SUPPLIER 
 15-02-2023,Adults,Morepower Ltd t/a Aqs Homecare,Home Care - Private Contractors Payment,859.36,0.00,COMMERCIAL SUPPLIER 
 02-02-2023,Adults,KJD Care Limited,Home Care - Private Contractors Payment,865.92,0.00,INDIVIDUALS 
 09-02-2023,Adults,Home Support Services (Havering & Essex) Ltd,Home Care - Private Contractors Payment,865.92,0.00,COMMERCIAL SUPPLIER 
 09-02-2023,Adults,Home Support Services (Havering & Essex) Ltd,Home Care - Private Contractors Payment,865.92,0.00,COMMERCIAL SUPPLIER 
 26-02-2023,Adults,KJD Care Limited,Home Care - Private Contractors Payment,865.92,0.00,INDIVIDUALS 
 15-02-2023,Adults,Morepower Ltd t/a Aqs Homecare,Home Care - Private Contractors Payment,866.25,0.00,COMMERCIAL SUPPLIER 
 20-02-2023,Adults,Lodge Group Care UK Ltd,Home Care - Private Contractors Payment,866.58,0.00,COMMERCIAL SUPPLIER 
 10-02-2023,Adults,Quality Healthcare Solutions Ltd t/a Kare Plus Romford,Home Care - Private Contractors Payment,869.53,0.00,COMMERCIAL SUPPLIER 
 14-02-2023,Adults,John Stanleys Care Agency Ltd,Home Care - Private Contractors Payment,872.15,0.00,COMMERCIAL SUPPLIER 
 20-02-2023,Adults,Lodge Group Care UK Ltd,Home Care - Private Contractors Payment,873.14,0.00,COMMERCIAL SUPPLIER 
 09-02-2023,Adults,Home Support Services (Havering & Essex) Ltd,Home Care - Private Contractors Payment,874.45,0.00,COMMERCIAL SUPPLIER 
 09-02-2023,Adults,Home Support Services (Havering & Essex) Ltd,Home Care - Private Contractors Payment,874.45,0.00,COMMERCIAL SUPPLIER 
 20-02-2023,Adults,Lodge Group Care UK Ltd,Home Care - Private Contractors Payment,874.45,0.00,COMMERCIAL SUPPLIER 
 15-02-2023,Adults,Morepower Ltd t/a Aqs Homecare,Home Care - Private Contractors Payment,874.78,0.00,COMMERCIAL SUPPLIER 
 28-02-2023,Adults,Prestige Care & Support Ltd,Home Care - Private Contractors Payment,876.09,0.00,COMMERCIAL SUPPLIER 
 28-02-2023,Adults,Prestige Care & Support Ltd,Home Care - Private Contractors Payment,879.37,0.00,COMMERCIAL SUPPLIER 
 09-02-2023,Adults,Home Support Services (Havering & Essex) Ltd,Home Care - Private Contractors Payment,880.02,0.00,COMMERCIAL SUPPLIER 
 01-02-2023,Adults,Prestige Care & Support Ltd,Home Care - Private Contractors Payment,887.24,0.00,COMMERCIAL SUPPLIER 
 03-02-2023,Adults,Anytime Care 2020_a,Home Care - Private Contractors Payment,895.11,0.00,COMMERCIAL SUPPLIER 
 09-02-2023,Adults,Home Support Services (Havering & Essex) Ltd,Home Care - Private Contractors Payment,895.44,0.00,COMMERCIAL SUPPLIER 
 03-02-2023,Adults,Anytime Care 2020_a,Home Care - Private Contractors Payment,896.10,0.00,COMMERCIAL SUPPLIER 
 03-02-2023,Adults,Anytime Care 2020_a,Home Care - Private Contractors Payment,896.10,0.00,COMMERCIAL SUPPLIER 
 20-02-2023,Adults,Lodge Group Care UK Ltd,Home Care - Private Contractors Payment,899.38,0.00,COMMERCIAL SUPPLIER 
 15-02-2023,Adults,Home Sweet Home Care Ltd,Home Care - Private Contractors Payment,903.31,0.00,COMMERCIAL SUPPLIER 
 10-02-2023,Adults,Quality Healthcare Solutions Ltd t/a Kare Plus Romford,Home Care - Private Contractors Payment,905.61,0.00,COMMERCIAL SUPPLIER 
 15-02-2023,Adults,Morepower Ltd t/a Aqs Homecare,Home Care - Private Contractors Payment,913.48,0.00,COMMERCIAL SUPPLIER 
 15-02-2023,Adults,Home Sweet Home Care Ltd,Home Care - Private Contractors Payment,917.42,0.00,COMMERCIAL SUPPLIER 
 20-02-2023,Adults,Lodge Group Care UK Ltd,Home Care - Private Contractors Payment,922.34,0.00,COMMERCIAL SUPPLIER 
 20-02-2023,Adults,Lodge Group Care UK Ltd,Home Care - Private Contractors Payment,922.66,0.00,COMMERCIAL SUPPLIER 
 15-02-2023,Adults,Morepower Ltd t/a Aqs Homecare,Home Care - Private Contractors Payment,923.98,0.00,COMMERCIAL SUPPLIER 
 20-02-2023,Adults,Lodge Group Care UK Ltd,Home Care - Private Contractors Payment,924.96,0.00,COMMERCIAL SUPPLIER 
 02-02-2023,Adults,Care-Away Ltd T/A Care Support,Home Care - Private Contractors Payment,931.84,0.00,COMMERCIAL SUPPLIER 
 02-02-2023,Adults,Care-Away Ltd T/A Care Support,Home Care - Private Contractors Payment,931.84,0.00,COMMERCIAL SUPPLIER 
 02-02-2023,Adults,Care-Away Ltd T/A Care Support,Home Care - Private Contractors Payment,931.84,0.00,COMMERCIAL SUPPLIER 
 02-02-2023,Adults,Care-Away Ltd T/A Care Support,Home Care - Private Contractors Payment,931.84,0.00,COMMERCIAL SUPPLIER 
 08-02-2023,Adults,Care-Away Ltd T/A Care Support,Home Care - Private Contractors Payment,931.84,0.00,COMMERCIAL SUPPLIER 
 09-02-2023,Adults,Home Support Services (Havering & Essex) Ltd,Home Care - Private Contractors Payment,934.80,0.00,COMMERCIAL SUPPLIER 
 15-02-2023,Adults,Home Sweet Home Care Ltd,Home Care - Private Contractors Payment,936.44,0.00,COMMERCIAL SUPPLIER 
 03-02-2023,Adults,Anytime Care 2020_a,Home Care - Private Contractors Payment,938.08,0.00,COMMERCIAL SUPPLIER 
 15-02-2023,Adults,Home Sweet Home Care Ltd,Home Care - Private Contractors Payment,942.67,0.00,COMMERCIAL SUPPLIER 
 10-02-2023,Adults,Passion Tree Care Services Ltd,Home Care - Private Contractors Payment,944.64,0.00,COMMERCIAL SUPPLIER 
 20-02-2023,Adults,Lodge Group Care UK Ltd,Home Care - Private Contractors Payment,954.48,0.00,COMMERCIAL SUPPLIER 
 20-02-2023,Adults,Lodge Group Care UK Ltd,Home Care - Private Contractors Payment,954.48,0.00,COMMERCIAL SUPPLIER 
 15-02-2023,Adults,Home Sweet Home Care Ltd,Home Care - Private Contractors Payment,957.76,0.00,COMMERCIAL SUPPLIER 
 14-02-2023,Adults,Hospiva Care & Associates Agency Ltd_a,Home Care - Private Contractors Payment,959.40,0.00,COMMERCIAL SUPPLIER 
 20-02-2023,Adults,Lodge Group Care UK Ltd,Home Care - Private Contractors Payment,959.40,0.00,COMMERCIAL SUPPLIER 
 14-02-2023,Adults,IJB Healthcare Ltd,Home Care - Private Contractors Payment,961.00,0.00,COMMERCIAL SUPPLIER 
 10-02-2023,Adults,London Care Plc_a,Home Care - Private Contractors Payment,963.01,0.00,COMMERCIAL SUPPLIER 
 02-02-2023,Adults,KJD Care Limited,Home Care - Private Contractors Payment,964.32,0.00,INDIVIDUALS 
 02-02-2023,Adults,KJD Care Limited,Home Care - Private Contractors Payment,964.32,0.00,INDIVIDUALS 
 02-02-2023,Adults,KJD Care Limited,Home Care - Private Contractors Payment,964.32,0.00,INDIVIDUALS 
 26-02-2023,Adults,KJD Care Limited,Home Care - Private Contractors Payment,964.32,0.00,INDIVIDUALS 
 26-02-2023,Adults,KJD Care Limited,Home Care - Private Contractors Payment,964.32,0.00,INDIVIDUALS 
 02-02-2023,Adults,Care-Away Ltd T/A Care Support,Home Care - Private Contractors Payment,965.12,0.00,COMMERCIAL SUPPLIER 
 02-02-2023,Adults,Care-Away Ltd T/A Care Support,Home Care - Private Contractors Payment,965.12,0.00,COMMERCIAL SUPPLIER 
 09-02-2023,Adults,Home Support Services (Havering & Essex) Ltd,Home Care - Private Contractors Payment,966.29,0.00,COMMERCIAL SUPPLIER 
 28-02-2023,Adults,Prestige Care & Support Ltd,Home Care - Private Contractors Payment,971.21,0.00,COMMERCIAL SUPPLIER 
 28-02-2023,Adults,Prestige Care & Support Ltd,Home Care - Private Contractors Payment,971.21,0.00,COMMERCIAL SUPPLIER 
 09-02-2023,Adults,Home Support Services (Havering & Essex) Ltd,Home Care - Private Contractors Payment,973.50,0.00,COMMERCIAL SUPPLIER 
 28-02-2023,Adults,Prestige Care & Support Ltd,Home Care - Private Contractors Payment,982.36,0.00,COMMERCIAL SUPPLIER 
 15-02-2023,Adults,Home Sweet Home Care Ltd,Home Care - Private Contractors Payment,984.66,0.00,COMMERCIAL SUPPLIER 
 01-02-2023,Adults,Prestige Care & Support Ltd,Home Care - Private Contractors Payment,985.97,0.00,COMMERCIAL SUPPLIER 
 14-02-2023,Adults,John Stanleys Care Agency Ltd,Home Care - Private Contractors Payment,985.97,0.00,COMMERCIAL SUPPLIER 
 09-02-2023,Adults,Home Support Services (Havering & Essex) Ltd,Home Care - Private Contractors Payment,988.26,0.00,COMMERCIAL SUPPLIER 
 09-02-2023,Adults,Home Support Services (Havering & Essex) Ltd,Home Care - Private Contractors Payment,990.56,0.00,COMMERCIAL SUPPLIER 
 01-02-2023,Adults,Prestige Care & Support Ltd,Home Care - Private Contractors Payment,997.12,0.00,COMMERCIAL SUPPLIER 
 01-02-2023,Adults,Prestige Care & Support Ltd,Home Care - Private Contractors Payment,997.12,0.00,COMMERCIAL SUPPLIER 
 28-02-2023,Adults,Prestige Care & Support Ltd,Home Care - Private Contractors Payment,997.45,0.00,COMMERCIAL SUPPLIER 
 28-02-2023,Adults,Prestige Care & Support Ltd,Home Care - Private Contractors Payment,999.09,0.00,COMMERCIAL SUPPLIER 
 28-02-2023,Adults,Prestige Care & Support Ltd,Home Care - Private Contractors Payment,999.74,0.00,COMMERCIAL SUPPLIER 
 14-02-2023,Adults,John Stanleys Care Agency Ltd,Home Care - Private Contractors Payment,1002.04,0.00,COMMERCIAL SUPPLIER 
 28-02-2023,Adults,Prestige Care & Support Ltd,Home Care - Private Contractors Payment,1002.37,0.00,COMMERCIAL SUPPLIER 
 28-02-2023,Adults,Prestige Care & Support Ltd,Home Care - Private Contractors Payment,1003.68,0.00,COMMERCIAL SUPPLIER 
 01-02-2023,Adults,Prestige Care & Support Ltd,Home Care - Private Contractors Payment,1005.98,0.00,COMMERCIAL SUPPLIER 
 10-02-2023,Adults,Quality Healthcare Solutions Ltd t/a Kare Plus Romford,Home Care - Private Contractors Payment,1006.30,0.00,COMMERCIAL SUPPLIER 
 20-02-2023,Adults,Lodge Group Care UK Ltd,Home Care - Private Contractors Payment,1006.30,0.00,COMMERCIAL SUPPLIER 
 09-02-2023,Adults,Home Support Services (Havering & Essex) Ltd,Home Care - Private Contractors Payment,1006.63,0.00,COMMERCIAL SUPPLIER 
 03-02-2023,Adults,Anytime Care 2020_a,Home Care - Private Contractors Payment,1008.93,0.00,COMMERCIAL SUPPLIER 
 01-02-2023,Adults,Prestige Care & Support Ltd,Home Care - Private Contractors Payment,1011.22,0.00,COMMERCIAL SUPPLIER 
 01-02-2023,Adults,Prestige Care & Support Ltd,Home Care - Private Contractors Payment,1012.54,0.00,COMMERCIAL SUPPLIER 
 09-02-2023,Adults,Home Support Services (Havering & Essex) Ltd,Home Care - Private Contractors Payment,1013.52,0.00,COMMERCIAL SUPPLIER 
 09-02-2023,Adults,Home Support Services (Havering & Essex) Ltd,Home Care - Private Contractors Payment,1013.52,0.00,COMMERCIAL SUPPLIER 
 15-02-2023,Adults,Home Sweet Home Care Ltd,Home Care - Private Contractors Payment,1014.50,0.00,COMMERCIAL SUPPLIER 
 20-02-2023,Adults,Lodge Group Care UK Ltd,Home Care - Private Contractors Payment,1022.38,0.00,COMMERCIAL SUPPLIER 
 15-02-2023,Adults,Morepower Ltd t/a Aqs Homecare,Home Care - Private Contractors Payment,1023.36,0.00,COMMERCIAL SUPPLIER 
 09-02-2023,Adults,Home Support Services (Havering & Essex) Ltd,Home Care - Private Contractors Payment,1024.34,0.00,COMMERCIAL SUPPLIER 
 15-02-2023,Adults,Home Sweet Home Care Ltd,Home Care - Private Contractors Payment,1025.00,0.00,COMMERCIAL SUPPLIER 
 15-02-2023,Adults,Home Sweet Home Care Ltd,Home Care - Private Contractors Payment,1025.00,0.00,COMMERCIAL SUPPLIER 
 01-02-2023,Adults,Prestige Care & Support Ltd,Home Care - Private Contractors Payment,1025.33,0.00,COMMERCIAL SUPPLIER 
 01-02-2023,Adults,Prestige Care & Support Ltd,Home Care - Private Contractors Payment,1025.66,0.00,COMMERCIAL SUPPLIER 
 09-02-2023,Adults,Home Support Services (Havering & Essex) Ltd,Home Care - Private Contractors Payment,1033.20,0.00,COMMERCIAL SUPPLIER 
 15-02-2023,Adults,Prior Care Ltd_a,Home Care - Private Contractors Payment,1038.12,0.00,COMMERCIAL SUPPLIER 
 09-02-2023,Adults,Home Support Services (Havering & Essex) Ltd,Home Care - Private Contractors Payment,1040.42,0.00,COMMERCIAL SUPPLIER 
 15-02-2023,Adults,Home Sweet Home Care Ltd,Home Care - Private Contractors Payment,1041.40,0.00,COMMERCIAL SUPPLIER 
 02-02-2023,Adults,KJD Care Limited,Home Care - Private Contractors Payment,1043.04,0.00,INDIVIDUALS 
 15-02-2023,Adults,Home Sweet Home Care Ltd,Home Care - Private Contractors Payment,1043.04,0.00,COMMERCIAL SUPPLIER 
 26-02-2023,Adults,KJD Care Limited,Home Care - Private Contractors Payment,1043.04,0.00,INDIVIDUALS 
 15-02-2023,Adults,Home Sweet Home Care Ltd,Home Care - Private Contractors Payment,1045.01,0.00,COMMERCIAL SUPPLIER 
 09-02-2023,Adults,Home Support Services (Havering & Essex) Ltd,Home Care - Private Contractors Payment,1046.65,0.00,COMMERCIAL SUPPLIER 
 09-02-2023,Adults,Home Support Services (Havering & Essex) Ltd,Home Care - Private Contractors Payment,1048.29,0.00,COMMERCIAL SUPPLIER 
 09-02-2023,Adults,Home Support Services (Havering & Essex) Ltd,Home Care - Private Contractors Payment,1048.94,0.00,COMMERCIAL SUPPLIER 
 15-02-2023,Adults,Home Sweet Home Care Ltd,Home Care - Private Contractors Payment,1049.60,0.00,COMMERCIAL SUPPLIER 
 15-02-2023,Adults,Home Sweet Home Care Ltd,Home Care - Private Contractors Payment,1050.58,0.00,COMMERCIAL SUPPLIER 
 01-02-2023,Adults,Prestige Care & Support Ltd,Home Care - Private Contractors Payment,1052.88,0.00,COMMERCIAL SUPPLIER 
 15-02-2023,Adults,Home Sweet Home Care Ltd,Home Care - Private Contractors Payment,1053.54,0.00,COMMERCIAL SUPPLIER 
 09-02-2023,Adults,Home Support Services (Havering & Essex) Ltd,Home Care - Private Contractors Payment,1054.19,0.00,COMMERCIAL SUPPLIER 
 15-02-2023,Adults,Morepower Ltd t/a Aqs Homecare,Home Care - Private Contractors Payment,1056.49,0.00,COMMERCIAL SUPPLIER 
 01-02-2023,Adults,Prestige Care & Support Ltd,Home Care - Private Contractors Payment,1058.13,0.00,COMMERCIAL SUPPLIER 
 09-02-2023,Adults,Home Support Services (Havering & Essex) Ltd,Home Care - Private Contractors Payment,1062.72,0.00,COMMERCIAL SUPPLIER 
 09-02-2023,Adults,Home Support Services (Havering & Essex) Ltd,Home Care - Private Contractors Payment,1062.72,0.00,COMMERCIAL SUPPLIER 
 09-02-2023,Adults,Rosemont Care Limited,Home Care - Private Contractors Payment,1062.72,0.00,COMMERCIAL SUPPLIER 
 15-02-2023,Adults,Home Sweet Home Care Ltd,Home Care - Private Contractors Payment,1062.72,0.00,COMMERCIAL SUPPLIER 
 15-02-2023,Adults,Home Sweet Home Care Ltd,Home Care - Private Contractors Payment,1063.70,0.00,COMMERCIAL SUPPLIER 
 09-02-2023,Adults,Home Support Services (Havering & Essex) Ltd,Home Care - Private Contractors Payment,1067.97,0.00,COMMERCIAL SUPPLIER 
 14-02-2023,Adults,John Stanleys Care Agency Ltd,Home Care - Private Contractors Payment,1068.95,0.00,COMMERCIAL SUPPLIER 
 09-02-2023,Adults,Home Support Services (Havering & Essex) Ltd,Home Care - Private Contractors Payment,1069.61,0.00,COMMERCIAL SUPPLIER 
 09-02-2023,Adults,Home Support Services (Havering & Essex) Ltd,Home Care - Private Contractors Payment,1069.94,0.00,COMMERCIAL SUPPLIER 
 15-02-2023,Adults,Prior Care Ltd_a,Home Care - Private Contractors Payment,1071.90,0.00,COMMERCIAL SUPPLIER 
 15-02-2023,Adults,Home Sweet Home Care Ltd,Home Care - Private Contractors Payment,1072.56,0.00,COMMERCIAL SUPPLIER 
 15-02-2023,Adults,Home Sweet Home Care Ltd,Home Care - Private Contractors Payment,1072.89,0.00,COMMERCIAL SUPPLIER 
 15-02-2023,Adults,Home Sweet Home Care Ltd,Home Care - Private Contractors Payment,1074.20,0.00,COMMERCIAL SUPPLIER 
 20-02-2023,Adults,Lodge Group Care UK Ltd,Home Care - Private Contractors Payment,1075.84,0.00,COMMERCIAL SUPPLIER 
 15-02-2023,Adults,Prior Care Ltd_a,Home Care - Private Contractors Payment,1076.17,0.00,COMMERCIAL SUPPLIER 
 15-02-2023,Adults,Home Sweet Home Care Ltd,Home Care - Private Contractors Payment,1076.82,0.00,COMMERCIAL SUPPLIER 
 15-02-2023,Adults,Home Sweet Home Care Ltd,Home Care - Private Contractors Payment,1077.15,0.00,COMMERCIAL SUPPLIER 
 15-02-2023,Adults,Morepower Ltd t/a Aqs Homecare,Home Care - Private Contractors Payment,1080.10,0.00,COMMERCIAL SUPPLIER 
 15-02-2023,Adults,Morepower Ltd t/a Aqs Homecare,Home Care - Private Contractors Payment,1081.09,0.00,COMMERCIAL SUPPLIER 
 09-02-2023,Adults,Home Support Services (Havering & Essex) Ltd,Home Care - Private Contractors Payment,1081.42,0.00,COMMERCIAL SUPPLIER 
 09-02-2023,Adults,Home Support Services (Havering & Essex) Ltd,Home Care - Private Contractors Payment,1082.40,0.00,COMMERCIAL SUPPLIER 
 09-02-2023,Adults,Home Support Services (Havering & Essex) Ltd,Home Care - Private Contractors Payment,1082.40,0.00,COMMERCIAL SUPPLIER 
 15-02-2023,Adults,Prior Care Ltd_a,Home Care - Private Contractors Payment,1082.40,0.00,COMMERCIAL SUPPLIER 
 15-02-2023,Adults,Home Sweet Home Care Ltd,Home Care - Private Contractors Payment,1082.40,0.00,COMMERCIAL SUPPLIER 
 26-02-2023,Adults,KJD Care Limited,Home Care - Private Contractors Payment,1082.42,0.00,INDIVIDUALS 
 15-02-2023,Adults,Home Sweet Home Care Ltd,Home Care - Private Contractors Payment,1084.37,0.00,COMMERCIAL SUPPLIER 
 15-02-2023,Adults,Home Sweet Home Care Ltd,Home Care - Private Contractors Payment,1085.02,0.00,COMMERCIAL SUPPLIER 
 01-02-2023,Adults,Prestige Care & Support Ltd,Home Care - Private Contractors Payment,1085.35,0.00,COMMERCIAL SUPPLIER 
 09-02-2023,Adults,Home Support Services (Havering & Essex) Ltd,Home Care - Private Contractors Payment,1086.34,0.00,COMMERCIAL SUPPLIER 
 15-02-2023,Adults,Home Sweet Home Care Ltd,Home Care - Private Contractors Payment,1086.66,0.00,COMMERCIAL SUPPLIER 
 09-02-2023,Adults,Home Support Services (Havering & Essex) Ltd,Home Care - Private Contractors Payment,1087.98,0.00,COMMERCIAL SUPPLIER 
 15-02-2023,Adults,Home Sweet Home Care Ltd,Home Care - Private Contractors Payment,1090.27,0.00,COMMERCIAL SUPPLIER 
 09-02-2023,Adults,Home Support Services (Havering & Essex) Ltd,Home Care - Private Contractors Payment,1092.24,0.00,COMMERCIAL SUPPLIER 
 15-02-2023,Adults,Home Sweet Home Care Ltd,Home Care - Private Contractors Payment,1092.24,0.00,COMMERCIAL SUPPLIER 
 15-02-2023,Adults,Home Sweet Home Care Ltd,Home Care - Private Contractors Payment,1092.24,0.00,COMMERCIAL SUPPLIER 
 20-02-2023,Adults,Lodge Group Care UK Ltd,Home Care - Private Contractors Payment,1092.24,0.00,COMMERCIAL SUPPLIER 
 28-02-2023,Adults,Prestige Care & Support Ltd,Home Care - Private Contractors Payment,1092.24,0.00,COMMERCIAL SUPPLIER 
 28-02-2023,Adults,Prestige Care & Support Ltd,Home Care - Private Contractors Payment,1092.24,0.00,COMMERCIAL SUPPLIER 
 15-02-2023,Adults,Prior Care Ltd_a,Home Care - Private Contractors Payment,1092.90,0.00,COMMERCIAL SUPPLIER 
 15-02-2023,Adults,Home Sweet Home Care Ltd,Home Care - Private Contractors Payment,1092.90,0.00,COMMERCIAL SUPPLIER 
 14-02-2023,Adults,John Stanleys Care Agency Ltd,Home Care - Private Contractors Payment,1093.88,0.00,COMMERCIAL SUPPLIER 
 20-02-2023,Adults,Lodge Group Care UK Ltd,Home Care - Private Contractors Payment,1093.88,0.00,COMMERCIAL SUPPLIER 
 09-02-2023,Adults,Home Support Services (Havering & Essex) Ltd,Home Care - Private Contractors Payment,1094.54,0.00,COMMERCIAL SUPPLIER 
 15-02-2023,Adults,Home Sweet Home Care Ltd,Home Care - Private Contractors Payment,1094.86,0.00,COMMERCIAL SUPPLIER 
 15-02-2023,Adults,Home Sweet Home Care Ltd,Home Care - Private Contractors Payment,1095.19,0.00,COMMERCIAL SUPPLIER 
 15-02-2023,Adults,Prior Care Ltd_a,Home Care - Private Contractors Payment,1096.18,0.00,COMMERCIAL SUPPLIER 
 03-02-2023,Adults,Anytime Care 2020_a,Home Care - Private Contractors Payment,1096.83,0.00,COMMERCIAL SUPPLIER 
 15-02-2023,Adults,Home Sweet Home Care Ltd,Home Care - Private Contractors Payment,1098.80,0.00,COMMERCIAL SUPPLIER 
 15-02-2023,Adults,Home Sweet Home Care Ltd,Home Care - Private Contractors Payment,1101.42,0.00,COMMERCIAL SUPPLIER 
 01-02-2023,Adults,IJB Healthcare Ltd,Home Care - Private Contractors Payment,1102.08,0.00,COMMERCIAL SUPPLIER 
 01-02-2023,Adults,IJB Healthcare Ltd,Home Care - Private Contractors Payment,1102.08,0.00,COMMERCIAL SUPPLIER 
 01-02-2023,Adults,Prestige Care & Support Ltd,Home Care - Private Contractors Payment,1102.08,0.00,COMMERCIAL SUPPLIER 
 01-02-2023,Adults,Prestige Care & Support Ltd,Home Care - Private Contractors Payment,1102.08,0.00,COMMERCIAL SUPPLIER 
 01-02-2023,Adults,Prestige Care & Support Ltd,Home Care - Private Contractors Payment,1102.08,0.00,COMMERCIAL SUPPLIER 
 01-02-2023,Adults,Prestige Care & Support Ltd,Home Care - Private Contractors Payment,1102.08,0.00,COMMERCIAL SUPPLIER 
 01-02-2023,Adults,Prestige Care & Support Ltd,Home Care - Private Contractors Payment,1102.08,0.00,COMMERCIAL SUPPLIER 
 01-02-2023,Adults,Prestige Care & Support Ltd,Home Care - Private Contractors Payment,1102.08,0.00,COMMERCIAL SUPPLIER 
 01-02-2023,Adults,Prestige Care & Support Ltd,Home Care - Private Contractors Payment,1102.08,0.00,COMMERCIAL SUPPLIER 
 02-02-2023,Adults,KJD Care Limited,Home Care - Private Contractors Payment,1102.08,0.00,INDIVIDUALS 
 02-02-2023,Adults,KJD Care Limited,Home Care - Private Contractors Payment,1102.08,0.00,INDIVIDUALS 
 09-02-2023,Adults,Home Support Services (Havering & Essex) Ltd,Home Care - Private Contractors Payment,1102.08,0.00,COMMERCIAL SUPPLIER 
 09-02-2023,Adults,Home Support Services (Havering & Essex) Ltd,Home Care - Private Contractors Payment,1102.08,0.00,COMMERCIAL SUPPLIER 
 09-02-2023,Adults,Home Support Services (Havering & Essex) Ltd,Home Care - Private Contractors Payment,1102.08,0.00,COMMERCIAL SUPPLIER 
 09-02-2023,Adults,Home Support Services (Havering & Essex) Ltd,Home Care - Private Contractors Payment,1102.08,0.00,COMMERCIAL SUPPLIER 
 09-02-2023,Adults,Home Support Services (Havering & Essex) Ltd,Home Care - Private Contractors Payment,1102.08,0.00,COMMERCIAL SUPPLIER 
 09-02-2023,Adults,Home Support Services (Havering & Essex) Ltd,Home Care - Private Contractors Payment,1102.08,0.00,COMMERCIAL SUPPLIER 
 09-02-2023,Adults,Home Support Services (Havering & Essex) Ltd,Home Care - Private Contractors Payment,1102.08,0.00,COMMERCIAL SUPPLIER 
 09-02-2023,Adults,Home Support Services (Havering & Essex) Ltd,Home Care - Private Contractors Payment,1102.08,0.00,COMMERCIAL SUPPLIER 
 09-02-2023,Adults,Rosemont Care Limited,Home Care - Private Contractors Payment,1102.08,0.00,COMMERCIAL SUPPLIER 
 09-02-2023,Adults,Rosemont Care Limited,Home Care - Private Contractors Payment,1102.08,0.00,COMMERCIAL SUPPLIER 
 09-02-2023,Adults,Rosemont Care Limited,Home Care - Private Contractors Payment,1102.08,0.00,COMMERCIAL SUPPLIER 
 09-02-2023,Adults,Rosemont Care Limited,Home Care - Private Contractors Payment,1102.08,0.00,COMMERCIAL SUPPLIER 
 09-02-2023,Adults,Rosemont Care Limited,Home Care - Private Contractors Payment,1102.08,0.00,COMMERCIAL SUPPLIER 
 09-02-2023,Adults,Rosemont Care Limited,Home Care - Private Contractors Payment,1102.08,0.00,COMMERCIAL SUPPLIER 
 10-02-2023,Adults,Passion Tree Care Services Ltd,Home Care - Private Contractors Payment,1102.08,0.00,COMMERCIAL SUPPLIER 
 13-02-2023,Adults,Recruitcare Professionals Ltd ,Home Care - Private Contractors Payment,1102.08,0.00,COMMERCIAL SUPPLIER 
 13-02-2023,Adults,Recruitcare Professionals Ltd ,Home Care - Private Contractors Payment,1102.08,0.00,COMMERCIAL SUPPLIER 
 13-02-2023,Adults,Recruitcare Professionals Ltd ,Home Care - Private Contractors Payment,1102.08,0.00,COMMERCIAL SUPPLIER 
 13-02-2023,Adults,Recruitcare Professionals Ltd ,Home Care - Private Contractors Payment,1102.08,0.00,COMMERCIAL SUPPLIER 
 14-02-2023,Adults,Hospiva Care & Associates Agency Ltd_a,Home Care - Private Contractors Payment,1102.08,0.00,COMMERCIAL SUPPLIER 
 14-02-2023,Adults,John Stanleys Care Agency Ltd,Home Care - Private Contractors Payment,1102.08,0.00,COMMERCIAL SUPPLIER 
 15-02-2023,Adults,Home Sweet Home Care Ltd,Home Care - Private Contractors Payment,1102.08,0.00,COMMERCIAL SUPPLIER 
 15-02-2023,Adults,Home Sweet Home Care Ltd,Home Care - Private Contractors Payment,1102.08,0.00,COMMERCIAL SUPPLIER 
 20-02-2023,Adults,Lodge Group Care UK Ltd,Home Care - Private Contractors Payment,1102.08,0.00,COMMERCIAL SUPPLIER 
 20-02-2023,Adults,Lodge Group Care UK Ltd,Home Care - Private Contractors Payment,1102.08,0.00,COMMERCIAL SUPPLIER 
 20-02-2023,Adults,Lodge Group Care UK Ltd,Home Care - Private Contractors Payment,1102.08,0.00,COMMERCIAL SUPPLIER 
 26-02-2023,Adults,KJD Care Limited,Home Care - Private Contractors Payment,1102.08,0.00,INDIVIDUALS 
 26-02-2023,Adults,KJD Care Limited,Home Care - Private Contractors Payment,1102.08,0.00,INDIVIDUALS 
 26-02-2023,Adults,KJD Care Limited,Home Care - Private Contractors Payment,1102.08,0.00,INDIVIDUALS 
 26-02-2023,Adults,KJD Care Limited,Home Care - Private Contractors Payment,1102.08,0.00,INDIVIDUALS 
 26-02-2023,Adults,KJD Care Limited,Home Care - Private Contractors Payment,1102.08,0.00,INDIVIDUALS 
 27-02-2023,Adults,Recruitcare Professionals Ltd ,Home Care - Private Contractors Payment,1102.08,0.00,COMMERCIAL SUPPLIER 
 27-02-2023,Adults,Outreach Support Services Ltd,Home Care - Private Contractors Payment,1102.08,0.00,COMMERCIAL SUPPLIER 
 27-02-2023,Adults,Outreach Support Services Ltd,Home Care - Private Contractors Payment,1102.08,0.00,COMMERCIAL SUPPLIER 
 27-02-2023,Adults,Outreach Support Services Ltd,Home Care - Private Contractors Payment,1102.08,0.00,COMMERCIAL SUPPLIER 
 27-02-2023,Adults,London Homecare Ltd,Home Care - Private Contractors Payment,1102.08,0.00,COMMERCIAL SUPPLIER 
 27-02-2023,Adults,London Homecare Ltd,Home Care - Private Contractors Payment,1102.08,0.00,COMMERCIAL SUPPLIER 
 27-02-2023,Adults,London Homecare Ltd,Home Care - Private Contractors Payment,1102.08,0.00,COMMERCIAL SUPPLIER 
 28-02-2023,Adults,Prestige Care & Support Ltd,Home Care - Private Contractors Payment,1102.08,0.00,COMMERCIAL SUPPLIER 
 28-02-2023,Adults,Prestige Care & Support Ltd,Home Care - Private Contractors Payment,1102.08,0.00,COMMERCIAL SUPPLIER 
 28-02-2023,Adults,Prestige Care & Support Ltd,Home Care - Private Contractors Payment,1102.08,0.00,COMMERCIAL SUPPLIER 
 28-02-2023,Adults,Prestige Care & Support Ltd,Home Care - Private Contractors Payment,1102.08,0.00,COMMERCIAL SUPPLIER 
 28-02-2023,Adults,Prestige Care & Support Ltd,Home Care - Private Contractors Payment,1102.08,0.00,COMMERCIAL SUPPLIER 
 28-02-2023,Adults,Prestige Care & Support Ltd,Home Care - Private Contractors Payment,1102.08,0.00,COMMERCIAL SUPPLIER 
 28-02-2023,Adults,Prestige Care & Support Ltd,Home Care - Private Contractors Payment,1102.08,0.00,COMMERCIAL SUPPLIER 
 28-02-2023,Adults,Prestige Care & Support Ltd,Home Care - Private Contractors Payment,1102.08,0.00,COMMERCIAL SUPPLIER 
 28-02-2023,Adults,Prestige Care & Support Ltd,Home Care - Private Contractors Payment,1102.08,0.00,COMMERCIAL SUPPLIER 
 28-02-2023,Adults,Prestige Care & Support Ltd,Home Care - Private Contractors Payment,1102.08,0.00,COMMERCIAL SUPPLIER 
 28-02-2023,Adults,Prestige Care & Support Ltd,Home Care - Private Contractors Payment,1102.08,0.00,COMMERCIAL SUPPLIER 
 09-02-2023,Adults,Home Support Services (Havering & Essex) Ltd,Home Care - Private Contractors Payment,1102.41,0.00,COMMERCIAL SUPPLIER 
 09-02-2023,Adults,Home Support Services (Havering & Essex) Ltd,Home Care - Private Contractors Payment,1102.41,0.00,COMMERCIAL SUPPLIER 
 09-02-2023,Adults,Home Support Services (Havering & Essex) Ltd,Home Care - Private Contractors Payment,1102.41,0.00,COMMERCIAL SUPPLIER 
 28-02-2023,Adults,Prestige Care & Support Ltd,Home Care - Private Contractors Payment,1102.41,0.00,COMMERCIAL SUPPLIER 
 09-02-2023,Adults,Home Support Services (Havering & Essex) Ltd,Home Care - Private Contractors Payment,1102.74,0.00,COMMERCIAL SUPPLIER 
 09-02-2023,Adults,Home Support Services (Havering & Essex) Ltd,Home Care - Private Contractors Payment,1102.74,0.00,COMMERCIAL SUPPLIER 
 15-02-2023,Adults,Prior Care Ltd_a,Home Care - Private Contractors Payment,1102.74,0.00,COMMERCIAL SUPPLIER 
 15-02-2023,Adults,Prior Care Ltd_a,Home Care - Private Contractors Payment,1102.74,0.00,COMMERCIAL SUPPLIER 
 09-02-2023,Adults,Home Support Services (Havering & Essex) Ltd,Home Care - Private Contractors Payment,1103.06,0.00,COMMERCIAL SUPPLIER 
 09-02-2023,Adults,Home Support Services (Havering & Essex) Ltd,Home Care - Private Contractors Payment,1103.06,0.00,COMMERCIAL SUPPLIER 
 09-02-2023,Adults,Home Support Services (Havering & Essex) Ltd,Home Care - Private Contractors Payment,1103.06,0.00,COMMERCIAL SUPPLIER 
 01-02-2023,Adults,Prestige Care & Support Ltd,Home Care - Private Contractors Payment,1103.39,0.00,COMMERCIAL SUPPLIER 
 01-02-2023,Adults,Prestige Care & Support Ltd,Home Care - Private Contractors Payment,1103.39,0.00,COMMERCIAL SUPPLIER 
 09-02-2023,Adults,Home Support Services (Havering & Essex) Ltd,Home Care - Private Contractors Payment,1103.39,0.00,COMMERCIAL SUPPLIER 
 15-02-2023,Adults,Home Sweet Home Care Ltd,Home Care - Private Contractors Payment,1103.39,0.00,COMMERCIAL SUPPLIER 
 09-02-2023,Adults,Home Support Services (Havering & Essex) Ltd,Home Care - Private Contractors Payment,1103.72,0.00,COMMERCIAL SUPPLIER 
 09-02-2023,Adults,Home Support Services (Havering & Essex) Ltd,Home Care - Private Contractors Payment,1103.72,0.00,COMMERCIAL SUPPLIER 
 28-02-2023,Adults,Prestige Care & Support Ltd,Home Care - Private Contractors Payment,1103.72,0.00,COMMERCIAL SUPPLIER 
 15-02-2023,Adults,Home Sweet Home Care Ltd,Home Care - Private Contractors Payment,1104.05,0.00,COMMERCIAL SUPPLIER 
 28-02-2023,Adults,Prestige Care & Support Ltd,Home Care - Private Contractors Payment,1104.05,0.00,COMMERCIAL SUPPLIER 
 01-02-2023,Adults,Prestige Care & Support Ltd,Home Care - Private Contractors Payment,1104.38,0.00,COMMERCIAL SUPPLIER 
 01-02-2023,Adults,Prestige Care & Support Ltd,Home Care - Private Contractors Payment,1104.38,0.00,COMMERCIAL SUPPLIER 
 01-02-2023,Adults,Prestige Care & Support Ltd,Home Care - Private Contractors Payment,1104.38,0.00,COMMERCIAL SUPPLIER 
 01-02-2023,Adults,Prestige Care & Support Ltd,Home Care - Private Contractors Payment,1104.38,0.00,COMMERCIAL SUPPLIER 
 15-02-2023,Adults,Home Sweet Home Care Ltd,Home Care - Private Contractors Payment,1104.38,0.00,COMMERCIAL SUPPLIER 
 09-02-2023,Adults,Home Support Services (Havering & Essex) Ltd,Home Care - Private Contractors Payment,1104.70,0.00,COMMERCIAL SUPPLIER 
 20-02-2023,Adults,Lodge Group Care UK Ltd,Home Care - Private Contractors Payment,1105.03,0.00,COMMERCIAL SUPPLIER 
 28-02-2023,Adults,Prestige Care & Support Ltd,Home Care - Private Contractors Payment,1105.69,0.00,COMMERCIAL SUPPLIER 
 09-02-2023,Adults,Home Support Services (Havering & Essex) Ltd,Home Care - Private Contractors Payment,1106.02,0.00,COMMERCIAL SUPPLIER 
 20-02-2023,Adults,Lodge Group Care UK Ltd,Home Care - Private Contractors Payment,1106.02,0.00,COMMERCIAL SUPPLIER 
 15-02-2023,Adults,Prior Care Ltd_a,Home Care - Private Contractors Payment,1106.34,0.00,COMMERCIAL SUPPLIER 
 01-02-2023,Adults,Prestige Care & Support Ltd,Home Care - Private Contractors Payment,1106.67,0.00,COMMERCIAL SUPPLIER 
 09-02-2023,Adults,Home Support Services (Havering & Essex) Ltd,Home Care - Private Contractors Payment,1106.67,0.00,COMMERCIAL SUPPLIER 
 02-02-2023,Adults,KJD Care Limited,Home Care - Private Contractors Payment,1107.17,0.00,INDIVIDUALS 
 15-02-2023,Adults,Home Sweet Home Care Ltd,Home Care - Private Contractors Payment,1107.66,0.00,COMMERCIAL SUPPLIER 
 09-02-2023,Adults,Home Support Services (Havering & Essex) Ltd,Home Care - Private Contractors Payment,1107.98,0.00,COMMERCIAL SUPPLIER 
 09-02-2023,Adults,Home Support Services (Havering & Essex) Ltd,Home Care - Private Contractors Payment,1107.98,0.00,COMMERCIAL SUPPLIER 
 20-02-2023,Adults,Lodge Group Care UK Ltd,Home Care - Private Contractors Payment,1108.97,0.00,COMMERCIAL SUPPLIER 
 20-02-2023,Adults,Lodge Group Care UK Ltd,Home Care - Private Contractors Payment,1108.97,0.00,COMMERCIAL SUPPLIER 
 15-02-2023,Adults,Home Sweet Home Care Ltd,Home Care - Private Contractors Payment,1109.30,0.00,COMMERCIAL SUPPLIER 
 15-02-2023,Adults,Prior Care Ltd_a,Home Care - Private Contractors Payment,1109.95,0.00,COMMERCIAL SUPPLIER 
 15-02-2023,Adults,Prior Care Ltd_a,Home Care - Private Contractors Payment,1109.95,0.00,COMMERCIAL SUPPLIER 
 09-02-2023,Adults,Home Support Services (Havering & Essex) Ltd,Home Care - Private Contractors Payment,1110.61,0.00,COMMERCIAL SUPPLIER 
 10-02-2023,Adults,Quality Healthcare Solutions Ltd t/a Kare Plus Romford,Home Care - Private Contractors Payment,1110.61,0.00,COMMERCIAL SUPPLIER 
 09-02-2023,Adults,Home Support Services (Havering & Essex) Ltd,Home Care - Private Contractors Payment,1110.94,0.00,COMMERCIAL SUPPLIER 
 28-02-2023,Adults,Prestige Care & Support Ltd,Home Care - Private Contractors Payment,1111.26,0.00,COMMERCIAL SUPPLIER 
 09-02-2023,Adults,Home Support Services (Havering & Essex) Ltd,Home Care - Private Contractors Payment,1111.92,0.00,COMMERCIAL SUPPLIER 
 20-02-2023,Adults,Lodge Group Care UK Ltd,Home Care - Private Contractors Payment,1111.92,0.00,COMMERCIAL SUPPLIER 
 01-02-2023,Adults,Prestige Care & Support Ltd,Home Care - Private Contractors Payment,1112.25,0.00,COMMERCIAL SUPPLIER 
 01-02-2023,Adults,Prestige Care & Support Ltd,Home Care - Private Contractors Payment,1112.25,0.00,COMMERCIAL SUPPLIER 
 15-02-2023,Adults,Morepower Ltd t/a Aqs Homecare,Home Care - Private Contractors Payment,1112.25,0.00,COMMERCIAL SUPPLIER 
 09-02-2023,Adults,Home Support Services (Havering & Essex) Ltd,Home Care - Private Contractors Payment,1112.58,0.00,COMMERCIAL SUPPLIER 
 15-02-2023,Adults,Home Sweet Home Care Ltd,Home Care - Private Contractors Payment,1112.58,0.00,COMMERCIAL SUPPLIER 
 15-02-2023,Adults,Prior Care Ltd_a,Home Care - Private Contractors Payment,1112.90,0.00,COMMERCIAL SUPPLIER 
 20-02-2023,Adults,Lodge Group Care UK Ltd,Home Care - Private Contractors Payment,1112.90,0.00,COMMERCIAL SUPPLIER 
 09-02-2023,Adults,Home Support Services (Havering & Essex) Ltd,Home Care - Private Contractors Payment,1113.23,0.00,COMMERCIAL SUPPLIER 
 10-02-2023,Adults,Quality Healthcare Solutions Ltd t/a Kare Plus Romford,Home Care - Private Contractors Payment,1113.23,0.00,COMMERCIAL SUPPLIER 
 15-02-2023,Adults,Morepower Ltd t/a Aqs Homecare,Home Care - Private Contractors Payment,1113.23,0.00,COMMERCIAL SUPPLIER 
 20-02-2023,Adults,Lodge Group Care UK Ltd,Home Care - Private Contractors Payment,1113.23,0.00,COMMERCIAL SUPPLIER 
 09-02-2023,Adults,Home Support Services (Havering & Essex) Ltd,Home Care - Private Contractors Payment,1113.56,0.00,COMMERCIAL SUPPLIER 
 15-02-2023,Adults,Morepower Ltd t/a Aqs Homecare,Home Care - Private Contractors Payment,1113.56,0.00,COMMERCIAL SUPPLIER 
 01-02-2023,Adults,Prestige Care & Support Ltd,Home Care - Private Contractors Payment,1113.89,0.00,COMMERCIAL SUPPLIER 
 15-02-2023,Adults,Home Sweet Home Care Ltd,Home Care - Private Contractors Payment,1113.89,0.00,COMMERCIAL SUPPLIER 
 20-02-2023,Adults,Lodge Group Care UK Ltd,Home Care - Private Contractors Payment,1113.89,0.00,COMMERCIAL SUPPLIER 
 03-02-2023,Adults,Anytime Care 2020_a,Home Care - Private Contractors Payment,1114.22,0.00,COMMERCIAL SUPPLIER 
 09-02-2023,Adults,Home Support Services (Havering & Essex) Ltd,Home Care - Private Contractors Payment,1114.22,0.00,COMMERCIAL SUPPLIER 
 20-02-2023,Adults,Lodge Group Care UK Ltd,Home Care - Private Contractors Payment,1114.54,0.00,COMMERCIAL SUPPLIER 
 28-02-2023,Adults,Prestige Care & Support Ltd,Home Care - Private Contractors Payment,1115.20,0.00,COMMERCIAL SUPPLIER 
 09-02-2023,Adults,Home Support Services (Havering & Essex) Ltd,Home Care - Private Contractors Payment,1115.86,0.00,COMMERCIAL SUPPLIER 
 15-02-2023,Adults,Home Sweet Home Care Ltd,Home Care - Private Contractors Payment,1115.86,0.00,COMMERCIAL SUPPLIER 
 09-02-2023,Adults,Home Support Services (Havering & Essex) Ltd,Home Care - Private Contractors Payment,1116.18,0.00,COMMERCIAL SUPPLIER 
 09-02-2023,Adults,Home Support Services (Havering & Essex) Ltd,Home Care - Private Contractors Payment,1116.84,0.00,COMMERCIAL SUPPLIER 
 09-02-2023,Adults,Home Support Services (Havering & Essex) Ltd,Home Care - Private Contractors Payment,1116.84,0.00,COMMERCIAL SUPPLIER 
 09-02-2023,Adults,Home Support Services (Havering & Essex) Ltd,Home Care - Private Contractors Payment,1116.84,0.00,COMMERCIAL SUPPLIER 
 09-02-2023,Adults,Home Support Services (Havering & Essex) Ltd,Home Care - Private Contractors Payment,1116.84,0.00,COMMERCIAL SUPPLIER 
 28-02-2023,Adults,Prestige Care & Support Ltd,Home Care - Private Contractors Payment,1116.84,0.00,COMMERCIAL SUPPLIER 
 10-02-2023,Adults,Quality Healthcare Solutions Ltd t/a Kare Plus Romford,Home Care - Private Contractors Payment,1118.81,0.00,COMMERCIAL SUPPLIER 
 28-02-2023,Adults,Prestige Care & Support Ltd,Home Care - Private Contractors Payment,1119.14,0.00,COMMERCIAL SUPPLIER 
 09-02-2023,Adults,Home Support Services (Havering & Essex) Ltd,Home Care - Private Contractors Payment,1119.79,0.00,COMMERCIAL SUPPLIER 
 06-02-2023,Adults,Westminster Homecare Ltd_a,Home Care - Private Contractors Payment,1120.45,0.00,COMMERCIAL SUPPLIER 
 28-02-2023,Adults,Prestige Care & Support Ltd,Home Care - Private Contractors Payment,1121.43,0.00,COMMERCIAL SUPPLIER 
 28-02-2023,Adults,Prestige Care & Support Ltd,Home Care - Private Contractors Payment,1121.43,0.00,COMMERCIAL SUPPLIER 
 28-02-2023,Adults,Prestige Care & Support Ltd,Home Care - Private Contractors Payment,1121.43,0.00,COMMERCIAL SUPPLIER 
 28-02-2023,Adults,Prestige Care & Support Ltd,Home Care - Private Contractors Payment,1121.43,0.00,COMMERCIAL SUPPLIER 
 01-02-2023,Adults,Carers Trust East Midlands,Home Care - Private Contractors Payment,1121.76,0.00,COMMERCIAL SUPPLIER 
 09-02-2023,Adults,Home Support Services (Havering & Essex) Ltd,Home Care - Private Contractors Payment,1121.76,0.00,COMMERCIAL SUPPLIER 
 15-02-2023,Adults,Prior Care Ltd_a,Home Care - Private Contractors Payment,1121.76,0.00,COMMERCIAL SUPPLIER 
 15-02-2023,Adults,Home Sweet Home Care Ltd,Home Care - Private Contractors Payment,1121.76,0.00,COMMERCIAL SUPPLIER 
 28-02-2023,Adults,Prestige Care & Support Ltd,Home Care - Private Contractors Payment,1121.76,0.00,COMMERCIAL SUPPLIER 
 01-02-2023,Adults,Prestige Care & Support Ltd,Home Care - Private Contractors Payment,1122.42,0.00,COMMERCIAL SUPPLIER 
 20-02-2023,Adults,Lodge Group Care UK Ltd,Home Care - Private Contractors Payment,1123.73,0.00,COMMERCIAL SUPPLIER 
 03-02-2023,Adults,Anytime Care 2020_a,Home Care - Private Contractors Payment,1124.06,0.00,COMMERCIAL SUPPLIER 
 14-02-2023,Adults,John Stanleys Care Agency Ltd,Home Care - Private Contractors Payment,1126.02,0.00,COMMERCIAL SUPPLIER 
 20-02-2023,Adults,Lodge Group Care UK Ltd,Home Care - Private Contractors Payment,1126.02,0.00,COMMERCIAL SUPPLIER 
 09-02-2023,Adults,Home Support Services (Havering & Essex) Ltd,Home Care - Private Contractors Payment,1126.35,0.00,COMMERCIAL SUPPLIER 
 28-02-2023,Adults,Prestige Care & Support Ltd,Home Care - Private Contractors Payment,1126.35,0.00,COMMERCIAL SUPPLIER 
 09-02-2023,Adults,Home Support Services (Havering & Essex) Ltd,Home Care - Private Contractors Payment,1126.68,0.00,COMMERCIAL SUPPLIER 
 14-02-2023,Adults,John Stanleys Care Agency Ltd,Home Care - Private Contractors Payment,1126.68,0.00,COMMERCIAL SUPPLIER 
 09-02-2023,Adults,Home Support Services (Havering & Essex) Ltd,Home Care - Private Contractors Payment,1127.66,0.00,COMMERCIAL SUPPLIER 
 20-02-2023,Adults,Lodge Group Care UK Ltd,Home Care - Private Contractors Payment,1127.66,0.00,COMMERCIAL SUPPLIER 
 28-02-2023,Adults,Prestige Care & Support Ltd,Home Care - Private Contractors Payment,1127.66,0.00,COMMERCIAL SUPPLIER 
 15-02-2023,Adults,Home Sweet Home Care Ltd,Home Care - Private Contractors Payment,1128.32,0.00,COMMERCIAL SUPPLIER 
 20-02-2023,Adults,Lodge Group Care UK Ltd,Home Care - Private Contractors Payment,1129.63,0.00,COMMERCIAL SUPPLIER 
 20-02-2023,Adults,Lodge Group Care UK Ltd,Home Care - Private Contractors Payment,1130.62,0.00,COMMERCIAL SUPPLIER 
 09-02-2023,Adults,Home Support Services (Havering & Essex) Ltd,Home Care - Private Contractors Payment,1131.27,0.00,COMMERCIAL SUPPLIER 
 10-02-2023,Adults,Quality Healthcare Solutions Ltd t/a Kare Plus Romford,Home Care - Private Contractors Payment,1131.93,0.00,COMMERCIAL SUPPLIER 
 09-02-2023,Adults,Home Support Services (Havering & Essex) Ltd,Home Care - Private Contractors Payment,1133.57,0.00,COMMERCIAL SUPPLIER 
 09-02-2023,Adults,Home Support Services (Havering & Essex) Ltd,Home Care - Private Contractors Payment,1134.55,0.00,COMMERCIAL SUPPLIER 
 20-02-2023,Adults,Lodge Group Care UK Ltd,Home Care - Private Contractors Payment,1134.88,0.00,COMMERCIAL SUPPLIER 
 15-02-2023,Adults,Home Sweet Home Care Ltd,Home Care - Private Contractors Payment,1139.47,0.00,COMMERCIAL SUPPLIER 
 15-02-2023,Adults,Home Sweet Home Care Ltd,Home Care - Private Contractors Payment,1139.47,0.00,COMMERCIAL SUPPLIER 
 15-02-2023,Adults,Morepower Ltd t/a Aqs Homecare,Home Care - Private Contractors Payment,1141.11,0.00,COMMERCIAL SUPPLIER 
 15-02-2023,Adults,Morepower Ltd t/a Aqs Homecare,Home Care - Private Contractors Payment,1141.77,0.00,COMMERCIAL SUPPLIER 
 09-02-2023,Adults,Home Support Services (Havering & Essex) Ltd,Home Care - Private Contractors Payment,1142.42,0.00,COMMERCIAL SUPPLIER 
 09-02-2023,Adults,Home Support Services (Havering & Essex) Ltd,Home Care - Private Contractors Payment,1142.42,0.00,COMMERCIAL SUPPLIER 
 09-02-2023,Adults,Home Support Services (Havering & Essex) Ltd,Home Care - Private Contractors Payment,1147.02,0.00,COMMERCIAL SUPPLIER 
 09-02-2023,Adults,Home Support Services (Havering & Essex) Ltd,Home Care - Private Contractors Payment,1150.95,0.00,COMMERCIAL SUPPLIER 
 15-02-2023,Adults,Morepower Ltd t/a Aqs Homecare,Home Care - Private Contractors Payment,1156.86,0.00,COMMERCIAL SUPPLIER 
 10-02-2023,Adults,Quality Healthcare Solutions Ltd t/a Kare Plus Romford,Home Care - Private Contractors Payment,1161.12,0.00,COMMERCIAL SUPPLIER 
 09-02-2023,Adults,Treal Care Limited,Home Care - Private Contractors Payment,1163.25,0.00,COMMERCIAL SUPPLIER 
 01-02-2023,Adults,Prestige Care & Support Ltd,Home Care - Private Contractors Payment,1163.42,0.00,COMMERCIAL SUPPLIER 
 15-02-2023,Adults,Morepower Ltd t/a Aqs Homecare,Home Care - Private Contractors Payment,1164.07,0.00,COMMERCIAL SUPPLIER 
 15-02-2023,Adults,Home Sweet Home Care Ltd,Home Care - Private Contractors Payment,1166.04,0.00,COMMERCIAL SUPPLIER 
 09-02-2023,Adults,Home Support Services (Havering & Essex) Ltd,Home Care - Private Contractors Payment,1166.70,0.00,COMMERCIAL SUPPLIER 
 20-02-2023,Adults,Lodge Group Care UK Ltd,Home Care - Private Contractors Payment,1171.29,0.00,COMMERCIAL SUPPLIER 
 28-02-2023,Adults,Prestige Care & Support Ltd,Home Care - Private Contractors Payment,1171.62,0.00,COMMERCIAL SUPPLIER 
 20-02-2023,Adults,Lodge Group Care UK Ltd,Home Care - Private Contractors Payment,1171.94,0.00,COMMERCIAL SUPPLIER 
 02-02-2023,Adults,Care-Away Ltd T/A Care Support,Home Care - Private Contractors Payment,1173.12,0.00,COMMERCIAL SUPPLIER 
 01-02-2023,Adults,Prestige Care & Support Ltd,Home Care - Private Contractors Payment,1175.55,0.00,COMMERCIAL SUPPLIER 
 20-02-2023,Adults,Lodge Group Care UK Ltd,Home Care - Private Contractors Payment,1179.49,0.00,COMMERCIAL SUPPLIER 
 14-02-2023,Adults,Hospiva Care & Associates Agency Ltd_a,Home Care - Private Contractors Payment,1179.82,0.00,COMMERCIAL SUPPLIER 
 06-02-2023,Adults,Westminster Homecare Ltd_a,Home Care - Private Contractors Payment,1180.47,0.00,COMMERCIAL SUPPLIER 
 02-02-2023,Adults,KJD Care Limited,Home Care - Private Contractors Payment,1180.80,0.00,INDIVIDUALS 
 26-02-2023,Adults,KJD Care Limited,Home Care - Private Contractors Payment,1180.80,0.00,INDIVIDUALS 
 27-02-2023,Adults,Premier Carewaiting Ltd,Home Care - Private Contractors Payment,1180.80,0.00,COMMERCIAL SUPPLIER 
 20-02-2023,Adults,Lodge Group Care UK Ltd,Home Care - Private Contractors Payment,1181.46,0.00,COMMERCIAL SUPPLIER 
 09-02-2023,Adults,Home Support Services (Havering & Essex) Ltd,Home Care - Private Contractors Payment,1181.78,0.00,COMMERCIAL SUPPLIER 
 15-02-2023,Adults,Morepower Ltd t/a Aqs Homecare,Home Care - Private Contractors Payment,1184.74,0.00,COMMERCIAL SUPPLIER 
 20-02-2023,Adults,Lodge Group Care UK Ltd,Home Care - Private Contractors Payment,1186.38,0.00,COMMERCIAL SUPPLIER 
 08-02-2023,Adults,Ace Outreach Ltd,Home Care - Private Contractors Payment,1188.00,0.00,COMMERCIAL SUPPLIER 
 14-02-2023,Adults,John Stanleys Care Agency Ltd,Home Care - Private Contractors Payment,1189.00,0.00,COMMERCIAL SUPPLIER 
 09-02-2023,Adults,Home Support Services (Havering & Essex) Ltd,Home Care - Private Contractors Payment,1190.64,0.00,COMMERCIAL SUPPLIER 
 14-02-2023,Adults,Hospiva Care & Associates Agency Ltd_a,Home Care - Private Contractors Payment,1195.56,0.00,COMMERCIAL SUPPLIER 
 10-02-2023,Adults,Quality Healthcare Solutions Ltd t/a Kare Plus Romford,Home Care - Private Contractors Payment,1195.89,0.00,COMMERCIAL SUPPLIER 
 20-02-2023,Adults,Lodge Group Care UK Ltd,Home Care - Private Contractors Payment,1208.02,0.00,COMMERCIAL SUPPLIER 
 02-02-2023,Adults,Care-Away Ltd T/A Care Support,Home Care - Private Contractors Payment,1209.23,0.00,COMMERCIAL SUPPLIER 
 15-02-2023,Adults,Home Sweet Home Care Ltd,Home Care - Private Contractors Payment,1209.99,0.00,COMMERCIAL SUPPLIER 
 15-02-2023,Adults,Morepower Ltd t/a Aqs Homecare,Home Care - Private Contractors Payment,1210.32,0.00,COMMERCIAL SUPPLIER 
 15-02-2023,Adults,Morepower Ltd t/a Aqs Homecare,Home Care - Private Contractors Payment,1210.32,0.00,COMMERCIAL SUPPLIER 
 28-02-2023,Adults,Prestige Care & Support Ltd,Home Care - Private Contractors Payment,1217.86,0.00,COMMERCIAL SUPPLIER 
 15-02-2023,Adults,Home Sweet Home Care Ltd,Home Care - Private Contractors Payment,1220.16,0.00,COMMERCIAL SUPPLIER 
 15-02-2023,Adults,Morepower Ltd t/a Aqs Homecare,Home Care - Private Contractors Payment,1228.03,0.00,COMMERCIAL SUPPLIER 
 09-02-2023,Adults,Home Support Services (Havering & Essex) Ltd,Home Care - Private Contractors Payment,1228.36,0.00,COMMERCIAL SUPPLIER 
 14-02-2023,Adults,John Stanleys Care Agency Ltd,Home Care - Private Contractors Payment,1230.66,0.00,COMMERCIAL SUPPLIER 
 14-02-2023,Adults,John Stanleys Care Agency Ltd,Home Care - Private Contractors Payment,1232.95,0.00,COMMERCIAL SUPPLIER 
 14-02-2023,Adults,John Stanleys Care Agency Ltd,Home Care - Private Contractors Payment,1238.20,0.00,COMMERCIAL SUPPLIER 
 02-02-2023,Adults,KJD Care Limited,Home Care - Private Contractors Payment,1239.84,0.00,INDIVIDUALS 
 02-02-2023,Adults,KJD Care Limited,Home Care - Private Contractors Payment,1239.84,0.00,INDIVIDUALS 
 02-02-2023,Adults,KJD Care Limited,Home Care - Private Contractors Payment,1239.84,0.00,INDIVIDUALS 
 02-02-2023,Adults,KJD Care Limited,Home Care - Private Contractors Payment,1239.84,0.00,INDIVIDUALS 
 10-02-2023,Adults,Passion Tree Care Services Ltd,Home Care - Private Contractors Payment,1239.84,0.00,COMMERCIAL SUPPLIER 
 10-02-2023,Adults,Passion Tree Care Services Ltd,Home Care - Private Contractors Payment,1239.84,0.00,COMMERCIAL SUPPLIER 
 10-02-2023,Adults,Passion Tree Care Services Ltd,Home Care - Private Contractors Payment,1239.84,0.00,COMMERCIAL SUPPLIER 
 26-02-2023,Adults,KJD Care Limited,Home Care - Private Contractors Payment,1239.84,0.00,INDIVIDUALS 
 26-02-2023,Adults,KJD Care Limited,Home Care - Private Contractors Payment,1239.84,0.00,INDIVIDUALS 
 26-02-2023,Adults,KJD Care Limited,Home Care - Private Contractors Payment,1239.84,0.00,INDIVIDUALS 
 27-02-2023,Adults,Outreach Support Services Ltd,Home Care - Private Contractors Payment,1239.84,0.00,COMMERCIAL SUPPLIER 
 27-02-2023,Adults,Outreach Support Services Ltd,Home Care - Private Contractors Payment,1239.84,0.00,COMMERCIAL SUPPLIER 
 27-02-2023,Adults,Outreach Support Services Ltd,Home Care - Private Contractors Payment,1239.84,0.00,COMMERCIAL SUPPLIER 
 27-02-2023,Adults,London Homecare Ltd,Home Care - Private Contractors Payment,1239.84,0.00,COMMERCIAL SUPPLIER 
 27-02-2023,Adults,London Homecare Ltd,Home Care - Private Contractors Payment,1239.84,0.00,COMMERCIAL SUPPLIER 
 27-02-2023,Adults,London Homecare Ltd,Home Care - Private Contractors Payment,1239.84,0.00,COMMERCIAL SUPPLIER 
 27-02-2023,Adults,London Homecare Ltd,Home Care - Private Contractors Payment,1239.84,0.00,COMMERCIAL SUPPLIER 
 27-02-2023,Adults,London Homecare Ltd,Home Care - Private Contractors Payment,1239.84,0.00,COMMERCIAL SUPPLIER 
 15-02-2023,Adults,Prior Care Ltd_a,Home Care - Private Contractors Payment,1243.45,0.00,COMMERCIAL SUPPLIER 
 13-02-2023,Adults,Bluebird Care Havering,Home Care - Private Contractors Payment,1245.20,0.00,COMMERCIAL SUPPLIER 
 27-02-2023,Adults,Bluebird Care Havering,Home Care - Private Contractors Payment,1245.20,0.00,COMMERCIAL SUPPLIER 
 09-02-2023,Adults,Home Support Services (Havering & Essex) Ltd,Home Care - Private Contractors Payment,1253.29,0.00,COMMERCIAL SUPPLIER 
 20-02-2023,Adults,Lodge Group Care UK Ltd,Home Care - Private Contractors Payment,1253.29,0.00,COMMERCIAL SUPPLIER 
 20-02-2023,Adults,Lodge Group Care UK Ltd,Home Care - Private Contractors Payment,1255.91,0.00,COMMERCIAL SUPPLIER 
 20-02-2023,Adults,Lodge Group Care UK Ltd,Home Care - Private Contractors Payment,1259.19,0.00,COMMERCIAL SUPPLIER 
 20-02-2023,Adults,Lodge Group Care UK Ltd,Home Care - Private Contractors Payment,1260.83,0.00,COMMERCIAL SUPPLIER 
 06-02-2023,Adults,Westminster Homecare Ltd_a,Home Care - Private Contractors Payment,1261.16,0.00,COMMERCIAL SUPPLIER 
 09-02-2023,Adults,Home Support Services (Havering & Essex) Ltd,Home Care - Private Contractors Payment,1262.14,0.00,COMMERCIAL SUPPLIER 
 20-02-2023,Adults,Lodge Group Care UK Ltd,Home Care - Private Contractors Payment,1262.47,0.00,COMMERCIAL SUPPLIER 
 10-02-2023,Adults,Quality Healthcare Solutions Ltd t/a Kare Plus Romford,Home Care - Private Contractors Payment,1267.72,0.00,COMMERCIAL SUPPLIER 
 20-02-2023,Adults,Lodge Group Care UK Ltd,Home Care - Private Contractors Payment,1268.38,0.00,COMMERCIAL SUPPLIER 
 15-02-2023,Adults,Morepower Ltd t/a Aqs Homecare,Home Care - Private Contractors Payment,1268.70,0.00,COMMERCIAL SUPPLIER 
 20-02-2023,Adults,Lodge Group Care UK Ltd,Home Care - Private Contractors Payment,1269.36,0.00,COMMERCIAL SUPPLIER 
 15-02-2023,Adults,Home Sweet Home Care Ltd,Home Care - Private Contractors Payment,1270.67,0.00,COMMERCIAL SUPPLIER 
 20-02-2023,Adults,Lodge Group Care UK Ltd,Home Care - Private Contractors Payment,1270.67,0.00,COMMERCIAL SUPPLIER 
 14-02-2023,Adults,Hospiva Care & Associates Agency Ltd_a,Home Care - Private Contractors Payment,1275.26,0.00,COMMERCIAL SUPPLIER 
 14-02-2023,Adults,Hospiva Care & Associates Agency Ltd_a,Home Care - Private Contractors Payment,1275.26,0.00,COMMERCIAL SUPPLIER 
 14-02-2023,Adults,John Stanleys Care Agency Ltd,Home Care - Private Contractors Payment,1277.89,0.00,COMMERCIAL SUPPLIER 
 27-02-2023,Adults,London Homecare Ltd,Home Care - Private Contractors Payment,1279.20,0.00,COMMERCIAL SUPPLIER 
 07-02-2023,Adults,Lodge Group Care UK Ltd,Home Care - Private Contractors Payment,1279.94,0.00,COMMERCIAL SUPPLIER 
 15-02-2023,Adults,Morepower Ltd t/a Aqs Homecare,Home Care - Private Contractors Payment,1281.17,0.00,COMMERCIAL SUPPLIER 
 15-02-2023,Adults,Morepower Ltd t/a Aqs Homecare,Home Care - Private Contractors Payment,1281.50,0.00,COMMERCIAL SUPPLIER 
 14-02-2023,Adults,Westminster Homecare Ltd_a,Home Care - Private Contractors Payment,1294.00,0.00,COMMERCIAL SUPPLIER 
 08-02-2023,Adults,Ace Outreach Ltd,Home Care - Private Contractors Payment,1296.00,0.00,COMMERCIAL SUPPLIER 
 02-02-2023,Adults,KJD Care Limited,Home Care - Private Contractors Payment,1298.88,0.00,INDIVIDUALS 
 26-02-2023,Adults,KJD Care Limited,Home Care - Private Contractors Payment,1298.88,0.00,INDIVIDUALS 
 27-02-2023,Adults,Premier Carewaiting Ltd,Home Care - Private Contractors Payment,1298.88,0.00,COMMERCIAL SUPPLIER 
 27-02-2023,Adults,Premier Carewaiting Ltd,Home Care - Private Contractors Payment,1298.88,0.00,COMMERCIAL SUPPLIER 
 15-02-2023,Adults,Home Sweet Home Care Ltd,Home Care - Private Contractors Payment,1303.80,0.00,COMMERCIAL SUPPLIER 
 15-02-2023,Adults,Dignified Homecare,Home Care - Private Contractors Payment,1312.00,0.00,COMMERCIAL SUPPLIER 
 10-02-2023,Adults,Quality Healthcare Solutions Ltd t/a Kare Plus Romford,Home Care - Private Contractors Payment,1330.04,0.00,COMMERCIAL SUPPLIER 
 02-02-2023,Adults,Care-Away Ltd T/A Care Support,Home Care - Private Contractors Payment,1331.20,0.00,COMMERCIAL SUPPLIER 
 20-02-2023,Adults,Lodge Group Care UK Ltd,Home Care - Private Contractors Payment,1333.65,0.00,COMMERCIAL SUPPLIER 
 10-02-2023,Adults,Quality Healthcare Solutions Ltd t/a Kare Plus Romford,Home Care - Private Contractors Payment,1333.98,0.00,COMMERCIAL SUPPLIER 
 27-02-2023,Adults,London Homecare Ltd,Home Care - Private Contractors Payment,1338.24,0.00,COMMERCIAL SUPPLIER 
 20-02-2023,Adults,Lodge Group Care UK Ltd,Home Care - Private Contractors Payment,1338.90,0.00,COMMERCIAL SUPPLIER 
 14-02-2023,Adults,Hospiva Care & Associates Agency Ltd_a,Home Care - Private Contractors Payment,1344.80,0.00,COMMERCIAL SUPPLIER 
 09-02-2023,Adults,Home Support Services (Havering & Essex) Ltd,Home Care - Private Contractors Payment,1356.28,0.00,COMMERCIAL SUPPLIER 
 15-02-2023,Adults,Prior Care Ltd_a,Home Care - Private Contractors Payment,1360.22,0.00,COMMERCIAL SUPPLIER 
 20-02-2023,Adults,Lodge Group Care UK Ltd,Home Care - Private Contractors Payment,1361.86,0.00,COMMERCIAL SUPPLIER 
 14-02-2023,Adults,Hospiva Care & Associates Agency Ltd_a,Home Care - Private Contractors Payment,1369.73,0.00,COMMERCIAL SUPPLIER 
 02-02-2023,Adults,KJD Care Limited,Home Care - Private Contractors Payment,1377.60,0.00,INDIVIDUALS 
 09-02-2023,Adults,Rosemont Care Limited,Home Care - Private Contractors Payment,1377.60,0.00,COMMERCIAL SUPPLIER 
 09-02-2023,Adults,Rosemont Care Limited,Home Care - Private Contractors Payment,1377.60,0.00,COMMERCIAL SUPPLIER 
 09-02-2023,Adults,Rosemont Care Limited,Home Care - Private Contractors Payment,1377.60,0.00,COMMERCIAL SUPPLIER 
 09-02-2023,Adults,Rosemont Care Limited,Home Care - Private Contractors Payment,1377.60,0.00,COMMERCIAL SUPPLIER 
 10-02-2023,Adults,Passion Tree Care Services Ltd,Home Care - Private Contractors Payment,1377.60,0.00,COMMERCIAL SUPPLIER 
 26-02-2023,Adults,KJD Care Limited,Home Care - Private Contractors Payment,1377.60,0.00,INDIVIDUALS 
 20-02-2023,Adults,Lodge Group Care UK Ltd,Home Care - Private Contractors Payment,1383.50,0.00,COMMERCIAL SUPPLIER 
 15-02-2023,Adults,Prior Care Ltd_a,Home Care - Private Contractors Payment,1391.38,0.00,COMMERCIAL SUPPLIER 
 02-02-2023,Adults,KJD Care Limited,Home Care - Private Contractors Payment,1397.28,0.00,INDIVIDUALS 
 06-02-2023,Adults,Westminster Homecare Ltd_a,Home Care - Private Contractors Payment,1397.28,0.00,COMMERCIAL SUPPLIER 
 26-02-2023,Adults,KJD Care Limited,Home Care - Private Contractors Payment,1397.28,0.00,INDIVIDUALS 
 27-02-2023,Adults,London Homecare Ltd,Home Care - Private Contractors Payment,1397.28,0.00,COMMERCIAL SUPPLIER 
 02-02-2023,Adults,Care-Away Ltd T/A Care Support,Home Care - Private Contractors Payment,1397.76,0.00,COMMERCIAL SUPPLIER 
 10-02-2023,Adults,London Care Plc_a,Home Care - Private Contractors Payment,1416.63,0.00,COMMERCIAL SUPPLIER 
 02-02-2023,Adults,KJD Care Limited,Home Care - Private Contractors Payment,1416.96,0.00,INDIVIDUALS 
 10-02-2023,Adults,London Care Plc_a,Home Care - Private Contractors Payment,1425.49,0.00,COMMERCIAL SUPPLIER 
 14-02-2023,Adults,John Stanleys Care Agency Ltd,Home Care - Private Contractors Payment,1427.46,0.00,COMMERCIAL SUPPLIER 
 20-02-2023,Adults,Lodge Group Care UK Ltd,Home Care - Private Contractors Payment,1429.42,0.00,COMMERCIAL SUPPLIER 
 10-02-2023,Adults,London Care Plc_a,Home Care - Private Contractors Payment,1432.38,0.00,COMMERCIAL SUPPLIER 
 15-02-2023,Adults,Morepower Ltd t/a Aqs Homecare,Home Care - Private Contractors Payment,1437.30,0.00,COMMERCIAL SUPPLIER 
 10-02-2023,Adults,London Care Plc_a,Home Care - Private Contractors Payment,1437.62,0.00,COMMERCIAL SUPPLIER 
 20-02-2023,Adults,Lodge Group Care UK Ltd,Home Care - Private Contractors Payment,1451.40,0.00,COMMERCIAL SUPPLIER 
 10-02-2023,Adults,London Care Plc_a,Home Care - Private Contractors Payment,1470.10,0.00,COMMERCIAL SUPPLIER 
 20-02-2023,Adults,Lodge Group Care UK Ltd,Home Care - Private Contractors Payment,1472.06,0.00,COMMERCIAL SUPPLIER 
 02-02-2023,Adults,Care-Away Ltd T/A Care Support,Home Care - Private Contractors Payment,1497.60,0.00,COMMERCIAL SUPPLIER 
 02-02-2023,Adults,Care-Away Ltd T/A Care Support,Home Care - Private Contractors Payment,1514.24,0.00,COMMERCIAL SUPPLIER 
 08-02-2023,Adults,Care-Away Ltd T/A Care Support,Home Care - Private Contractors Payment,1514.24,0.00,COMMERCIAL SUPPLIER 
 06-02-2023,Adults,Westminster Homecare Ltd_a,Home Care - Private Contractors Payment,1519.30,0.00,COMMERCIAL SUPPLIER 
 06-02-2023,Adults,Westminster Homecare Ltd_a,Home Care - Private Contractors Payment,1526.51,0.00,COMMERCIAL SUPPLIER 
 10-02-2023,Adults,Passion Tree Care Services Ltd,Home Care - Private Contractors Payment,1554.72,0.00,COMMERCIAL SUPPLIER 
 02-02-2023,Adults,Care-Away Ltd T/A Care Support,Home Care - Private Contractors Payment,1564.16,0.00,COMMERCIAL SUPPLIER 
 14-02-2023,Adults,London Care Plc_a,Home Care - Private Contractors Payment,1568.00,0.00,COMMERCIAL SUPPLIER 
 20-02-2023,Adults,Lodge Group Care UK Ltd,Home Care - Private Contractors Payment,1591.46,0.00,COMMERCIAL SUPPLIER 
 14-02-2023,Adults,Premier Carewaiting Ltd,Home Care - Private Contractors Payment,1617.00,0.00,COMMERCIAL SUPPLIER 
 15-02-2023,Adults,Morepower Ltd t/a Aqs Homecare,Home Care - Private Contractors Payment,1617.04,0.00,COMMERCIAL SUPPLIER 
 27-02-2023,Adults,Outreach Support Services Ltd,Home Care - Private Contractors Payment,1633.44,0.00,COMMERCIAL SUPPLIER 
 09-02-2023,Adults,Home Support Services (Havering & Essex) Ltd,Home Care - Private Contractors Payment,1653.12,0.00,COMMERCIAL SUPPLIER 
 27-02-2023,Adults,Bloomscare Ltd,Home Care - Private Contractors Payment,1653.12,0.00,COMMERCIAL SUPPLIER 
 27-02-2023,Adults,Bloomscare Ltd,Home Care - Private Contractors Payment,1653.12,0.00,COMMERCIAL SUPPLIER 
 27-02-2023,Adults,Outreach Support Services Ltd,Home Care - Private Contractors Payment,1653.12,0.00,COMMERCIAL SUPPLIER 
 27-02-2023,Adults,Premier Carewaiting Ltd,Home Care - Private Contractors Payment,1653.12,0.00,COMMERCIAL SUPPLIER 
 14-02-2023,Adults,Hospiva Care & Associates Agency Ltd_a,Home Care - Private Contractors Payment,1656.40,0.00,COMMERCIAL SUPPLIER 
 07-02-2023,Adults,Lodge Group Care UK Ltd,Home Care - Private Contractors Payment,1656.50,0.00,COMMERCIAL SUPPLIER 
 01-02-2023,Adults,IJB Healthcare Ltd,Home Care - Private Contractors Payment,1692.48,0.00,COMMERCIAL SUPPLIER 
 14-02-2023,Adults,John Stanleys Care Agency Ltd,Home Care - Private Contractors Payment,1696.42,0.00,COMMERCIAL SUPPLIER 
 14-02-2023,Adults,London Homecare Ltd,Home Care - Private Contractors Payment,1704.00,0.00,COMMERCIAL SUPPLIER 
 26-02-2023,Adults,KJD Care Limited,Home Care - Private Contractors Payment,1721.30,0.00,INDIVIDUALS 
 27-02-2023,Adults,Outreach Support Services Ltd,Home Care - Private Contractors Payment,1758.48,0.00,COMMERCIAL SUPPLIER 
 27-02-2023,Adults,Outreach Support Services Ltd,Home Care - Private Contractors Payment,1758.48,0.00,COMMERCIAL SUPPLIER 
 14-02-2023,Adults,John Stanleys Care Agency Ltd,Home Care - Private Contractors Payment,1771.20,0.00,COMMERCIAL SUPPLIER 
 20-02-2023,Adults,Lodge Group Care UK Ltd,Home Care - Private Contractors Payment,1786.29,0.00,COMMERCIAL SUPPLIER 
 02-02-2023,Adults,KJD Care Limited,Home Care - Private Contractors Payment,1790.88,0.00,INDIVIDUALS 
 26-02-2023,Adults,KJD Care Limited,Home Care - Private Contractors Payment,1790.88,0.00,INDIVIDUALS 
 15-02-2023,Adults,Home Sweet Home Care Ltd,Home Care - Private Contractors Payment,1817.78,0.00,COMMERCIAL SUPPLIER 
 02-02-2023,Adults,Care-Away Ltd T/A Care Support,Home Care - Private Contractors Payment,1863.68,0.00,COMMERCIAL SUPPLIER 
 14-02-2023,Adults,Hospiva Care & Associates Agency Ltd_a,Home Care - Private Contractors Payment,1889.30,0.00,COMMERCIAL SUPPLIER 
 08-02-2023,Adults,Care-Away Ltd T/A Care Support,Home Care - Private Contractors Payment,1892.80,0.00,COMMERCIAL SUPPLIER 
 14-02-2023,Adults,Passion Tree Care Services Ltd,Home Care - Private Contractors Payment,1922.00,0.00,COMMERCIAL SUPPLIER 
 27-02-2023,Adults,Outreach Support Services Ltd,Home Care - Private Contractors Payment,1928.64,0.00,COMMERCIAL SUPPLIER 
 14-02-2023,Adults,Rosemont Care Limited,Home Care - Private Contractors Payment,1935.00,0.00,COMMERCIAL SUPPLIER 
 02-02-2023,Adults,KJD Care Limited,Home Care - Private Contractors Payment,1948.32,0.00,INDIVIDUALS 
 26-02-2023,Adults,KJD Care Limited,Home Care - Private Contractors Payment,1948.32,0.00,INDIVIDUALS 
 09-02-2023,Adults,Home Support Services (Havering & Essex) Ltd,Home Care - Private Contractors Payment,1953.90,0.00,COMMERCIAL SUPPLIER 
 28-02-2023,Adults,Prestige Care & Support Ltd,Home Care - Private Contractors Payment,1968.00,0.00,COMMERCIAL SUPPLIER 
 01-02-2023,Adults,Prestige Care & Support Ltd,Home Care - Private Contractors Payment,1969.97,0.00,COMMERCIAL SUPPLIER 
 08-02-2023,Adults,Ace Outreach Ltd,Home Care - Private Contractors Payment,1980.40,0.00,COMMERCIAL SUPPLIER 
 08-02-2023,Adults,Ace Outreach Ltd,Home Care - Private Contractors Payment,1980.40,0.00,COMMERCIAL SUPPLIER 
 02-02-2023,Adults,Care-Away Ltd T/A Care Support,Home Care - Private Contractors Payment,2030.08,0.00,COMMERCIAL SUPPLIER 
 27-02-2023,Adults,Outreach Support Services Ltd,Home Care - Private Contractors Payment,2046.72,0.00,COMMERCIAL SUPPLIER 
 27-02-2023,Adults,Outreach Support Services Ltd,Home Care - Private Contractors Payment,2046.72,0.00,COMMERCIAL SUPPLIER 
 27-02-2023,Adults,Outreach Support Services Ltd,Home Care - Private Contractors Payment,2046.72,0.00,COMMERCIAL SUPPLIER 
 27-02-2023,Adults,Outreach Support Services Ltd,Home Care - Private Contractors Payment,2046.72,0.00,COMMERCIAL SUPPLIER 
 01-02-2023,Adults,IJB Healthcare Ltd,Home Care - Private Contractors Payment,2066.40,0.00,COMMERCIAL SUPPLIER 
 09-02-2023,Adults,Home Support Services (Havering & Essex) Ltd,Home Care - Private Contractors Payment,2130.03,0.00,COMMERCIAL SUPPLIER 
 14-02-2023,Adults,Quality Healthcare Solutions Ltd t/a Kare Plus Romford,Home Care - Private Contractors Payment,2151.00,0.00,COMMERCIAL SUPPLIER 
 08-02-2023,Adults,Ace Outreach Ltd,Home Care - Private Contractors Payment,2160.43,0.00,COMMERCIAL SUPPLIER 
 07-02-2023,Adults,Gims Care Solution Ltd_a,Home Care - Private Contractors Payment,2204.16,0.00,NON COMMERCIAL SUPPLIER 
 09-02-2023,Adults,Home Support Services (Havering & Essex) Ltd,Home Care - Private Contractors Payment,2261.89,0.00,COMMERCIAL SUPPLIER 
 27-02-2023,Adults,London Homecare Ltd,Home Care - Private Contractors Payment,2282.88,0.00,COMMERCIAL SUPPLIER 
 13-02-2023,Adults,Bluebird Care Havering,Home Care - Private Contractors Payment,2450.00,0.00,COMMERCIAL SUPPLIER 
 13-02-2023,Adults,Bluebird Care Havering,Home Care - Private Contractors Payment,2450.00,0.00,COMMERCIAL SUPPLIER 
 27-02-2023,Adults,Bluebird Care Havering,Home Care - Private Contractors Payment,2450.00,0.00,COMMERCIAL SUPPLIER 
 27-02-2023,Adults,Bluebird Care Havering,Home Care - Private Contractors Payment,2450.00,0.00,COMMERCIAL SUPPLIER 
 02-02-2023,Adults,KJD Care Limited,Home Care - Private Contractors Payment,2519.02,0.00,INDIVIDUALS 
 14-02-2023,Adults,Hospiva Care & Associates Agency Ltd_a,Home Care - Private Contractors Payment,2519.02,0.00,COMMERCIAL SUPPLIER 
 07-02-2023,Adults,Gims Care Solution Ltd_a,Home Care - Private Contractors Payment,2688.00,0.00,NON COMMERCIAL SUPPLIER 
 14-02-2023,Adults,KJD Care Limited,Home Care - Private Contractors Payment,2871.00,0.00,INDIVIDUALS 
 14-02-2023,Adults,Hospiva Care & Associates Agency Ltd_a,Home Care - Private Contractors Payment,3002.00,0.00,COMMERCIAL SUPPLIER 
 15-02-2023,Adults,Home Sweet Home Care Ltd,Home Care - Private Contractors Payment,3102.55,0.00,COMMERCIAL SUPPLIER 
 14-02-2023,Adults,Anytime Care 2020_a,Home Care - Private Contractors Payment,3225.00,0.00,COMMERCIAL SUPPLIER 
 02-02-2023,Adults,KJD Care Limited,Home Care - Private Contractors Payment,3306.24,0.00,INDIVIDUALS 
 07-02-2023,Adults,Gims Care Solution Ltd_a,Home Care - Private Contractors Payment,3306.24,0.00,NON COMMERCIAL SUPPLIER 
 07-02-2023,Adults,Lodge Group Care UK Ltd,Home Care - Private Contractors Payment,3311.83,0.00,COMMERCIAL SUPPLIER 
 07-02-2023,Adults,Lodge Group Care UK Ltd,Home Care - Private Contractors Payment,3311.83,0.00,COMMERCIAL SUPPLIER 
 07-02-2023,Adults,Lodge Group Care UK Ltd,Home Care - Private Contractors Payment,3312.22,0.00,COMMERCIAL SUPPLIER 
 14-02-2023,Adults,Inna Care Ltd,Home Care - Private Contractors Payment,3465.00,0.00,COMMERCIAL SUPPLIER 
 14-02-2023,Adults,Outreach Support Services Ltd,Home Care - Private Contractors Payment,3554.00,0.00,COMMERCIAL SUPPLIER 
 14-02-2023,Adults,John Stanleys Care Agency Ltd,Home Care - Private Contractors Payment,3574.00,0.00,COMMERCIAL SUPPLIER 
 02-02-2023,Adults,KJD Care Limited,Home Care - Private Contractors Payment,3896.64,0.00,INDIVIDUALS 
 17-02-2023,Adults,Christies Care Ltd_a,Home Care - Private Contractors Payment,3973.80,0.00,COMMERCIAL SUPPLIER 
 14-02-2023,Adults,John Stanleys Care Agency Ltd,Home Care - Private Contractors Payment,4056.38,0.00,COMMERCIAL SUPPLIER 
 01-02-2023,Adults,John Stanleys Care Agency Ltd,Home Care - Private Contractors Payment,4180.00,0.00,COMMERCIAL SUPPLIER 
 02-02-2023,Adults,KJD Care Limited,Home Care - Private Contractors Payment,4349.28,0.00,INDIVIDUALS 
 07-02-2023,Adults,Lodge Group Care UK Ltd,Home Care - Private Contractors Payment,4400.06,0.00,COMMERCIAL SUPPLIER 
 14-02-2023,Adults,Prior Care Ltd_a,Home Care - Private Contractors Payment,4430.00,0.00,COMMERCIAL SUPPLIER 
 01-02-2023,Adults,John Stanleys Care Agency Ltd,Home Care - Private Contractors Payment,4460.00,0.00,COMMERCIAL SUPPLIER 
 02-02-2023,Adults,KJD Care Limited,Home Care - Private Contractors Payment,4959.36,0.00,INDIVIDUALS 
 26-02-2023,Adults,KJD Care Limited,Home Care - Private Contractors Payment,4959.36,0.00,INDIVIDUALS 
 01-02-2023,Adults,John Stanleys Care Agency Ltd,Home Care - Private Contractors Payment,4960.00,0.00,COMMERCIAL SUPPLIER 
 10-02-2023,Adults,Christies Care Ltd_a,Home Care - Private Contractors Payment,5023.56,0.00,COMMERCIAL SUPPLIER 
 01-02-2023,Adults,John Stanleys Care Agency Ltd,Home Care - Private Contractors Payment,5260.00,0.00,COMMERCIAL SUPPLIER 
 07-02-2023,Adults,Lodge Group Care UK Ltd,Home Care - Private Contractors Payment,5520.11,0.00,COMMERCIAL SUPPLIER 
 02-02-2023,Adults,KJD Care Limited,Home Care - Private Contractors Payment,5598.32,0.00,INDIVIDUALS 
 26-02-2023,Adults,KJD Care Limited,Home Care - Private Contractors Payment,5598.32,0.00,INDIVIDUALS 
 01-02-2023,Adults,John Stanleys Care Agency Ltd,Home Care - Private Contractors Payment,5969.92,0.00,COMMERCIAL SUPPLIER 
 10-02-2023,Adults,Christies Care Ltd_a,Home Care - Private Contractors Payment,6065.08,0.00,COMMERCIAL SUPPLIER 
 26-02-2023,Adults,KJD Care Limited,Home Care - Private Contractors Payment,6258.98,0.00,INDIVIDUALS 
 17-02-2023,Adults,Christies Care Ltd_a,Home Care - Private Contractors Payment,6545.08,0.00,COMMERCIAL SUPPLIER 
 17-02-2023,Adults,Christies Care Ltd_a,Home Care - Private Contractors Payment,6545.08,0.00,COMMERCIAL SUPPLIER 
 26-02-2023,Adults,KJD Care Limited,Home Care - Private Contractors Payment,6612.48,0.00,INDIVIDUALS 
 07-02-2023,Adults,Lodge Group Care UK Ltd,Home Care - Private Contractors Payment,6623.67,0.00,COMMERCIAL SUPPLIER 
 26-02-2023,Adults,KJD Care Limited,Home Care - Private Contractors Payment,6651.84,0.00,INDIVIDUALS 
 14-02-2023,Adults,Cera Care Operations Ltd,Home Care - Private Contractors Payment,6826.00,0.00,COMMERCIAL SUPPLIER 
 26-02-2023,Adults,KJD Care Limited,Home Care - Private Contractors Payment,7302.08,0.00,INDIVIDUALS 
 14-02-2023,Adults,Prestige Care & Support Ltd,Home Care - Private Contractors Payment,7310.00,0.00,COMMERCIAL SUPPLIER 
 14-02-2023,Adults,Morepower Ltd t/a Aqs Homecare,Home Care - Private Contractors Payment,7422.00,0.00,COMMERCIAL SUPPLIER 
 07-02-2023,Adults,Gims Care Solution Ltd_a,Home Care - Private Contractors Payment,7440.00,0.00,NON COMMERCIAL SUPPLIER 
 07-02-2023,Adults,Lodge Group Care UK Ltd,Home Care - Private Contractors Payment,10488.06,0.00,COMMERCIAL SUPPLIER 
 08-02-2023,Adults,Care-Away Ltd T/A Care Support,Home Care - Private Contractors Payment,10845.12,0.00,COMMERCIAL SUPPLIER 
 07-02-2023,Adults,Lodge Group Care UK Ltd,Home Care - Private Contractors Payment,12144.17,0.00,COMMERCIAL SUPPLIER 
 08-02-2023,Adults,Care-Away Ltd T/A Care Support,Home Care - Private Contractors Payment,14518.40,0.00,COMMERCIAL SUPPLIER 
 14-02-2023,Adults,Lodge Group Care UK Ltd,Home Care - Private Contractors Payment,14590.00,0.00,COMMERCIAL SUPPLIER 
 14-02-2023,Adults,Home Support Services (Havering & Essex) Ltd,Home Care - Private Contractors Payment,15682.00,0.00,COMMERCIAL SUPPLIER 
 14-02-2023,Adults,Homestead Care Service,Home Care - Private Contractors Payment,18190.00,0.00,COMMERCIAL SUPPLIER 
 14-02-2023,Adults,Home Sweet Home Care Ltd,Home Care - Private Contractors Payment,19148.00,0.00,COMMERCIAL SUPPLIER 
 07-02-2023,Adults,Bakers Installations,Land Line Telephone Costs,760.00,0.00,CIS 
 02-02-2023,Adults,Inclusive Care Support Limited,Long Term Support - Community: Supported Living,700.84,0.00,COMMERCIAL SUPPLIER 
 03-02-2023,Adults,S J Builders,Maintenance - Equipment Furniture And Materials,560.00,0.00,COMMERCIAL SUPPLIER 
 03-02-2023,Adults,Lakefield Enterprises Ltd t/a R J Bowyer Building Services,Maintenance - Equipment Furniture And Materials,809.00,0.00,COMMERCIAL SUPPLIER 
 10-02-2023,Adults,Lakefield Enterprises Ltd t/a R J Bowyer Building Services,Maintenance - Equipment Furniture And Materials,999.00,0.00,COMMERCIAL SUPPLIER 
 07-02-2023,Adults,Buildright Solutions Ltd,Maintenance - Equipment Furniture And Materials,3200.00,0.00,CIS 
 10-02-2023,Adults,HC-One Oval Ltd - The Hornchurch Nursing Centre,Nursing Care Income,564.11,0.00,COMMERCIAL SUPPLIER 
 10-02-2023,Adults,Havering Care Homes Ltd t/a Upminster Nursing Home,Nursing Care Income,631.84,0.00,COMMERCIAL SUPPLIER 
 10-02-2023,Adults,Ladyville Lodge_a,Nursing Care Income,646.92,0.00,COMMERCIAL SUPPLIER 
 10-02-2023,Adults,HC-One Oval Ltd - The Hornchurch Nursing Centre,Nursing Care Income,663.80,0.00,COMMERCIAL SUPPLIER 
 10-02-2023,Adults,HC-One Oval Ltd - The Hornchurch Nursing Centre,Nursing Care Income,839.16,0.00,COMMERCIAL SUPPLIER 
 10-02-2023,Adults,Highfield Care Homes Ltd t/a Romford Grange Care Home,Nursing Care Income,924.76,0.00,COMMERCIAL SUPPLIER 
 10-02-2023,Adults,Fountains Care Centre - Bondcare,Nursing Care Income,1012.88,0.00,COMMERCIAL SUPPLIER 
 10-02-2023,Adults,Havering Care Homes Ltd t/a Upminster Nursing Home,Nursing Homes - Private Contractors Payment,557.14,0.00,COMMERCIAL SUPPLIER 
 10-02-2023,Adults,Havering Care Homes Ltd t/a Upminster Nursing Home,Nursing Homes - Private Contractors Payment,678.00,0.00,COMMERCIAL SUPPLIER 
 10-02-2023,Adults,Beechcourt Care Centre - Bondcare,Nursing Homes - Private Contractors Payment,798.00,0.00,COMMERCIAL SUPPLIER 
 10-02-2023,Adults,GCH - Hillside Nursing Home,Nursing Homes - Private Contractors Payment,826.29,0.00,COMMERCIAL SUPPLIER 
 10-02-2023,Adults,Fountains Care Centre - Bondcare,Nursing Homes - Private Contractors Payment,1008.00,0.00,COMMERCIAL SUPPLIER 
 10-02-2023,Adults,The Avenues Trust Support Services Glebe House,Nursing Homes - Private Contractors Payment,1055.34,0.00,COMMERCIAL SUPPLIER 
 10-02-2023,Adults,Fountains Care Centre - Bondcare,Nursing Homes - Private Contractors Payment,1065.43,0.00,COMMERCIAL SUPPLIER 
 10-02-2023,Adults,Barleycroft Care Home Ltd,Nursing Homes - Private Contractors Payment,1452.86,0.00,COMMERCIAL SUPPLIER 
 10-02-2023,Adults,Willows Care Home - Churchgate Healthcare (Willows) Ltd,Nursing Homes - Private Contractors Payment,1452.86,0.00,COMMERCIAL SUPPLIER 
 10-02-2023,Adults,Havering Care Homes Ltd t/a Upminster Nursing Home,Nursing Homes - Private Contractors Payment,1743.43,0.00,COMMERCIAL SUPPLIER 
 10-02-2023,Adults,One Tree Estates Ltd t/a Ashbrook Nursing Home,Nursing Homes - Private Contractors Payment,1937.14,0.00,COMMERCIAL SUPPLIER 
 10-02-2023,Adults,DMP Healthcare (Heatherbrook) Ltd,Nursing Homes - Private Contractors Payment,2034.00,0.00,NON COMMERCIAL SUPPLIER 
 10-02-2023,Adults,Havering Care Homes Ltd t/a Upminster Nursing Home,Nursing Homes - Private Contractors Payment,2089.29,0.00,COMMERCIAL SUPPLIER 
 10-02-2023,Adults,Havering Care Homes Ltd t/a Upminster Nursing Home,Nursing Homes - Private Contractors Payment,2106.41,0.00,COMMERCIAL SUPPLIER 
 10-02-2023,Adults,The Avenues Trust Support Services Glebe House,Nursing Homes - Private Contractors Payment,2242.59,0.00,COMMERCIAL SUPPLIER 
 10-02-2023,Adults,Fountains Care Centre - Bondcare,Nursing Homes - Private Contractors Payment,2357.14,0.00,COMMERCIAL SUPPLIER 
 10-02-2023,Adults,Highfield Care Homes Ltd t/a Romford Grange Care Home,Nursing Homes - Private Contractors Payment,2472.84,0.00,COMMERCIAL SUPPLIER 
 10-02-2023,Adults,Fountains Care Centre - Bondcare,Nursing Homes - Private Contractors Payment,2480.00,0.00,COMMERCIAL SUPPLIER 
 10-02-2023,Adults,Havering Care Homes Ltd t/a Upminster Nursing Home,Nursing Homes - Private Contractors Payment,2507.14,0.00,COMMERCIAL SUPPLIER 
 10-02-2023,Adults,HC-One Oval Ltd - Chaseview,Nursing Homes - Private Contractors Payment,2516.76,0.00,COMMERCIAL SUPPLIER 
 10-02-2023,Adults,Acer Healthcare Operation Ltd,Nursing Homes - Private Contractors Payment,2516.76,0.00,COMMERCIAL SUPPLIER 
 10-02-2023,Adults,Willows Care Home - Churchgate Healthcare (Willows) Ltd,Nursing Homes - Private Contractors Payment,2518.29,0.00,COMMERCIAL SUPPLIER 
 10-02-2023,Adults,Havering Care Homes Ltd t/a Abbscross Nursing Home,Nursing Homes - Private Contractors Payment,2528.00,0.00,COMMERCIAL SUPPLIER 
 10-02-2023,Adults,One Tree Estates Ltd t/a Ashbrook Nursing Home,Nursing Homes - Private Contractors Payment,2528.00,0.00,COMMERCIAL SUPPLIER 
 10-02-2023,Adults,Highfield Care Homes Ltd t/a Romford Grange Care Home,Nursing Homes - Private Contractors Payment,2528.00,0.00,COMMERCIAL SUPPLIER 
 10-02-2023,Adults,Highfield Care Homes Ltd t/a Romford Grange Care Home,Nursing Homes - Private Contractors Payment,2528.00,0.00,COMMERCIAL SUPPLIER 
 10-02-2023,Adults,Highfield Care Homes Ltd t/a Romford Grange Care Home,Nursing Homes - Private Contractors Payment,2528.00,0.00,COMMERCIAL SUPPLIER 
 10-02-2023,Adults,Highfield Care Homes Ltd t/a Romford Grange Care Home,Nursing Homes - Private Contractors Payment,2528.00,0.00,COMMERCIAL SUPPLIER 
 10-02-2023,Adults,Havering Care Homes Ltd t/a Upminster Nursing Home,Nursing Homes - Private Contractors Payment,2528.00,0.00,COMMERCIAL SUPPLIER 
 10-02-2023,Adults,Havering Care Homes Ltd t/a Upminster Nursing Home,Nursing Homes - Private Contractors Payment,2528.00,0.00,COMMERCIAL SUPPLIER 
 10-02-2023,Adults,Havering Care Homes Ltd t/a Upminster Nursing Home,Nursing Homes - Private Contractors Payment,2528.00,0.00,COMMERCIAL SUPPLIER 
 10-02-2023,Adults,Havering Care Homes Ltd t/a Upminster Nursing Home,Nursing Homes - Private Contractors Payment,2528.00,0.00,COMMERCIAL SUPPLIER 
 10-02-2023,Adults,Havering Care Homes Ltd t/a Upminster Nursing Home,Nursing Homes - Private Contractors Payment,2528.00,0.00,COMMERCIAL SUPPLIER 
 10-02-2023,Adults,Havering Care Homes Ltd t/a Upminster Nursing Home,Nursing Homes - Private Contractors Payment,2528.00,0.00,COMMERCIAL SUPPLIER 
 10-02-2023,Adults,Havering Care Homes Ltd t/a Upminster Nursing Home,Nursing Homes - Private Contractors Payment,2528.00,0.00,COMMERCIAL SUPPLIER 
 10-02-2023,Adults,Havering Care Homes Ltd t/a Upminster Nursing Home,Nursing Homes - Private Contractors Payment,2528.00,0.00,COMMERCIAL SUPPLIER 
 10-02-2023,Adults,Havering Care Homes Ltd t/a Upminster Nursing Home,Nursing Homes - Private Contractors Payment,2528.00,0.00,COMMERCIAL SUPPLIER 
 10-02-2023,Adults,Havering Care Homes Ltd t/a Upminster Nursing Home,Nursing Homes - Private Contractors Payment,2528.00,0.00,COMMERCIAL SUPPLIER 
 10-02-2023,Adults,Havering Care Homes Ltd t/a Upminster Nursing Home,Nursing Homes - Private Contractors Payment,2528.00,0.00,COMMERCIAL SUPPLIER 
 10-02-2023,Adults,Havering Care Homes Ltd t/a Upminster Nursing Home,Nursing Homes - Private Contractors Payment,2528.00,0.00,COMMERCIAL SUPPLIER 
 10-02-2023,Adults,Havering Care Homes Ltd t/a Upminster Nursing Home,Nursing Homes - Private Contractors Payment,2528.00,0.00,COMMERCIAL SUPPLIER 
 10-02-2023,Adults,Havering Care Homes Ltd t/a Upminster Nursing Home,Nursing Homes - Private Contractors Payment,2528.00,0.00,COMMERCIAL SUPPLIER 
 10-02-2023,Adults,Havering Care Homes Ltd t/a Upminster Nursing Home,Nursing Homes - Private Contractors Payment,2528.00,0.00,COMMERCIAL SUPPLIER 
 10-02-2023,Adults,Havering Care Homes Ltd t/a Upminster Nursing Home,Nursing Homes - Private Contractors Payment,2528.00,0.00,COMMERCIAL SUPPLIER 
 10-02-2023,Adults,Havering Care Homes Ltd t/a Upminster Nursing Home,Nursing Homes - Private Contractors Payment,2528.00,0.00,COMMERCIAL SUPPLIER 
 10-02-2023,Adults,Havering Care Homes Ltd t/a Upminster Nursing Home,Nursing Homes - Private Contractors Payment,2528.00,0.00,COMMERCIAL SUPPLIER 
 10-02-2023,Adults,Havering Care Homes Ltd t/a Upminster Nursing Home,Nursing Homes - Private Contractors Payment,2528.00,0.00,COMMERCIAL SUPPLIER 
 10-02-2023,Adults,Havering Care Homes Ltd t/a Upminster Nursing Home,Nursing Homes - Private Contractors Payment,2528.00,0.00,COMMERCIAL SUPPLIER 
 10-02-2023,Adults,Havering Care Homes Ltd t/a Upminster Nursing Home,Nursing Homes - Private Contractors Payment,2528.00,0.00,COMMERCIAL SUPPLIER 
 10-02-2023,Adults,HC-One Oval Ltd - The Hornchurch Nursing Centre,Nursing Homes - Private Contractors Payment,2528.00,0.00,COMMERCIAL SUPPLIER 
 10-02-2023,Adults,HC-One Oval Ltd - The Hornchurch Nursing Centre,Nursing Homes - Private Contractors Payment,2528.00,0.00,COMMERCIAL SUPPLIER 
 10-02-2023,Adults,HC-One Oval Ltd - The Hornchurch Nursing Centre,Nursing Homes - Private Contractors Payment,2528.00,0.00,COMMERCIAL SUPPLIER 
 10-02-2023,Adults,DMP Healthcare (Heatherbrook) Ltd,Nursing Homes - Private Contractors Payment,2528.00,0.00,NON COMMERCIAL SUPPLIER 
 10-02-2023,Adults,Ladyville Lodge_a,Nursing Homes - Private Contractors Payment,2528.00,0.00,COMMERCIAL SUPPLIER 
 10-02-2023,Adults,Barleycroft Care Home Ltd,Nursing Homes - Private Contractors Payment,2528.00,0.00,COMMERCIAL SUPPLIER 
 10-02-2023,Adults,Barleycroft Care Home Ltd,Nursing Homes - Private Contractors Payment,2528.00,0.00,COMMERCIAL SUPPLIER 
 10-02-2023,Adults,Ranc Care Homes Ltd - Romford Care Centre,Nursing Homes - Private Contractors Payment,2528.00,0.00,COMMERCIAL SUPPLIER 
 10-02-2023,Adults,Westminster Health Care Ltd Derham House,Nursing Homes - Private Contractors Payment,2606.08,0.00,COMMERCIAL SUPPLIER 
 10-02-2023,Adults,Alexander Court Care Centre - Bondcare,Nursing Homes - Private Contractors Payment,2627.64,0.00,COMMERCIAL SUPPLIER 
 10-02-2023,Adults,MNS Care Plc_a,Nursing Homes - Private Contractors Payment,2636.32,0.00,COMMERCIAL SUPPLIER 
 10-02-2023,Adults,HC-One Oval Ltd - Chaseview,Nursing Homes - Private Contractors Payment,2636.32,0.00,COMMERCIAL SUPPLIER 
 10-02-2023,Adults,Acer Healthcare Operation Ltd,Nursing Homes - Private Contractors Payment,2636.32,0.00,COMMERCIAL SUPPLIER 
 10-02-2023,Adults,Acer Healthcare Operation Ltd,Nursing Homes - Private Contractors Payment,2636.32,0.00,COMMERCIAL SUPPLIER 
 10-02-2023,Adults,HC-One Oval Ltd - Chaseview,Nursing Homes - Private Contractors Payment,2681.40,0.00,COMMERCIAL SUPPLIER 
 10-02-2023,Adults,Acer Healthcare Operation Ltd,Nursing Homes - Private Contractors Payment,2681.40,0.00,COMMERCIAL SUPPLIER 
 10-02-2023,Adults,The Avenues Trust Support Services Glebe House,Nursing Homes - Private Contractors Payment,2686.32,0.00,COMMERCIAL SUPPLIER 
 10-02-2023,Adults,The Avenues Trust Support Services Glebe House,Nursing Homes - Private Contractors Payment,2686.32,0.00,COMMERCIAL SUPPLIER 
 10-02-2023,Adults,The Avenues Trust Support Services Glebe House,Nursing Homes - Private Contractors Payment,2686.32,0.00,COMMERCIAL SUPPLIER 
 10-02-2023,Adults,The Avenues Trust Support Services Glebe House,Nursing Homes - Private Contractors Payment,2686.32,0.00,COMMERCIAL SUPPLIER 
 10-02-2023,Adults,The Avenues Trust Support Services Glebe House,Nursing Homes - Private Contractors Payment,2686.32,0.00,COMMERCIAL SUPPLIER 
 10-02-2023,Adults,Fountains Care Centre - Bondcare,Nursing Homes - Private Contractors Payment,2712.00,0.00,COMMERCIAL SUPPLIER 
 10-02-2023,Adults,Fountains Care Centre - Bondcare,Nursing Homes - Private Contractors Payment,2712.00,0.00,COMMERCIAL SUPPLIER 
 10-02-2023,Adults,Fountains Care Centre - Bondcare,Nursing Homes - Private Contractors Payment,2712.00,0.00,COMMERCIAL SUPPLIER 
 10-02-2023,Adults,Fountains Care Centre - Bondcare,Nursing Homes - Private Contractors Payment,2712.00,0.00,COMMERCIAL SUPPLIER 
 10-02-2023,Adults,Fountains Care Centre - Bondcare,Nursing Homes - Private Contractors Payment,2712.00,0.00,COMMERCIAL SUPPLIER 
 10-02-2023,Adults,Fountains Care Centre - Bondcare,Nursing Homes - Private Contractors Payment,2712.00,0.00,COMMERCIAL SUPPLIER 
 10-02-2023,Adults,Fountains Care Centre - Bondcare,Nursing Homes - Private Contractors Payment,2712.00,0.00,COMMERCIAL SUPPLIER 
 10-02-2023,Adults,Fountains Care Centre - Bondcare,Nursing Homes - Private Contractors Payment,2712.00,0.00,COMMERCIAL SUPPLIER 
 10-02-2023,Adults,Fountains Care Centre - Bondcare,Nursing Homes - Private Contractors Payment,2712.00,0.00,COMMERCIAL SUPPLIER 
 10-02-2023,Adults,Fountains Care Centre - Bondcare,Nursing Homes - Private Contractors Payment,2712.00,0.00,COMMERCIAL SUPPLIER 
 10-02-2023,Adults,Fountains Care Centre - Bondcare,Nursing Homes - Private Contractors Payment,2712.00,0.00,COMMERCIAL SUPPLIER 
 10-02-2023,Adults,Fountains Care Centre - Bondcare,Nursing Homes - Private Contractors Payment,2712.00,0.00,COMMERCIAL SUPPLIER 
 10-02-2023,Adults,Fountains Care Centre - Bondcare,Nursing Homes - Private Contractors Payment,2712.00,0.00,COMMERCIAL SUPPLIER 
 10-02-2023,Adults,Fountains Care Centre - Bondcare,Nursing Homes - Private Contractors Payment,2712.00,0.00,COMMERCIAL SUPPLIER 
 10-02-2023,Adults,Fountains Care Centre - Bondcare,Nursing Homes - Private Contractors Payment,2712.00,0.00,COMMERCIAL SUPPLIER 
 10-02-2023,Adults,Fountains Care Centre - Bondcare,Nursing Homes - Private Contractors Payment,2712.00,0.00,COMMERCIAL SUPPLIER 
 10-02-2023,Adults,Fountains Care Centre - Bondcare,Nursing Homes - Private Contractors Payment,2712.00,0.00,COMMERCIAL SUPPLIER 
 10-02-2023,Adults,Fountains Care Centre - Bondcare,Nursing Homes - Private Contractors Payment,2712.00,0.00,COMMERCIAL SUPPLIER 
 10-02-2023,Adults,Fountains Care Centre - Bondcare,Nursing Homes - Private Contractors Payment,2712.00,0.00,COMMERCIAL SUPPLIER 
 10-02-2023,Adults,Havering Care Homes Ltd t/a Abbscross Nursing Home,Nursing Homes - Private Contractors Payment,2712.00,0.00,COMMERCIAL SUPPLIER 
 10-02-2023,Adults,Havering Care Homes Ltd t/a Abbscross Nursing Home,Nursing Homes - Private Contractors Payment,2712.00,0.00,COMMERCIAL SUPPLIER 
 10-02-2023,Adults,Havering Care Homes Ltd t/a Abbscross Nursing Home,Nursing Homes - Private Contractors Payment,2712.00,0.00,COMMERCIAL SUPPLIER 
 10-02-2023,Adults,Havering Care Homes Ltd t/a Abbscross Nursing Home,Nursing Homes - Private Contractors Payment,2712.00,0.00,COMMERCIAL SUPPLIER 
 10-02-2023,Adults,One Tree Estates Ltd t/a Ashbrook Nursing Home,Nursing Homes - Private Contractors Payment,2712.00,0.00,COMMERCIAL SUPPLIER 
 10-02-2023,Adults,One Tree Estates Ltd t/a Ashbrook Nursing Home,Nursing Homes - Private Contractors Payment,2712.00,0.00,COMMERCIAL SUPPLIER 
 10-02-2023,Adults,One Tree Estates Ltd t/a Ashbrook Nursing Home,Nursing Homes - Private Contractors Payment,2712.00,0.00,COMMERCIAL SUPPLIER 
 10-02-2023,Adults,One Tree Estates Ltd t/a Ashbrook Nursing Home,Nursing Homes - Private Contractors Payment,2712.00,0.00,COMMERCIAL SUPPLIER 
 10-02-2023,Adults,One Tree Estates Ltd t/a Ashbrook Nursing Home,Nursing Homes - Private Contractors Payment,2712.00,0.00,COMMERCIAL SUPPLIER 
 10-02-2023,Adults,One Tree Estates Ltd t/a Ashbrook Nursing Home,Nursing Homes - Private Contractors Payment,2712.00,0.00,COMMERCIAL SUPPLIER 
 10-02-2023,Adults,One Tree Estates Ltd t/a Ashbrook Nursing Home,Nursing Homes - Private Contractors Payment,2712.00,0.00,COMMERCIAL SUPPLIER 
 10-02-2023,Adults,Highfield Care Homes Ltd t/a Romford Grange Care Home,Nursing Homes - Private Contractors Payment,2712.00,0.00,COMMERCIAL SUPPLIER 
 10-02-2023,Adults,Highfield Care Homes Ltd t/a Romford Grange Care Home,Nursing Homes - Private Contractors Payment,2712.00,0.00,COMMERCIAL SUPPLIER 
 10-02-2023,Adults,Highfield Care Homes Ltd t/a Romford Grange Care Home,Nursing Homes - Private Contractors Payment,2712.00,0.00,COMMERCIAL SUPPLIER 
 10-02-2023,Adults,MNS Care Plc_a,Nursing Homes - Private Contractors Payment,2712.00,0.00,COMMERCIAL SUPPLIER 
 10-02-2023,Adults,Bupa Care Homes (HVC) - Havering Court,Nursing Homes - Private Contractors Payment,2712.00,0.00,COMMERCIAL SUPPLIER 
 10-02-2023,Adults,Bupa Care Homes - Hutton Village,Nursing Homes - Private Contractors Payment,2712.00,0.00,COMMERCIAL SUPPLIER 
 10-02-2023,Adults,Havering Care Homes Ltd t/a Upminster Nursing Home,Nursing Homes - Private Contractors Payment,2712.00,0.00,COMMERCIAL SUPPLIER 
 10-02-2023,Adults,Havering Care Homes Ltd t/a Upminster Nursing Home,Nursing Homes - Private Contractors Payment,2712.00,0.00,COMMERCIAL SUPPLIER 
 10-02-2023,Adults,Havering Care Homes Ltd t/a Upminster Nursing Home,Nursing Homes - Private Contractors Payment,2712.00,0.00,COMMERCIAL SUPPLIER 
 10-02-2023,Adults,Havering Care Homes Ltd t/a Upminster Nursing Home,Nursing Homes - Private Contractors Payment,2712.00,0.00,COMMERCIAL SUPPLIER 
 10-02-2023,Adults,Havering Care Homes Ltd t/a Upminster Nursing Home,Nursing Homes - Private Contractors Payment,2712.00,0.00,COMMERCIAL SUPPLIER 
 10-02-2023,Adults,Havering Care Homes Ltd t/a Upminster Nursing Home,Nursing Homes - Private Contractors Payment,2712.00,0.00,COMMERCIAL SUPPLIER 
 10-02-2023,Adults,Havering Care Homes Ltd t/a Upminster Nursing Home,Nursing Homes - Private Contractors Payment,2712.00,0.00,COMMERCIAL SUPPLIER 
 10-02-2023,Adults,Havering Care Homes Ltd t/a Upminster Nursing Home,Nursing Homes - Private Contractors Payment,2712.00,0.00,COMMERCIAL SUPPLIER 
 10-02-2023,Adults,Havering Care Homes Ltd t/a Upminster Nursing Home,Nursing Homes - Private Contractors Payment,2712.00,0.00,COMMERCIAL SUPPLIER 
 10-02-2023,Adults,Havering Care Homes Ltd t/a Upminster Nursing Home,Nursing Homes - Private Contractors Payment,2712.00,0.00,COMMERCIAL SUPPLIER 
 10-02-2023,Adults,Havering Care Homes Ltd t/a Upminster Nursing Home,Nursing Homes - Private Contractors Payment,2712.00,0.00,COMMERCIAL SUPPLIER 
 10-02-2023,Adults,Havering Care Homes Ltd t/a Upminster Nursing Home,Nursing Homes - Private Contractors Payment,2712.00,0.00,COMMERCIAL SUPPLIER 
 10-02-2023,Adults,Havering Care Homes Ltd t/a Upminster Nursing Home,Nursing Homes - Private Contractors Payment,2712.00,0.00,COMMERCIAL SUPPLIER 
 10-02-2023,Adults,Havering Care Homes Ltd t/a Upminster Nursing Home,Nursing Homes - Private Contractors Payment,2712.00,0.00,COMMERCIAL SUPPLIER 
 10-02-2023,Adults,Havering Care Homes Ltd t/a Upminster Nursing Home,Nursing Homes - Private Contractors Payment,2712.00,0.00,COMMERCIAL SUPPLIER 
 10-02-2023,Adults,Havering Care Homes Ltd t/a Upminster Nursing Home,Nursing Homes - Private Contractors Payment,2712.00,0.00,COMMERCIAL SUPPLIER 
 10-02-2023,Adults,Havering Care Homes Ltd t/a Upminster Nursing Home,Nursing Homes - Private Contractors Payment,2712.00,0.00,COMMERCIAL SUPPLIER 
 10-02-2023,Adults,Havering Care Homes Ltd t/a Upminster Nursing Home,Nursing Homes - Private Contractors Payment,2712.00,0.00,COMMERCIAL SUPPLIER 
 10-02-2023,Adults,Havering Care Homes Ltd t/a Upminster Nursing Home,Nursing Homes - Private Contractors Payment,2712.00,0.00,COMMERCIAL SUPPLIER 
 10-02-2023,Adults,Havering Care Homes Ltd t/a Upminster Nursing Home,Nursing Homes - Private Contractors Payment,2712.00,0.00,COMMERCIAL SUPPLIER 
 10-02-2023,Adults,Havering Care Homes Ltd t/a Upminster Nursing Home,Nursing Homes - Private Contractors Payment,2712.00,0.00,COMMERCIAL SUPPLIER 
 10-02-2023,Adults,Havering Care Homes Ltd t/a Upminster Nursing Home,Nursing Homes - Private Contractors Payment,2712.00,0.00,COMMERCIAL SUPPLIER 
 10-02-2023,Adults,Havering Care Homes Ltd t/a Upminster Nursing Home,Nursing Homes - Private Contractors Payment,2712.00,0.00,COMMERCIAL SUPPLIER 
 10-02-2023,Adults,Havering Care Homes Ltd t/a Upminster Nursing Home,Nursing Homes - Private Contractors Payment,2712.00,0.00,COMMERCIAL SUPPLIER 
 10-02-2023,Adults,Havering Care Homes Ltd t/a Upminster Nursing Home,Nursing Homes - Private Contractors Payment,2712.00,0.00,COMMERCIAL SUPPLIER 
 10-02-2023,Adults,Havering Care Homes Ltd t/a Upminster Nursing Home,Nursing Homes - Private Contractors Payment,2712.00,0.00,COMMERCIAL SUPPLIER 
 10-02-2023,Adults,Havering Care Homes Ltd t/a Upminster Nursing Home,Nursing Homes - Private Contractors Payment,2712.00,0.00,COMMERCIAL SUPPLIER 
 10-02-2023,Adults,Havering Care Homes Ltd t/a Upminster Nursing Home,Nursing Homes - Private Contractors Payment,2712.00,0.00,COMMERCIAL SUPPLIER 
 10-02-2023,Adults,Lukka Care Homes Ltd - Ravenscourt,Nursing Homes - Private Contractors Payment,2712.00,0.00,COMMERCIAL SUPPLIER 
 10-02-2023,Adults,HC-One Oval Ltd - The Hornchurch Nursing Centre,Nursing Homes - Private Contractors Payment,2712.00,0.00,COMMERCIAL SUPPLIER 
 10-02-2023,Adults,HC-One Oval Ltd - The Hornchurch Nursing Centre,Nursing Homes - Private Contractors Payment,2712.00,0.00,COMMERCIAL SUPPLIER 
 10-02-2023,Adults,HC-One Oval Ltd - The Hornchurch Nursing Centre,Nursing Homes - Private Contractors Payment,2712.00,0.00,COMMERCIAL SUPPLIER 
 10-02-2023,Adults,HC-One Oval Ltd - The Hornchurch Nursing Centre,Nursing Homes - Private Contractors Payment,2712.00,0.00,COMMERCIAL SUPPLIER 
 10-02-2023,Adults,HC-One Oval Ltd - The Hornchurch Nursing Centre,Nursing Homes - Private Contractors Payment,2712.00,0.00,COMMERCIAL SUPPLIER 
 10-02-2023,Adults,HC-One Oval Ltd - The Hornchurch Nursing Centre,Nursing Homes - Private Contractors Payment,2712.00,0.00,COMMERCIAL SUPPLIER 
 10-02-2023,Adults,HC-One Oval Ltd - The Hornchurch Nursing Centre,Nursing Homes - Private Contractors Payment,2712.00,0.00,COMMERCIAL SUPPLIER 
 10-02-2023,Adults,HC-One Oval Ltd - The Hornchurch Nursing Centre,Nursing Homes - Private Contractors Payment,2712.00,0.00,COMMERCIAL SUPPLIER 
 10-02-2023,Adults,HC-One Oval Ltd - The Hornchurch Nursing Centre,Nursing Homes - Private Contractors Payment,2712.00,0.00,COMMERCIAL SUPPLIER 
 10-02-2023,Adults,HC-One Oval Ltd - The Hornchurch Nursing Centre,Nursing Homes - Private Contractors Payment,2712.00,0.00,COMMERCIAL SUPPLIER 
 10-02-2023,Adults,HC-One Oval Ltd - The Hornchurch Nursing Centre,Nursing Homes - Private Contractors Payment,2712.00,0.00,COMMERCIAL SUPPLIER 
 10-02-2023,Adults,HC-One Oval Ltd - The Hornchurch Nursing Centre,Nursing Homes - Private Contractors Payment,2712.00,0.00,COMMERCIAL SUPPLIER 
 10-02-2023,Adults,HC-One Oval Ltd - The Hornchurch Nursing Centre,Nursing Homes - Private Contractors Payment,2712.00,0.00,COMMERCIAL SUPPLIER 
 10-02-2023,Adults,HC-One Oval Ltd - The Hornchurch Nursing Centre,Nursing Homes - Private Contractors Payment,2712.00,0.00,COMMERCIAL SUPPLIER 
 10-02-2023,Adults,Bondcare (London) Ltd ,Nursing Homes - Private Contractors Payment,2712.00,0.00,COMMERCIAL SUPPLIER 
 10-02-2023,Adults,Bondcare (London) Ltd ,Nursing Homes - Private Contractors Payment,2712.00,0.00,COMMERCIAL SUPPLIER 
 10-02-2023,Adults,Alexander Court Care Centre - Bondcare,Nursing Homes - Private Contractors Payment,2712.00,0.00,COMMERCIAL SUPPLIER 
 10-02-2023,Adults,Alexander Court Care Centre - Bondcare,Nursing Homes - Private Contractors Payment,2712.00,0.00,COMMERCIAL SUPPLIER 
 10-02-2023,Adults,Alexander Court Care Centre - Bondcare,Nursing Homes - Private Contractors Payment,2712.00,0.00,COMMERCIAL SUPPLIER 
 10-02-2023,Adults,DMP Healthcare (Heatherbrook) Ltd,Nursing Homes - Private Contractors Payment,2712.00,0.00,NON COMMERCIAL SUPPLIER 
 10-02-2023,Adults,DMP Healthcare (Heatherbrook) Ltd,Nursing Homes - Private Contractors Payment,2712.00,0.00,NON COMMERCIAL SUPPLIER 
 10-02-2023,Adults,DMP Healthcare (Heatherbrook) Ltd,Nursing Homes - Private Contractors Payment,2712.00,0.00,NON COMMERCIAL SUPPLIER 
 10-02-2023,Adults,DMP Healthcare (Heatherbrook) Ltd,Nursing Homes - Private Contractors Payment,2712.00,0.00,NON COMMERCIAL SUPPLIER 
 10-02-2023,Adults,DMP Healthcare (Heatherbrook) Ltd,Nursing Homes - Private Contractors Payment,2712.00,0.00,NON COMMERCIAL SUPPLIER 
 10-02-2023,Adults,DMP Healthcare (Heatherbrook) Ltd,Nursing Homes - Private Contractors Payment,2712.00,0.00,NON COMMERCIAL SUPPLIER 
 10-02-2023,Adults,DMP Healthcare (Heatherbrook) Ltd,Nursing Homes - Private Contractors Payment,2712.00,0.00,NON COMMERCIAL SUPPLIER 
 10-02-2023,Adults,DMP Healthcare (Heatherbrook) Ltd,Nursing Homes - Private Contractors Payment,2712.00,0.00,NON COMMERCIAL SUPPLIER 
 10-02-2023,Adults,DMP Healthcare (Heatherbrook) Ltd,Nursing Homes - Private Contractors Payment,2712.00,0.00,NON COMMERCIAL SUPPLIER 
 10-02-2023,Adults,Moreland House_a,Nursing Homes - Private Contractors Payment,2712.00,0.00,COMMERCIAL SUPPLIER 
 10-02-2023,Adults,Moreland House_a,Nursing Homes - Private Contractors Payment,2712.00,0.00,COMMERCIAL SUPPLIER 
 10-02-2023,Adults,Moreland House_a,Nursing Homes - Private Contractors Payment,2712.00,0.00,COMMERCIAL SUPPLIER 
 10-02-2023,Adults,Moreland House_a,Nursing Homes - Private Contractors Payment,2712.00,0.00,COMMERCIAL SUPPLIER 
 10-02-2023,Adults,Moreland House_a,Nursing Homes - Private Contractors Payment,2712.00,0.00,COMMERCIAL SUPPLIER 
 10-02-2023,Adults,Moreland House_a,Nursing Homes - Private Contractors Payment,2712.00,0.00,COMMERCIAL SUPPLIER 
 10-02-2023,Adults,Moreland House_a,Nursing Homes - Private Contractors Payment,2712.00,0.00,COMMERCIAL SUPPLIER 
 10-02-2023,Adults,Moreland House_a,Nursing Homes - Private Contractors Payment,2712.00,0.00,COMMERCIAL SUPPLIER 
 10-02-2023,Adults,GCH - Hillside Nursing Home,Nursing Homes - Private Contractors Payment,2712.00,0.00,COMMERCIAL SUPPLIER 
 10-02-2023,Adults,GCH - Hillside Nursing Home,Nursing Homes - Private Contractors Payment,2712.00,0.00,COMMERCIAL SUPPLIER 
 10-02-2023,Adults,GCH - Hillside Nursing Home,Nursing Homes - Private Contractors Payment,2712.00,0.00,COMMERCIAL SUPPLIER 
 10-02-2023,Adults,GCH - Hillside Nursing Home,Nursing Homes - Private Contractors Payment,2712.00,0.00,COMMERCIAL SUPPLIER 
 10-02-2023,Adults,DMP Healthcare (Cherry Orchard) Ltd,Nursing Homes - Private Contractors Payment,2712.00,0.00,COMMERCIAL SUPPLIER 
 10-02-2023,Adults,Castle Care UK Ltd,Nursing Homes - Private Contractors Payment,2712.00,0.00,COMMERCIAL SUPPLIER 
 10-02-2023,Adults,Barleycroft Care Home Ltd,Nursing Homes - Private Contractors Payment,2712.00,0.00,COMMERCIAL SUPPLIER 
 10-02-2023,Adults,Barleycroft Care Home Ltd,Nursing Homes - Private Contractors Payment,2712.00,0.00,COMMERCIAL SUPPLIER 
 10-02-2023,Adults,Barleycroft Care Home Ltd,Nursing Homes - Private Contractors Payment,2712.00,0.00,COMMERCIAL SUPPLIER 
 10-02-2023,Adults,Barleycroft Care Home Ltd,Nursing Homes - Private Contractors Payment,2712.00,0.00,COMMERCIAL SUPPLIER 
 10-02-2023,Adults,Barleycroft Care Home Ltd,Nursing Homes - Private Contractors Payment,2712.00,0.00,COMMERCIAL SUPPLIER 
 10-02-2023,Adults,Barleycroft Care Home Ltd,Nursing Homes - Private Contractors Payment,2712.00,0.00,COMMERCIAL SUPPLIER 
 10-02-2023,Adults,Barleycroft Care Home Ltd,Nursing Homes - Private Contractors Payment,2712.00,0.00,COMMERCIAL SUPPLIER 
 10-02-2023,Adults,Barleycroft Care Home Ltd,Nursing Homes - Private Contractors Payment,2712.00,0.00,COMMERCIAL SUPPLIER 
 10-02-2023,Adults,Barleycroft Care Home Ltd,Nursing Homes - Private Contractors Payment,2712.00,0.00,COMMERCIAL SUPPLIER 
 10-02-2023,Adults,Barleycroft Care Home Ltd,Nursing Homes - Private Contractors Payment,2712.00,0.00,COMMERCIAL SUPPLIER 
 10-02-2023,Adults,Barleycroft Care Home Ltd,Nursing Homes - Private Contractors Payment,2712.00,0.00,COMMERCIAL SUPPLIER 
 10-02-2023,Adults,Ranc Care Homes Ltd - Romford Care Centre,Nursing Homes - Private Contractors Payment,2712.00,0.00,COMMERCIAL SUPPLIER 
 10-02-2023,Adults,Ranc Care Homes Ltd - Romford Care Centre,Nursing Homes - Private Contractors Payment,2712.00,0.00,COMMERCIAL SUPPLIER 
 10-02-2023,Adults,Willows Care Home - Churchgate Healthcare (Willows) Ltd,Nursing Homes - Private Contractors Payment,2712.00,0.00,COMMERCIAL SUPPLIER 
 10-02-2023,Adults,Lancam Care Services Ltd,Nursing Homes - Private Contractors Payment,2712.00,0.00,COMMERCIAL SUPPLIER 
 10-02-2023,Adults,Diagrama Healthcare Servcies Ltd ,Nursing Homes - Private Contractors Payment,2712.00,0.00,COMMERCIAL SUPPLIER 
 10-02-2023,Adults,DMP Healthcare (Cherry Orchard) Ltd,Nursing Homes - Private Contractors Payment,2715.84,0.00,COMMERCIAL SUPPLIER 
 10-02-2023,Adults,DMP Healthcare (Heatherbrook) Ltd,Nursing Homes - Private Contractors Payment,2722.48,0.00,NON COMMERCIAL SUPPLIER 
 10-02-2023,Adults,Ranc Care Homes Ltd - Romford Care Centre,Nursing Homes - Private Contractors Payment,2727.32,0.00,COMMERCIAL SUPPLIER 
 10-02-2023,Adults,Barleycroft Care Home Ltd,Nursing Homes - Private Contractors Payment,2780.00,0.00,COMMERCIAL SUPPLIER 
 10-02-2023,Adults,Bupa Care Homes (CFH Care) Ltd ,Nursing Homes - Private Contractors Payment,2782.36,0.00,COMMERCIAL SUPPLIER 
 10-02-2023,Adults,Havering Care Homes Ltd t/a Upminster Nursing Home,Nursing Homes - Private Contractors Payment,2785.71,0.00,COMMERCIAL SUPPLIER 
 10-02-2023,Adults,The Avenues Trust Support Services Glebe House,Nursing Homes - Private Contractors Payment,2788.16,0.00,COMMERCIAL SUPPLIER 
 10-02-2023,Adults,Castle Care UK Ltd,Nursing Homes - Private Contractors Payment,2823.16,0.00,COMMERCIAL SUPPLIER 
 10-02-2023,Adults,One Tree Estates Ltd t/a Ashbrook Nursing Home,Nursing Homes - Private Contractors Payment,2828.57,0.00,COMMERCIAL SUPPLIER 
 10-02-2023,Adults,DMP Healthcare (Heatherbrook) Ltd,Nursing Homes - Private Contractors Payment,2856.00,0.00,NON COMMERCIAL SUPPLIER 
 10-02-2023,Adults,Havering Care Homes Ltd t/a Upminster Nursing Home,Nursing Homes - Private Contractors Payment,2925.00,0.00,COMMERCIAL SUPPLIER 
 10-02-2023,Adults,Bupa Care Homes (HVC) - Havering Court,Nursing Homes - Private Contractors Payment,2944.28,0.00,COMMERCIAL SUPPLIER 
 10-02-2023,Adults,One Tree Estates Ltd t/a Ashbrook Nursing Home,Nursing Homes - Private Contractors Payment,2948.24,0.00,COMMERCIAL SUPPLIER 
 10-02-2023,Adults,Lukka Care Homes Ltd - Ravenscourt,Nursing Homes - Private Contractors Payment,2948.24,0.00,COMMERCIAL SUPPLIER 
 10-02-2023,Adults,Barchester Healthcare Ltd - Park View Care Home,Nursing Homes - Private Contractors Payment,2948.24,0.00,COMMERCIAL SUPPLIER 
 10-02-2023,Adults,DMP Healthcare (Cherry Orchard) Ltd,Nursing Homes - Private Contractors Payment,2972.40,0.00,COMMERCIAL SUPPLIER 
 10-02-2023,Adults,Beechcourt Care Centre - Bondcare,Nursing Homes - Private Contractors Payment,3008.00,0.00,COMMERCIAL SUPPLIER 
 10-02-2023,Adults,Beechcourt Care Centre - Bondcare,Nursing Homes - Private Contractors Payment,3008.00,0.00,COMMERCIAL SUPPLIER 
 10-02-2023,Adults,Beechcourt Care Centre - Bondcare,Nursing Homes - Private Contractors Payment,3008.00,0.00,COMMERCIAL SUPPLIER 
 10-02-2023,Adults,Beechcourt Care Centre - Bondcare,Nursing Homes - Private Contractors Payment,3008.00,0.00,COMMERCIAL SUPPLIER 
 10-02-2023,Adults,Beechcourt Care Centre - Bondcare,Nursing Homes - Private Contractors Payment,3008.00,0.00,COMMERCIAL SUPPLIER 
 10-02-2023,Adults,DMP Healthcare (Cherry Orchard) Ltd,Nursing Homes - Private Contractors Payment,3049.28,0.00,COMMERCIAL SUPPLIER 
 10-02-2023,Adults,Lukka Care Homes Ltd - Ravenscourt,Nursing Homes - Private Contractors Payment,3049.60,0.00,COMMERCIAL SUPPLIER 
 10-02-2023,Adults,Moreland House_a,Nursing Homes - Private Contractors Payment,3053.84,0.00,COMMERCIAL SUPPLIER 
 10-02-2023,Adults,One Tree Estates Ltd t/a Ashbrook Nursing Home,Nursing Homes - Private Contractors Payment,3060.24,0.00,COMMERCIAL SUPPLIER 
 10-02-2023,Adults,Barleycroft Care Home Ltd,Nursing Homes - Private Contractors Payment,3060.24,0.00,COMMERCIAL SUPPLIER 
 10-02-2023,Adults,Bupa Care Homes (HVC) - Havering Court,Nursing Homes - Private Contractors Payment,3063.24,0.00,COMMERCIAL SUPPLIER 
 10-02-2023,Adults,Beechcourt Care Centre - Bondcare,Nursing Homes - Private Contractors Payment,3072.00,0.00,COMMERCIAL SUPPLIER 
 10-02-2023,Adults,One Tree Estates Ltd t/a Ashbrook Nursing Home,Nursing Homes - Private Contractors Payment,3075.00,0.00,COMMERCIAL SUPPLIER 
 10-02-2023,Adults,One Tree Estates Ltd t/a Ashbrook Nursing Home,Nursing Homes - Private Contractors Payment,3075.00,0.00,COMMERCIAL SUPPLIER 
 10-02-2023,Adults,DMP Healthcare (Cherry Orchard) Ltd,Nursing Homes - Private Contractors Payment,3075.00,0.00,COMMERCIAL SUPPLIER 
 10-02-2023,Adults,One Tree Estates Ltd t/a Ashbrook Nursing Home,Nursing Homes - Private Contractors Payment,3112.00,0.00,COMMERCIAL SUPPLIER 
 10-02-2023,Adults,Lukka Care Homes Ltd - Ravenscourt,Nursing Homes - Private Contractors Payment,3163.24,0.00,COMMERCIAL SUPPLIER 
 10-02-2023,Adults,Havering Care Homes Ltd t/a Upminster Nursing Home,Nursing Homes - Private Contractors Payment,3177.02,0.00,COMMERCIAL SUPPLIER 
 10-02-2023,Adults,Beechcourt Care Centre - Bondcare,Nursing Homes - Private Contractors Payment,3192.00,0.00,COMMERCIAL SUPPLIER 
 10-02-2023,Adults,Beechcourt Care Centre - Bondcare,Nursing Homes - Private Contractors Payment,3192.00,0.00,COMMERCIAL SUPPLIER 
 10-02-2023,Adults,Beechcourt Care Centre - Bondcare,Nursing Homes - Private Contractors Payment,3192.00,0.00,COMMERCIAL SUPPLIER 
 10-02-2023,Adults,Beechcourt Care Centre - Bondcare,Nursing Homes - Private Contractors Payment,3192.00,0.00,COMMERCIAL SUPPLIER 
 10-02-2023,Adults,Beechcourt Care Centre - Bondcare,Nursing Homes - Private Contractors Payment,3192.00,0.00,COMMERCIAL SUPPLIER 
 10-02-2023,Adults,Beechcourt Care Centre - Bondcare,Nursing Homes - Private Contractors Payment,3192.00,0.00,COMMERCIAL SUPPLIER 
 10-02-2023,Adults,Beechcourt Care Centre - Bondcare,Nursing Homes - Private Contractors Payment,3192.00,0.00,COMMERCIAL SUPPLIER 
 10-02-2023,Adults,Beechcourt Care Centre - Bondcare,Nursing Homes - Private Contractors Payment,3192.00,0.00,COMMERCIAL SUPPLIER 
 10-02-2023,Adults,Beechcourt Care Centre - Bondcare,Nursing Homes - Private Contractors Payment,3192.00,0.00,COMMERCIAL SUPPLIER 
 10-02-2023,Adults,Beechcourt Care Centre - Bondcare,Nursing Homes - Private Contractors Payment,3192.00,0.00,COMMERCIAL SUPPLIER 
 10-02-2023,Adults,Beechcourt Care Centre - Bondcare,Nursing Homes - Private Contractors Payment,3192.00,0.00,COMMERCIAL SUPPLIER 
 10-02-2023,Adults,Beechcourt Care Centre - Bondcare,Nursing Homes - Private Contractors Payment,3192.00,0.00,COMMERCIAL SUPPLIER 
 10-02-2023,Adults,Beechcourt Care Centre - Bondcare,Nursing Homes - Private Contractors Payment,3192.00,0.00,COMMERCIAL SUPPLIER 
 10-02-2023,Adults,Beechcourt Care Centre - Bondcare,Nursing Homes - Private Contractors Payment,3192.00,0.00,COMMERCIAL SUPPLIER 
 10-02-2023,Adults,Beechcourt Care Centre - Bondcare,Nursing Homes - Private Contractors Payment,3192.00,0.00,COMMERCIAL SUPPLIER 
 10-02-2023,Adults,Beechcourt Care Centre - Bondcare,Nursing Homes - Private Contractors Payment,3192.00,0.00,COMMERCIAL SUPPLIER 
 10-02-2023,Adults,GCH - Hillside Nursing Home,Nursing Homes - Private Contractors Payment,3199.24,0.00,COMMERCIAL SUPPLIER 
 10-02-2023,Adults,One Tree Estates Ltd t/a Ashbrook Nursing Home,Nursing Homes - Private Contractors Payment,3200.00,0.00,COMMERCIAL SUPPLIER 
 10-02-2023,Adults,One Tree Estates Ltd t/a Ashbrook Nursing Home,Nursing Homes - Private Contractors Payment,3200.00,0.00,COMMERCIAL SUPPLIER 
 10-02-2023,Adults,Bupa Care Homes (HVC) - Havering Court,Nursing Homes - Private Contractors Payment,3275.24,0.00,COMMERCIAL SUPPLIER 
 10-02-2023,Adults,One Tree Estates Ltd t/a Ashbrook Nursing Home,Nursing Homes - Private Contractors Payment,3278.57,0.00,COMMERCIAL SUPPLIER 
 10-02-2023,Adults,Lukka Care Homes Ltd - Ravenscourt,Nursing Homes - Private Contractors Payment,3330.84,0.00,COMMERCIAL SUPPLIER 
 10-02-2023,Adults,Willows Care Home - Churchgate Healthcare (Willows) Ltd,Nursing Homes - Private Contractors Payment,3330.84,0.00,COMMERCIAL SUPPLIER 
 10-02-2023,Adults,Westminster Health Care Ltd Derham House,Nursing Homes - Private Contractors Payment,3345.92,0.00,COMMERCIAL SUPPLIER 
 10-02-2023,Adults,DMP Healthcare (Cherry Orchard) Ltd,Nursing Homes - Private Contractors Payment,3375.20,0.00,COMMERCIAL SUPPLIER 
 10-02-2023,Adults,Bondcare (London) Ltd ,Nursing Homes - Private Contractors Payment,3393.16,0.00,COMMERCIAL SUPPLIER 
 10-02-2023,Adults,One Tree Estates Ltd t/a Ashbrook Nursing Home,Nursing Homes - Private Contractors Payment,3400.00,0.00,COMMERCIAL SUPPLIER 
 10-02-2023,Adults,Fountains Care Centre - Bondcare,Nursing Homes - Private Contractors Payment,3412.52,0.00,COMMERCIAL SUPPLIER 
 10-02-2023,Adults,Lancam Care Services Ltd,Nursing Homes - Private Contractors Payment,3412.52,0.00,COMMERCIAL SUPPLIER 
 10-02-2023,Adults,The Laurels Nursing Home Hastings,Nursing Homes - Private Contractors Payment,3444.00,0.00,NON COMMERCIAL SUPPLIER 
 10-02-2023,Adults,Bupa Care Homes (HVC) - Havering Court,Nursing Homes - Private Contractors Payment,3465.72,0.00,COMMERCIAL SUPPLIER 
 10-02-2023,Adults,Barchester Healthcare Homes Ltd - Ottley House ,Nursing Homes - Private Contractors Payment,3477.43,0.00,COMMERCIAL SUPPLIER 
 10-02-2023,Adults,One Tree Estates Ltd t/a Ashbrook Nursing Home,Nursing Homes - Private Contractors Payment,3485.00,0.00,COMMERCIAL SUPPLIER 
 10-02-2023,Adults,One Tree Estates Ltd t/a Ashbrook Nursing Home,Nursing Homes - Private Contractors Payment,3485.00,0.00,COMMERCIAL SUPPLIER 
 10-02-2023,Adults,DMP Healthcare (Heatherbrook) Ltd,Nursing Homes - Private Contractors Payment,3510.00,0.00,NON COMMERCIAL SUPPLIER 
 10-02-2023,Adults,One Tree Estates Ltd t/a Ashbrook Nursing Home,Nursing Homes - Private Contractors Payment,3600.00,0.00,COMMERCIAL SUPPLIER 
 10-02-2023,Adults,GCH - Hillside Nursing Home,Nursing Homes - Private Contractors Payment,3600.00,0.00,COMMERCIAL SUPPLIER 
 10-02-2023,Adults,DMP Healthcare (Cherry Orchard) Ltd,Nursing Homes - Private Contractors Payment,3600.00,0.00,COMMERCIAL SUPPLIER 
 10-02-2023,Adults,Acer Healthcare Operation Ltd,Nursing Homes - Private Contractors Payment,3616.76,0.00,COMMERCIAL SUPPLIER 
 10-02-2023,Adults,Ladyville Lodge_a,Nursing Homes - Private Contractors Payment,3690.00,0.00,COMMERCIAL SUPPLIER 
 10-02-2023,Adults,GCH - Hillside Nursing Home,Nursing Homes - Private Contractors Payment,3690.00,0.00,COMMERCIAL SUPPLIER 
 10-02-2023,Adults,Alexander Court Care Centre - Bondcare,Nursing Homes - Private Contractors Payment,3732.44,0.00,COMMERCIAL SUPPLIER 
 10-02-2023,Adults,Ladyville Lodge_a,Nursing Homes - Private Contractors Payment,3740.84,0.00,COMMERCIAL SUPPLIER 
 10-02-2023,Adults,Lukka Care Homes Ltd - Ravenscourt,Nursing Homes - Private Contractors Payment,3800.00,0.00,COMMERCIAL SUPPLIER 
 10-02-2023,Adults,GCH - Hillside Nursing Home,Nursing Homes - Private Contractors Payment,3800.00,0.00,COMMERCIAL SUPPLIER 
 10-02-2023,Adults,Bupa Care Homes (HVC) - Havering Court,Nursing Homes - Private Contractors Payment,3804.28,0.00,COMMERCIAL SUPPLIER 
 10-02-2023,Adults,Bupa Care Homes (HVC) - Havering Court,Nursing Homes - Private Contractors Payment,3811.68,0.00,COMMERCIAL SUPPLIER 
 10-02-2023,Adults,Bupa Care Homes (HVC) - Havering Court,Nursing Homes - Private Contractors Payment,3830.08,0.00,COMMERCIAL SUPPLIER 
 10-02-2023,Adults,Barchester Healthcare Ltd - Park View Care Home,Nursing Homes - Private Contractors Payment,3831.04,0.00,COMMERCIAL SUPPLIER 
 10-02-2023,Adults,DMP Healthcare (Cherry Orchard) Ltd,Nursing Homes - Private Contractors Payment,3831.04,0.00,COMMERCIAL SUPPLIER 
 10-02-2023,Adults,Havering Care Homes Ltd t/a Abbscross Nursing Home,Nursing Homes - Private Contractors Payment,3839.08,0.00,COMMERCIAL SUPPLIER 
 10-02-2023,Adults,Moreland House_a,Nursing Homes - Private Contractors Payment,3840.00,0.00,COMMERCIAL SUPPLIER 
 10-02-2023,Adults,Barchester Healthcare Ltd - Park View Care Home,Nursing Homes - Private Contractors Payment,3888.68,0.00,COMMERCIAL SUPPLIER 
 10-02-2023,Adults,Barchester Healthcare Homes Ltd - Ottley House ,Nursing Homes - Private Contractors Payment,3894.72,0.00,COMMERCIAL SUPPLIER 
 10-02-2023,Adults,Barchester Healthcare Homes Ltd - Ottley House ,Nursing Homes - Private Contractors Payment,3894.72,0.00,COMMERCIAL SUPPLIER 
 10-02-2023,Adults,Barchester Healthcare Homes Ltd - Ottley House ,Nursing Homes - Private Contractors Payment,3894.72,0.00,COMMERCIAL SUPPLIER 
 10-02-2023,Adults,Barchester Healthcare Homes Ltd - Ottley House ,Nursing Homes - Private Contractors Payment,3894.72,0.00,COMMERCIAL SUPPLIER 
 10-02-2023,Adults,Barchester Healthcare Homes Ltd - Ottley House ,Nursing Homes - Private Contractors Payment,3894.72,0.00,COMMERCIAL SUPPLIER 
 10-02-2023,Adults,Barchester Healthcare Homes Ltd - Ottley House ,Nursing Homes - Private Contractors Payment,3894.72,0.00,COMMERCIAL SUPPLIER 
 10-02-2023,Adults,Havering Care Homes Ltd t/a Abbscross Nursing Home,Nursing Homes - Private Contractors Payment,3900.00,0.00,COMMERCIAL SUPPLIER 
 10-02-2023,Adults,Havering Care Homes Ltd t/a Upminster Nursing Home,Nursing Homes - Private Contractors Payment,3900.00,0.00,COMMERCIAL SUPPLIER 
 10-02-2023,Adults,Havering Care Homes Ltd t/a Upminster Nursing Home,Nursing Homes - Private Contractors Payment,3900.00,0.00,COMMERCIAL SUPPLIER 
 10-02-2023,Adults,Havering Care Homes Ltd t/a Upminster Nursing Home,Nursing Homes - Private Contractors Payment,3900.00,0.00,COMMERCIAL SUPPLIER 
 10-02-2023,Adults,Havering Care Homes Ltd t/a Upminster Nursing Home,Nursing Homes - Private Contractors Payment,3900.00,0.00,COMMERCIAL SUPPLIER 
 10-02-2023,Adults,Havering Care Homes Ltd t/a Upminster Nursing Home,Nursing Homes - Private Contractors Payment,3900.00,0.00,COMMERCIAL SUPPLIER 
 10-02-2023,Adults,Havering Care Homes Ltd t/a Upminster Nursing Home,Nursing Homes - Private Contractors Payment,3900.00,0.00,COMMERCIAL SUPPLIER 
 10-02-2023,Adults,Barchester Healthcare Ltd - Park View Care Home,Nursing Homes - Private Contractors Payment,3900.00,0.00,COMMERCIAL SUPPLIER 
 10-02-2023,Adults,Willows Care Home - Churchgate Healthcare (Willows) Ltd,Nursing Homes - Private Contractors Payment,3900.00,0.00,COMMERCIAL SUPPLIER 
 10-02-2023,Adults,One Tree Estates Ltd t/a Ashbrook Nursing Home,Nursing Homes - Private Contractors Payment,3933.00,0.00,COMMERCIAL SUPPLIER 
 10-02-2023,Adults,Westminster Health Care Ltd Derham House,Nursing Homes - Private Contractors Payment,3960.92,0.00,COMMERCIAL SUPPLIER 
 10-02-2023,Adults,GCH - Hillside Nursing Home,Nursing Homes - Private Contractors Payment,3980.00,0.00,COMMERCIAL SUPPLIER 
 10-02-2023,Adults,Lukka Care Homes Ltd - Ravenscourt,Nursing Homes - Private Contractors Payment,4000.00,0.00,COMMERCIAL SUPPLIER 
 10-02-2023,Adults,Voyage Ltd - Solar Care Melbreck,Nursing Homes - Private Contractors Payment,4058.20,0.00,COMMERCIAL SUPPLIER 
 10-02-2023,Adults,The Avenues Trust Support Services Glebe House,Nursing Homes - Private Contractors Payment,4137.32,0.00,COMMERCIAL SUPPLIER 
 10-02-2023,Adults,Bupa Care Homes (HVC) - Havering Court,Nursing Homes - Private Contractors Payment,4150.84,0.00,COMMERCIAL SUPPLIER 
 10-02-2023,Adults,Lukka Care Homes Ltd - Ravenscourt,Nursing Homes - Private Contractors Payment,4150.84,0.00,COMMERCIAL SUPPLIER 
 10-02-2023,Adults,Barchester Healthcare Ltd - Park View Care Home,Nursing Homes - Private Contractors Payment,4150.84,0.00,COMMERCIAL SUPPLIER 
 10-02-2023,Adults,Willows Care Home - Churchgate Healthcare (Willows) Ltd,Nursing Homes - Private Contractors Payment,4165.92,0.00,COMMERCIAL SUPPLIER 
 10-02-2023,Adults,Bethany House Care Home,Nursing Homes - Private Contractors Payment,4172.40,0.00,COMMERCIAL SUPPLIER 
 10-02-2023,Adults,Barchester Healthcare Ltd - Park View Care Home,Nursing Homes - Private Contractors Payment,4192.08,0.00,COMMERCIAL SUPPLIER 
 10-02-2023,Adults,Barchester Healthcare Ltd - Park View Care Home,Nursing Homes - Private Contractors Payment,4192.08,0.00,COMMERCIAL SUPPLIER 
 10-02-2023,Adults,Bupa Care Homes (HVC) - Havering Court,Nursing Homes - Private Contractors Payment,4214.48,0.00,COMMERCIAL SUPPLIER 
 10-02-2023,Adults,The Avenues Trust Support Services Glebe House,Nursing Homes - Private Contractors Payment,4220.04,0.00,COMMERCIAL SUPPLIER 
 10-02-2023,Adults,Voyage Care Ltd - Wey House,Nursing Homes - Private Contractors Payment,4285.96,0.00,COMMERCIAL SUPPLIER 
 10-02-2023,Adults,One Tree Estates Ltd t/a Ashbrook Nursing Home,Nursing Homes - Private Contractors Payment,4312.00,0.00,COMMERCIAL SUPPLIER 
 10-02-2023,Adults,The Avenues Trust Support Services Glebe House,Nursing Homes - Private Contractors Payment,4392.00,0.00,COMMERCIAL SUPPLIER 
 10-02-2023,Adults,Barchester Healthcare Ltd - Park View Care Home,Nursing Homes - Private Contractors Payment,4458.36,0.00,COMMERCIAL SUPPLIER 
 10-02-2023,Adults,DMP Healthcare (Cherry Orchard) Ltd,Nursing Homes - Private Contractors Payment,4473.44,0.00,COMMERCIAL SUPPLIER 
 10-02-2023,Adults,Havering Care Homes Ltd t/a Abbscross Nursing Home,Nursing Homes - Private Contractors Payment,4536.88,0.00,COMMERCIAL SUPPLIER 
 10-02-2023,Adults,Havering Care Homes Ltd t/a Abbscross Nursing Home,Nursing Homes - Private Contractors Payment,4536.88,0.00,COMMERCIAL SUPPLIER 
 10-02-2023,Adults,Ranc Care Homes Ltd - Brentwood Care Centre,Nursing Homes - Private Contractors Payment,4560.84,0.00,COMMERCIAL SUPPLIER 
 10-02-2023,Adults,GCH - Hillside Nursing Home,Nursing Homes - Private Contractors Payment,4600.00,0.00,COMMERCIAL SUPPLIER 
 10-02-2023,Adults,Ranc Care Homes Ltd - Romford Care Centre,Nursing Homes - Private Contractors Payment,4600.20,0.00,COMMERCIAL SUPPLIER 
 10-02-2023,Adults,Bupa Care Homes (HVC) - Havering Court,Nursing Homes - Private Contractors Payment,4658.08,0.00,COMMERCIAL SUPPLIER 
 10-02-2023,Adults,Havering Care Homes Ltd t/a Upminster Nursing Home,Nursing Homes - Private Contractors Payment,4681.92,0.00,COMMERCIAL SUPPLIER 
 10-02-2023,Adults,Willows Care Home - Churchgate Healthcare (Willows) Ltd,Nursing Homes - Private Contractors Payment,4763.24,0.00,COMMERCIAL SUPPLIER 
 10-02-2023,Adults,Ranc Care Homes Ltd - Romford Care Centre,Nursing Homes - Private Contractors Payment,4800.00,0.00,COMMERCIAL SUPPLIER 
 10-02-2023,Adults,Oakland Primecare Ltd,Nursing Homes - Private Contractors Payment,4800.00,0.00,COMMERCIAL SUPPLIER 
 10-02-2023,Adults,Bupa Care Homes (HVC) - Havering Court,Nursing Homes - Private Contractors Payment,4831.08,0.00,COMMERCIAL SUPPLIER 
 10-02-2023,Adults,Bupa Care Homes (HVC) - Havering Court,Nursing Homes - Private Contractors Payment,4849.40,0.00,COMMERCIAL SUPPLIER 
 10-02-2023,Adults,Maria Mallaband Care Group - The Westbourne ,Nursing Homes - Private Contractors Payment,4920.00,0.00,COMMERCIAL SUPPLIER 
 10-02-2023,Adults,One Tree Estates Ltd t/a Ashbrook Nursing Home,Nursing Homes - Private Contractors Payment,4968.00,0.00,COMMERCIAL SUPPLIER 
 10-02-2023,Adults,Lukka Care Homes Ltd - Ravenscourt,Nursing Homes - Private Contractors Payment,5018.40,0.00,COMMERCIAL SUPPLIER 
 10-02-2023,Adults,Voyage Ltd - Solar-Grange Liss,Nursing Homes - Private Contractors Payment,5118.20,0.00,COMMERCIAL SUPPLIER 
 10-02-2023,Adults,One Tree Estates Ltd t/a Ashbrook Nursing Home,Nursing Homes - Private Contractors Payment,5200.00,0.00,COMMERCIAL SUPPLIER 
 10-02-2023,Adults,Bluebell & Hawthorn,Nursing Homes - Private Contractors Payment,5227.52,0.00,COMMERCIAL SUPPLIER 
 10-02-2023,Adults,One Tree Estates Ltd t/a Ashbrook Nursing Home,Nursing Homes - Private Contractors Payment,5330.00,0.00,COMMERCIAL SUPPLIER 
 10-02-2023,Adults,Barchester Healthcare Ltd - Park View Care Home,Nursing Homes - Private Contractors Payment,5545.32,0.00,COMMERCIAL SUPPLIER 
 10-02-2023,Adults,Willows Care Home - Churchgate Healthcare (Willows) Ltd,Nursing Homes - Private Contractors Payment,5600.00,0.00,COMMERCIAL SUPPLIER 
 10-02-2023,Adults,The Avenues Trust Support Services Glebe House,Nursing Homes - Private Contractors Payment,5635.96,0.00,COMMERCIAL SUPPLIER 
 10-02-2023,Adults,Care UK,Nursing Homes - Private Contractors Payment,5679.24,0.00,COMMERCIAL SUPPLIER 
 10-02-2023,Adults,Care UK,Nursing Homes - Private Contractors Payment,5679.24,0.00,COMMERCIAL SUPPLIER 
 10-02-2023,Adults,DMP Healthcare (Heatherbrook) Ltd,Nursing Homes - Private Contractors Payment,5712.00,0.00,NON COMMERCIAL SUPPLIER 
 10-02-2023,Adults,Signature Senior Lifestyle Operations Ltd,Nursing Homes - Private Contractors Payment,5749.84,0.00,COMMERCIAL SUPPLIER 
 10-02-2023,Adults,Bupa Care Homes (HVC) - Havering Court,Nursing Homes - Private Contractors Payment,5908.20,0.00,COMMERCIAL SUPPLIER 
 10-02-2023,Adults,DMP Healthcare (Heatherbrook) Ltd,Nursing Homes - Private Contractors Payment,7560.00,0.00,NON COMMERCIAL SUPPLIER 
 10-02-2023,Adults,DMP Healthcare (Cherry Orchard) Ltd,Nursing Homes - Private Contractors Payment,8568.00,0.00,COMMERCIAL SUPPLIER 
 10-02-2023,Adults,One Tree Estates Ltd t/a Ashbrook Nursing Home,Nursing Homes - Private Contractors Payment,8624.00,0.00,COMMERCIAL SUPPLIER 
 10-02-2023,Adults,Fountains Care Centre - Bondcare,Nursing Homes - Private Contractors Payment,10080.00,0.00,COMMERCIAL SUPPLIER 
 10-02-2023,Adults,Moreland House_a,Nursing Homes - Private Contractors Payment,10080.00,0.00,COMMERCIAL SUPPLIER 
 10-02-2023,Adults,Silver Lake Care 2 Ltd ,Nursing Homes - Private Contractors Payment,11293.08,0.00,COMMERCIAL SUPPLIER 
 10-02-2023,Adults,Fountains Care Centre - Bondcare,Nursing Homes - Private Contractors Payment,12096.00,0.00,COMMERCIAL SUPPLIER 
 10-02-2023,Adults,Bondcare (London) Ltd ,Nursing Homes - Private Contractors Payment,12432.00,0.00,COMMERCIAL SUPPLIER 
 10-02-2023,Adults,GCH - Hillside Nursing Home,Nursing Homes - Private Contractors Payment,14784.00,0.00,COMMERCIAL SUPPLIER 
 10-02-2023,Adults,Fountains Care Centre - Bondcare,Nursing Homes - Private Contractors Payment,17442.86,0.00,COMMERCIAL SUPPLIER 
 10-02-2023,Adults,Lodge Lane Care Home Limited,Nursing Homes - Private Contractors Payment,18070.00,0.00,COMMERCIAL SUPPLIER 
 10-02-2023,Adults,Fountains Care Centre - Bondcare,Nursing Homes - Private Contractors Payment,26400.00,0.00,COMMERCIAL SUPPLIER 
 02-02-2023,Adults,All Therapy Solutions Ltd,Occupational Health,1740.00,0.00,COMMERCIAL SUPPLIER 
 27-02-2023,Adults,All Therapy Solutions Ltd,Occupational Health,2370.00,0.00,COMMERCIAL SUPPLIER 
 20-02-2023,Adults,All Therapy Solutions Ltd,Occupational Health,2670.00,0.00,COMMERCIAL SUPPLIER 
 10-02-2023,Adults,All Therapy Solutions Ltd,Occupational Health,4530.00,0.00,COMMERCIAL SUPPLIER 
 13-02-2023,Adults,All Therapy Solutions Ltd,Occupational Health,4570.00,0.00,COMMERCIAL SUPPLIER 
 10-02-2023,Adults,Havering Care Homes Ltd t/a Upminster Nursing Home,Other Short Term Support,700.00,0.00,COMMERCIAL SUPPLIER 
 09-02-2023,Adults,North East London NHS Foundation Trust_a,Payment To Health Authorities,1365.84,0.00,NHS BODIES 
 09-02-2023,Adults,North East London NHS Foundation Trust_a,Payment To Health Authorities,1428.31,0.00,NHS BODIES 
 09-02-2023,Adults,North East London NHS Foundation Trust_a,Payment To Health Authorities,1428.31,0.00,NHS BODIES 
 09-02-2023,Adults,North East London NHS Foundation Trust_a,Payment To Health Authorities,1824.27,0.00,NHS BODIES 
 09-02-2023,Adults,North East London NHS Foundation Trust_a,Payment To Health Authorities,5374.43,0.00,NHS BODIES 
 09-02-2023,Adults,North East London NHS Foundation Trust_a,Payment To Health Authorities,5374.43,0.00,NHS BODIES 
 09-02-2023,Adults,North East London NHS Foundation Trust_a,Payment To Health Authorities,5377.20,0.00,NHS BODIES 
 09-02-2023,Adults,North East London NHS Foundation Trust_a,Payment To Health Authorities,6111.17,0.00,NHS BODIES 
 09-02-2023,Adults,North East London NHS Foundation Trust_a,Payment To Health Authorities,6164.25,0.00,NHS BODIES 
 09-02-2023,Adults,North East London NHS Foundation Trust_a,Payment To Health Authorities,6282.61,0.00,NHS BODIES 
 09-02-2023,Adults,North East London NHS Foundation Trust_a,Payment To Health Authorities,6282.94,0.00,NHS BODIES 
 09-02-2023,Adults,North East London NHS Foundation Trust_a,Payment To Health Authorities,7204.50,0.00,NHS BODIES 
 09-02-2023,Adults,North East London NHS Foundation Trust_a,Payment To Health Authorities,17208.22,0.00,NHS BODIES 
 09-02-2023,Adults,North East London NHS Foundation Trust_a,Payment To Health Authorities,17810.29,0.00,NHS BODIES 
 09-02-2023,Adults,North East London NHS Foundation Trust_a,Payment To Health Authorities,18189.08,0.00,NHS BODIES 
 09-02-2023,Adults,North East London NHS Foundation Trust_a,Payment To Health Authorities,21790.42,0.00,NHS BODIES 
 13-02-2023,Adults,North East London NHS Foundation Trust_a,Payment To Health Authorities,35484.00,0.00,NHS BODIES 
 10-02-2023,Adults,The Hornchurch Can't Sing Choir,Payments To Voluntary Sector,2000.00,0.00,VOLUNTARY ORGANISATION 
 10-02-2023,Adults,The Proper Blokes Club C.I.C ,Payments To Voluntary Sector,2000.00,0.00,VOLUNTARY ORGANISATION 
 10-02-2023,Adults,United Singers ,Payments To Voluntary Sector,2500.00,0.00,VOLUNTARY ORGANISATION 
 22-02-2023,Adults,Carers Centre SA Ltd ,Payments To Voluntary Sector,2775.17,0.00,COMMERCIAL SUPPLIER 
 22-02-2023,Adults,Carers Centre SA Ltd ,Payments To Voluntary Sector,2775.17,0.00,COMMERCIAL SUPPLIER 
 22-02-2023,Adults,Carers Centre SA Ltd ,Payments To Voluntary Sector,2775.17,0.00,COMMERCIAL SUPPLIER 
 22-02-2023,Adults,Carers Centre SA Ltd ,Payments To Voluntary Sector,2775.17,0.00,COMMERCIAL SUPPLIER 
 22-02-2023,Adults,Carers Centre SA Ltd ,Payments To Voluntary Sector,2775.17,0.00,COMMERCIAL SUPPLIER 
 10-02-2023,Adults,Havering Mind,Payments To Voluntary Sector,3147.56,0.00,NON COMMERCIAL SUPPLIER 
 10-02-2023,Adults,Havering Mind,Payments To Voluntary Sector,3147.56,0.00,NON COMMERCIAL SUPPLIER 
 14-02-2023,Adults,"Age Uk Redbridge, Barking and Havering Limited",Payments To Voluntary Sector,3270.42,0.00,COMMERCIAL SUPPLIER 
 14-02-2023,Adults,"Age Uk Redbridge, Barking and Havering Limited",Payments To Voluntary Sector,3270.42,0.00,COMMERCIAL SUPPLIER 
 28-02-2023,Adults,"Age Uk Redbridge, Barking and Havering Limited",Payments To Voluntary Sector,3270.42,0.00,COMMERCIAL SUPPLIER 
 28-02-2023,Adults,"Age Uk Redbridge, Barking and Havering Limited",Payments To Voluntary Sector,3270.42,0.00,COMMERCIAL SUPPLIER 
 10-02-2023,Adults,Havering Association for People with Disabilities (H.A.D.),Payments To Voluntary Sector,3332.35,0.00,NON COMMERCIAL SUPPLIER 
 10-02-2023,Adults,Havering Association for People with Disabilities (H.A.D.),Payments To Voluntary Sector,3332.35,0.00,NON COMMERCIAL SUPPLIER 
 21-02-2023,Adults,Havering Association for People with Disabilities (H.A.D.),Payments To Voluntary Sector,3332.35,0.00,NON COMMERCIAL SUPPLIER 
 21-02-2023,Adults,Havering Association for People with Disabilities (H.A.D.),Payments To Voluntary Sector,3332.35,0.00,NON COMMERCIAL SUPPLIER 
 15-02-2023,Adults,The Sycamore Trust,Payments To Voluntary Sector,3333.33,0.00,COMMERCIAL SUPPLIER 
 15-02-2023,Adults,The Sycamore Trust,Payments To Voluntary Sector,3333.34,0.00,COMMERCIAL SUPPLIER 
 10-02-2023,Adults,The NO Collective ,Payments To Voluntary Sector,3795.00,0.00,COMMERCIAL SUPPLIER 
 10-02-2023,Adults,Havering BME Forum,Payments To Voluntary Sector,3860.00,0.00,COMMERCIAL SUPPLIER 
 09-02-2023,Adults,ADDUP,Payments To Voluntary Sector,4150.00,0.00,COMMERCIAL SUPPLIER 
 10-02-2023,Adults,Elm Park Community Association,Payments To Voluntary Sector,4330.00,0.00,COMMERCIAL SUPPLIER 
 10-02-2023,Adults,Havering Asian Social & Welfare Association,Payments To Voluntary Sector,4422.00,0.00,NON COMMERCIAL SUPPLIER 
 10-02-2023,Adults,Havering Volunteer Centre,Payments To Voluntary Sector,4630.00,0.00,NON COMMERCIAL SUPPLIER 
 10-02-2023,Adults,Romford Autistic Group Support ,Payments To Voluntary Sector,5000.00,0.00,VOLUNTARY ORGANISATION 
 10-02-2023,Adults,Havering Association for People with Disabilities (H.A.D.),Payments To Voluntary Sector,5000.00,0.00,NON COMMERCIAL SUPPLIER 
 27-02-2023,Adults,Alzheimer's Society.,Payments To Voluntary Sector,6374.17,0.00,COMMERCIAL SUPPLIER 
 10-02-2023,Adults,The Habbit Factory ,Payments To Voluntary Sector,9450.00,0.00,VOLUNTARY ORGANISATION 
 10-02-2023,Adults,Ardleigh Green Family Centre,Payments To Voluntary Sector,9700.00,0.00,COMMERCIAL SUPPLIER 
 10-02-2023,Adults,Rainham Food Bank T/A Foodbank,Payments To Voluntary Sector,9850.00,0.00,VOLUNTARY ORGANISATION 
 10-02-2023,Adults,HBBS Counselling.,Payments To Voluntary Sector,9975.00,0.00,NON COMMERCIAL SUPPLIER 
 08-02-2023,Adults,Havering Women's Aid,Payments To Voluntary Sector,21904.17,0.00,NON COMMERCIAL SUPPLIER 
 14-02-2023,Adults,"Age Uk Redbridge, Barking and Havering Limited",Payments To Voluntary Sector,40000.00,0.00,COMMERCIAL SUPPLIER 
 28-02-2023,Adults,New Windmill Hall Community Association,Premises Hire - Facilities,600.00,0.00,NON COMMERCIAL SUPPLIER 
 28-02-2023,Adults,New Windmill Hall Community Association,Premises Hire - Facilities,700.00,0.00,NON COMMERCIAL SUPPLIER 
 03-02-2023,Adults,New Windmill Hall Community Association,Premises Hire - Facilities,720.00,0.00,NON COMMERCIAL SUPPLIER 
 28-02-2023,Adults,New Windmill Hall Community Association,Premises Hire - Facilities,900.00,0.00,NON COMMERCIAL SUPPLIER 
 03-02-2023,Adults,New Windmill Hall Community Association,Premises Hire - Facilities,1800.00,0.00,NON COMMERCIAL SUPPLIER 
 08-02-2023,Adults,Action First Assessments Ltd,Private Contractors Payment - Other,620.00,0.00,COMMERCIAL SUPPLIER 
 22-02-2023,Adults,Action First Assessments Ltd,Private Contractors Payment - Other,620.00,0.00,COMMERCIAL SUPPLIER 
